Directorate,Department,Expenditure Type,Ref.Doc.1,Vendor Name,Expenditure Amount (exc VAT),Payment Date
CENTRAL EXPENSES,CENTRAL EXPENSES,OTHER ESTABLISHMENTS - THIRD P,1000024381,GREATER LONDON AUTHORITY," 50,013.70 ",07/08/2019
COMMERCIAL,HOUSING NEEDS RESOURCES,GRANT PAYMENTS,0080028739,REDACTED - PERSONAL DATA,"28,000.00",30/08/2019
COMMERCIAL,HOUSING NEEDS RESOURCES,OTHER AGENCIES - THIRD PARTY P,0060137095,THE BARNETGROUP LIMITED,"1,575,000.00",21/08/2019
COMMERCIAL,HOUSING REVENUE ACCOUNT,CONSULTANTS FEES,0060137194,ALLIES AND MORRRISON,"69,350.00",29/08/2019
COMMERCIAL,HOUSING REVENUE ACCOUNT,OTHER AGENCIES - THIRD PARTY P,0010015313,THE BARNETGROUP LIMITED,"1,000,612.00",14/08/2019
COMMERCIAL,HOUSING REVENUE ACCOUNT,OTHER AGENCIES - THIRD PARTY P,0060137579,THE BARNETGROUP LIMITED,"1,923,000.00",28/08/2019
COMMERCIAL,HOUSING REVENUE ACCOUNT,OTHER AGENCIES - THIRD PARTY P,0060137102,THE BARNETGROUP LIMITED,"292,000.00",21/08/2019
COMMERCIAL,HOUSING REVENUE ACCOUNT,OTHER AGENCIES - THIRD PARTY P,0060137492,THE BARNETGROUP LIMITED,"1,000,000.00",28/08/2019
COMMERCIAL,HRA,CONSULTANTS FEES,0060137162,TROWERS & HAMLINS,426.50,22/08/2019
COMMERCIAL,HRA,CONSULTANTS FEES,0060137546,P P C R ASSOCIATES LTD,499.02,29/08/2019
COMMERCIAL,HRA,CONSULTANTS FEES,0060137682,P P C R ASSOCIATES LTD,170.67,29/08/2019
COMMERCIAL,HRA,ADVERTISING,0060136839,TMP (UK) LTD,296.00,16/08/2019
COMMERCIAL,HRA,CONSULTANTS FEES,0060137431,TROWERS & HAMLINS,"3,858.62",27/08/2019
COMMERCIAL,HRA,CONSULTANTS FEES,0060135309,PRIORITY ESTATES PROJECT LTD,"2,444.75",20/08/2019
COMMERCIAL,HRA,CONSULTANTS FEES,0060137286,ROYAL AIR FORCE MUSEUM,911.40,23/08/2019
COMMERCIAL,HRA,CONSULTANTS FEES,0060134393,VALUATION OFFICE AGENCY,"5,532.80",12/08/2019
COMMERCIAL,HRA,ADVERTISING,0060135653,TMP (UK) LTD,"1,174.50",02/08/2019
COMMERCIAL,HRA,CONSULTANTS FEES,0060136988,THE BARNETGROUP LIMITED,"8,303.50",20/08/2019
COMMERCIAL,HRA,CONSULTANTS FEES,0060137346,THE BARNETGROUP LIMITED,"32,828.00",29/08/2019
COMMERCIAL,HRA,CONSULTANTS FEES,0060137366,THE BARNETGROUP LIMITED,825.38,29/08/2019
COMMERCIAL,HRA,OTHER SERVICES,0060135805,WATES LIVING SPACE,110.00,09/08/2019
COMMERCIAL,HRA,BUILDING REPAIRS & MAINTENANCE,0060136081,WATES LIVING SPACE,"1,280.44",28/08/2019
COMMERCIAL,HRA,CONSULTANTS FEES,0060136077,BARNET HOMES LIMITED,"88,181.93",08/08/2019
COMMERCIAL,HRA,OTHER SERVICES,0060137193,THE BARNETGROUP LIMITED,"2,020,145.93",22/08/2019
COMMERCIAL,HRA,PRIVATE CONTRACTORS - THIRD PA,80028645,REDACTED - PERSONAL DATA,"2,413.20",30/08/2019
COMMERCIAL,HRA,PRIVATE CONTRACTORS - THIRD PA,80028647,REDACTED - PERSONAL DATA,"1,500.00",30/08/2019
COMMERCIAL,HRA,CONSULTANTS FEES,0060135702,THE BARNETGROUP LIMITED,"1,985.16",05/08/2019
COMMERCIAL,HRA,AGENCY/INTERIM NON HAYS,0060135737,CHILD'S HILL BAPTIST CHURCH,378.00,05/08/2019
COMMERCIAL,HRA,CONSULTANTS FEES,0060134019,MICROFISH COMMUNICATIONS LTD,"1,093.26",01/08/2019
COMMERCIAL,HRA,PRIVATE CONTRACTORS - THIRD PA,80027430,ERACLEOUS & MCKENNA LLP,780.00,01/08/2019
COMMERCIAL,HRA,PRIVATE CONTRACTORS - THIRD PA,80028178,BARNETT ALEXANDER CONWAY INGRA,"3,500.00",12/08/2019
COMMERCIAL,REGIONAL ENTERPRISE,OTHER SERVICES,0060136848,KENT COUNTY COUNCIL (KCS),146.17,22/08/2019
COMMERCIAL,REGIONAL ENTERPRISE,OTHER SERVICES,0060134518,CASTLE WATER LTD,9.52,14/08/2019
COMMERCIAL,REGIONAL ENTERPRISE,OTHER SERVICES,0060134533,CASTLE WATER LTD,6.02,22/08/2019
COMMERCIAL,REGIONAL ENTERPRISE,OTHER SERVICES,0060134560,CASTLE WATER LTD,32.20,22/08/2019
COMMERCIAL,REGIONAL ENTERPRISE,OTHER SERVICES,0060134570,CASTLE WATER LTD,39.73,22/08/2019
COMMERCIAL,REGIONAL ENTERPRISE,OTHER SERVICES,0060134601,CASTLE WATER LTD,7.54,22/08/2019
COMMERCIAL,REGIONAL ENTERPRISE,OTHER SERVICES,0060134658,CASTLE WATER LTD,27.21,22/08/2019
COMMERCIAL,REGIONAL ENTERPRISE,OTHER SERVICES,0060136431,CASTLE WATER LTD,38.45,22/08/2019
COMMERCIAL,REGIONAL ENTERPRISE,OTHER SERVICES,0060136449,CASTLE WATER LTD,26.33,22/08/2019
COMMERCIAL,REGIONAL ENTERPRISE,OTHER SERVICES,0060136458,CASTLE WATER LTD,26.28,22/08/2019
COMMERCIAL,REGIONAL ENTERPRISE,OTHER SERVICES,0060136468,CASTLE WATER LTD,9.21,22/08/2019
COMMERCIAL,REGIONAL ENTERPRISE,OTHER SERVICES,0060136567,CASTLE WATER LTD,31.16,22/08/2019
COMMERCIAL,REGIONAL ENTERPRISE,OTHER SERVICES,0060136612,CASTLE WATER LTD,7.30,22/08/2019
COMMERCIAL,REGIONAL ENTERPRISE,OTHER SERVICES,0060136666,CASTLE WATER LTD,5.83,22/08/2019
COMMERCIAL,REGIONAL ENTERPRISE,ADVERTISING,0060132050,TMP (UK) LTD,314.00,19/08/2019
COMMERCIAL,REGIONAL ENTERPRISE,ADVERTISING,0060132644,TMP (UK) LTD,179.00,19/08/2019
COMMERCIAL,REGIONAL ENTERPRISE,ADVERTISING,0060132655,TMP (UK) LTD,117.00,19/08/2019
COMMERCIAL,REGIONAL ENTERPRISE,ADVERTISING,0060136728,TMP (UK) LTD,179.00,16/08/2019
COMMERCIAL,REGIONAL ENTERPRISE,ADVERTISING,0060136747,TMP (UK) LTD,179.00,16/08/2019
COMMERCIAL,REGIONAL ENTERPRISE,ADVERTISING,0060136772,TMP (UK) LTD,108.00,16/08/2019
COMMERCIAL,REGIONAL ENTERPRISE,ADVERTISING,0060136773,TMP (UK) LTD,99.00,19/08/2019
COMMERCIAL,REGIONAL ENTERPRISE,ADVERTISING,0060136784,TMP (UK) LTD,179.00,16/08/2019
COMMERCIAL,REGIONAL ENTERPRISE,ADVERTISING,0060136785,TMP (UK) LTD,179.00,16/08/2019
COMMERCIAL,REGIONAL ENTERPRISE,ADVERTISING,0060136787,TMP (UK) LTD,99.00,19/08/2019
COMMERCIAL,REGIONAL ENTERPRISE,ADVERTISING,0060136818,TMP (UK) LTD,179.00,16/08/2019
COMMERCIAL,REGIONAL ENTERPRISE,ADVERTISING,0060136825,TMP (UK) LTD,99.00,19/08/2019
COMMERCIAL,REGIONAL ENTERPRISE,ADVERTISING,0060136840,TMP (UK) LTD,179.00,16/08/2019
COMMERCIAL,REGIONAL ENTERPRISE,ADVERTISING,0060136846,TMP (UK) LTD,179.00,16/08/2019
COMMERCIAL,REGIONAL ENTERPRISE,ADVERTISING,0060136855,TMP (UK) LTD,170.00,16/08/2019
COMMERCIAL,REGIONAL ENTERPRISE,ADVERTISING,0060136863,TMP (UK) LTD,188.00,16/08/2019
COMMERCIAL,REGIONAL ENTERPRISE,OTHER SERVICES,0060136442,CONWAY AECOM LTD,91.52,15/08/2019
COMMERCIAL,REGIONAL ENTERPRISE,EQUIPMENT AND MATERIALS PURCHA,0060136594,CONWAY AECOM LTD,46.87,14/08/2019
COMMERCIAL,REGIONAL ENTERPRISE,OTHER SERVICES,0060136622,CONWAY AECOM LTD,167.27,14/08/2019
COMMERCIAL,REGIONAL ENTERPRISE,OTHER SERVICES,0060136630,CONWAY AECOM LTD,357.36,14/08/2019
COMMERCIAL,REGIONAL ENTERPRISE,ADVERTISING,0060136961,TMP (UK) LTD,566.00,20/08/2019
COMMERCIAL,REGIONAL ENTERPRISE,OTHER SERVICES,0060137073,CONWAY AECOM LTD,294.00,22/08/2019
COMMERCIAL,REGIONAL ENTERPRISE,OTHER SERVICES,0060137079,CONWAY AECOM LTD,559.65,22/08/2019
COMMERCIAL,REGIONAL ENTERPRISE,OTHER SERVICES,0060137081,CONWAY AECOM LTD,478.80,22/08/2019
COMMERCIAL,REGIONAL ENTERPRISE,OTHER SERVICES,0060137093,CONWAY AECOM LTD,"1,146.60",22/08/2019
COMMERCIAL,REGIONAL ENTERPRISE,OTHER SERVICES,0060137111,CONWAY AECOM LTD,516.60,22/08/2019
COMMERCIAL,REGIONAL ENTERPRISE,OTHER SERVICES,0060137117,CONWAY AECOM LTD,273.00,22/08/2019
COMMERCIAL,REGIONAL ENTERPRISE,OTHER SERVICES,0060137125,CONWAY AECOM LTD,252.00,22/08/2019
COMMERCIAL,REGIONAL ENTERPRISE,OTHER SERVICES,0060137132,CONWAY AECOM LTD,850.50,22/08/2019
COMMERCIAL,REGIONAL ENTERPRISE,OTHER SERVICES,0060137133,CONWAY AECOM LTD,677.25,22/08/2019
COMMERCIAL,REGIONAL ENTERPRISE,PROFESSIONAL SERVICES,0060135902,WATES LIVING SPACE,"1,083.92",05/08/2019
COMMERCIAL,REGIONAL ENTERPRISE,PROFESSIONAL SERVICES,0060136358,WATES LIVING SPACE,93.01,29/08/2019
COMMERCIAL,REGIONAL ENTERPRISE,PROFESSIONAL SERVICES,0060136362,WATES LIVING SPACE,93.01,29/08/2019
COMMERCIAL,REGIONAL ENTERPRISE,PROFESSIONAL SERVICES,0060136411,WATES LIVING SPACE,136.47,29/08/2019
COMMERCIAL,REGIONAL ENTERPRISE,PROFESSIONAL SERVICES,0060137271,WATES LIVING SPACE,27.29,23/08/2019
COMMERCIAL,REGIONAL ENTERPRISE,PROFESSIONAL SERVICES,0060137348,WATES LIVING SPACE,56.80,23/08/2019
COMMERCIAL,REGIONAL ENTERPRISE,OTHER SERVICES,0060136520,RM COUNTRYSIDE SERVICES LTD,510.00,14/08/2019
COMMERCIAL,REGIONAL ENTERPRISE,OTHER SERVICES,0060136652,RM COUNTRYSIDE SERVICES LTD,320.00,14/08/2019
COMMERCIAL,REGIONAL ENTERPRISE,OTHER SERVICES,0060137340,CONWAY AECOM LTD,"10,245.45",23/08/2019
COMMERCIAL,REGIONAL ENTERPRISE,FEES AND CHARGES,0080028630,REDACTED - PERSONAL DATA,770.00,23/08/2019
COMMERCIAL,REGIONAL ENTERPRISE,OTHER SERVICES,0060129409,CONWAY AECOM LTD,9.43,08/08/2019
COMMERCIAL,REGIONAL ENTERPRISE,OTHER SERVICES,0060133302,CONWAY AECOM LTD,90.79,08/08/2019
COMMERCIAL,REGIONAL ENTERPRISE,OTHER SERVICES,0060136952,CONWAY AECOM LTD,117.85,20/08/2019
COMMERCIAL,REGIONAL ENTERPRISE,GRANT PAYMENTS,0080028265,AMWELL CONSTRUCTION LTD,498.00,15/08/2019
COMMERCIAL,REGIONAL ENTERPRISE,GRANT PAYMENTS,0080028347,AMWELL CONSTRUCTION LTD,484.80,15/08/2019
COMMERCIAL,REGIONAL ENTERPRISE,GRANT PAYMENTS,0080028696,MC PLUMBING LTD,"3,480.00",30/08/2019
COMMERCIAL,REGIONAL ENTERPRISE,GRANT PAYMENTS,0080028698,MC PLUMBING LTD,"11,610.00",30/08/2019
COMMERCIAL,REGIONAL ENTERPRISE,OTHER ESTABLISHMENTS - THIRD P,0080028032,TRANSPORT FOR LONDON,"689,888.81",06/08/2019
COMMERCIAL,REGIONAL ENTERPRISE,CONSULTANTS FEES,0060137252,EVERSHEDS LLP,"4,694.00",23/08/2019
COMMERCIAL,REGIONAL ENTERPRISE,CONSULTANTS FEES,0060137272,EVERSHEDS LLP,996.08,23/08/2019
COMMERCIAL,REGIONAL ENTERPRISE,CONSULTANTS FEES,0060137344,EVERSHEDS LLP,"13,623.63",23/08/2019
COMMERCIAL,REGIONAL ENTERPRISE,ADVERTISING,0060136294,TMP (UK) LTD,314.00,14/08/2019
COMMERCIAL,REGIONAL ENTERPRISE,ADVERTISING,0060136306,TMP (UK) LTD,332.00,14/08/2019
COMMERCIAL,REGIONAL ENTERPRISE,CONSULTANTS FEES,0060137414,EVERSHEDS LLP,"3,297.00",29/08/2019
COMMERCIAL,REGIONAL ENTERPRISE,CONSULTANTS FEES,0060137433,EVERSHEDS LLP,"10,836.68",29/08/2019
COMMERCIAL,REGIONAL ENTERPRISE,CONSULTANTS FEES,0060137439,EVERSHEDS LLP,"5,314.69",29/08/2019
COMMERCIAL,REGIONAL ENTERPRISE,COMM(PERIODEND PROCESSING)RECH,0060137002,THE FLOWER BANK,"5,000.00",21/08/2019
COMMERCIAL,REGIONAL ENTERPRISE,PROFESSIONAL SERVICES,0060136212,RE (REGIONAL ENTERPRISE) LIMITED,"4,410.00",08/08/2019
COMMERCIAL,REGIONAL ENTERPRISE,PROFESSIONAL SERVICES,0060134188,RE (REGIONAL ENTERPRISE) LIMITED,"18,000.00",09/08/2019
COMMERCIAL,REGIONAL ENTERPRISE,PROFESSIONAL SERVICES,0060135453,RE (REGIONAL ENTERPRISE) LIMITED,"1,047.01",13/08/2019
COMMERCIAL,REGIONAL ENTERPRISE,PROFESSIONAL SERVICES,0060135487,RE (REGIONAL ENTERPRISE) LIMITED,"1,988.82",13/08/2019
COMMERCIAL,REGIONAL ENTERPRISE,PROFESSIONAL SERVICES,0060135503,RE (REGIONAL ENTERPRISE) LIMITED,696.96,13/08/2019
COMMERCIAL,REGIONAL ENTERPRISE,CONSULTANTS FEES,0060137641,RE (REGIONAL ENTERPRISE) LIMITED,"4,513.08",28/08/2019
COMMERCIAL,REGIONAL ENTERPRISE,PROFESSIONAL SERVICES,0060132527,RE (REGIONAL ENTERPRISE) LIMITED,"4,039.00",05/08/2019
COMMERCIAL,REGIONAL ENTERPRISE,PROFESSIONAL SERVICES,0060132567,RE (REGIONAL ENTERPRISE) LIMITED,"2,482.00",05/08/2019
COMMERCIAL,REGIONAL ENTERPRISE,PROFESSIONAL SERVICES,0060132599,RE (REGIONAL ENTERPRISE) LIMITED,"3,154.00",05/08/2019
COMMERCIAL,REGIONAL ENTERPRISE,PROFESSIONAL SERVICES,0060132662,RE (REGIONAL ENTERPRISE) LIMITED,"2,621.00",05/08/2019
COMMERCIAL,REGIONAL ENTERPRISE,PROFESSIONAL SERVICES,0060135427,RE (REGIONAL ENTERPRISE) LIMITED,"22,569.58",13/08/2019
COMMERCIAL,REGIONAL ENTERPRISE,PROFESSIONAL SERVICES,0060135449,RE (REGIONAL ENTERPRISE) LIMITED,"1,692.36",13/08/2019
COMMERCIAL,REGIONAL ENTERPRISE,PROFESSIONAL SERVICES,0060135493,RE (REGIONAL ENTERPRISE) LIMITED,"1,843.50",13/08/2019
COMMERCIAL,REGIONAL ENTERPRISE,PROFESSIONAL SERVICES,0060135497,RE (REGIONAL ENTERPRISE) LIMITED,"16,692.91",13/08/2019
COMMERCIAL,REGIONAL ENTERPRISE,PROFESSIONAL SERVICES,0060135506,RE (REGIONAL ENTERPRISE) LIMITED,"15,951.75",13/08/2019
COMMERCIAL,REGIONAL ENTERPRISE,PROFESSIONAL SERVICES,0060135514,RE (REGIONAL ENTERPRISE) LIMITED,"2,193.80",13/08/2019
COMMERCIAL,REGIONAL ENTERPRISE,PROFESSIONAL SERVICES,0060136000,RE (REGIONAL ENTERPRISE) LIMITED,"3,237.00",07/08/2019
COMMERCIAL,REGIONAL ENTERPRISE,OTHER SERVICES,0060136568,BOUYGUES E&S INFRASTRUCTURE UK LTD,"13,626.06",15/08/2019
COMMERCIAL,REGIONAL ENTERPRISE,GRANT PAYMENTS,0080028241,DOLPHIN MOBILITY LTD.,"3,170.00",12/08/2019
COMMERCIAL,REGIONAL ENTERPRISE,GRANT PAYMENTS,0080028313,DOLPHIN MOBILITY LTD.,"2,900.00",15/08/2019
COMMERCIAL,REGIONAL ENTERPRISE,GRANT PAYMENTS,0080028448,ARTHUR J. FERRYMAN ASSOCIATES,"3,387.60",20/08/2019
COMMERCIAL,REGIONAL ENTERPRISE,GRANT PAYMENTS,0080028210,SOUTH HERTFORDSHIRE,"5,053.00",12/08/2019
COMMERCIAL,REGIONAL ENTERPRISE,GRANT PAYMENTS,0080028446,EMS STAIRLIFTS,"6,750.00",29/08/2019
COMMERCIAL,REGIONAL ENTERPRISE,GRANT PAYMENTS,0080028312,ASTOR BANNERMAN LTD,"7,786.85",16/08/2019
COMMERCIAL,REGIONAL ENTERPRISE,GRANT PAYMENTS,0080027368,AMWELL CONSTRUCTION LTD,"6,109.00",01/08/2019
COMMERCIAL,REGIONAL ENTERPRISE,GRANT PAYMENTS,0080028365,AMWELL CONSTRUCTION LTD,"6,000.00",19/08/2019
COMMERCIAL,REGIONAL ENTERPRISE,GRANT PAYMENTS,0080028412,AMWELL CONSTRUCTION LTD,"10,949.00",19/08/2019
COMMERCIAL,REGIONAL ENTERPRISE,GRANT PAYMENTS,0080028342,B G BUILDING SOLUTIONS LTD,"12,000.00",15/08/2019
COMMERCIAL,REGIONAL ENTERPRISE,GRANT PAYMENTS,80028389,BERRY LODGE CHARTERED SURVEYOR,"2,004.75",16/08/2019
COMMERCIAL,REGIONAL ENTERPRISE,GRANT PAYMENTS,0080028179,REDACTED - PERSONAL DATA,"8,898.00",12/08/2019
COMMERCIAL,REGIONAL ENTERPRISE,GRANT PAYMENTS,0080028443,REDACTED - PERSONAL DATA,"8,085.00",20/08/2019
COMMERCIAL,REGIONAL ENTERPRISE,GRANT PAYMENTS,0080028213,DPBUILDERS DISABLEDADAPTATIONS,"13,760.00",12/08/2019
COMMERCIAL,REGIONAL ENTERPRISE,GRANT PAYMENTS,0080028391,DPBUILDERS DISABLEDADAPTATIONS,"13,747.00",19/08/2019
COMMERCIAL,REGIONAL ENTERPRISE,GRANT PAYMENTS,0080028314,REDACTED - PERSONAL DATA,"30,965.15",16/08/2019
COMMERCIAL,REGIONAL ENTERPRISE,OTHER SERVICES,0060104119,LONDON BUSES SERVICES LIMITED,-692.28,22/08/2019
COMMERCIAL,REGIONAL ENTERPRISE,OTHER SERVICES,0060135346,LONDON BUSES SERVICES LIMITED,-552.75,22/08/2019
COMMERCIAL,REGIONAL ENTERPRISE,OTHER SERVICES,0060137241,CONWAY AECOM LTD,"2,000.00",23/08/2019
COMMERCIAL,REGIONAL ENTERPRISE,OTHER SERVICES,0060137315,CONWAY AECOM LTD,"10,000.00",23/08/2019
COMMERCIAL,REGIONAL ENTERPRISE,OTHER SERVICES,0060117050,TRANSPORT FOR LONDON,"-4,960.00",01/08/2019
COMMERCIAL,REGIONAL ENTERPRISE,OTHER SERVICES,0060136498,CONWAY AECOM LTD,"30,077.00",15/08/2019
COMMERCIAL,REGIONAL ENTERPRISE,OTHER SERVICES,0060137235,CONWAY AECOM LTD,"6,356.20",28/08/2019
COMMERCIAL,REGIONAL ENTERPRISE,OTHER SERVICES,0060137237,CONWAY AECOM LTD,556.17,28/08/2019
COMMERCIAL,REGIONAL ENTERPRISE,OTHER SERVICES,0060136948,CONWAY AECOM LTD,"1,035.30",20/08/2019
COMMERCIAL,REGIONAL ENTERPRISE,OTHER SERVICES,0060136953,CONWAY AECOM LTD,"1,218.00",20/08/2019
COMMERCIAL,REGIONAL ENTERPRISE,OTHER SERVICES,0060136957,CONWAY AECOM LTD,604.80,20/08/2019
COMMERCIAL,REGIONAL ENTERPRISE,OTHER SERVICES,0060136958,CONWAY AECOM LTD,863.10,20/08/2019
COMMERCIAL,REGIONAL ENTERPRISE,OTHER SERVICES,0060136960,CONWAY AECOM LTD,176.40,20/08/2019
COMMERCIAL,REGIONAL ENTERPRISE,OTHER SERVICES,0060136962,CONWAY AECOM LTD,"1,161.30",20/08/2019
COMMERCIAL,REGIONAL ENTERPRISE,OTHER SERVICES,0060136964,CONWAY AECOM LTD,"1,446.90",20/08/2019
COMMERCIAL,REGIONAL ENTERPRISE,OTHER SERVICES,0060136965,CONWAY AECOM LTD,"2,068.50",20/08/2019
COMMERCIAL,REGIONAL ENTERPRISE,OTHER SERVICES,0060136971,CONWAY AECOM LTD,932.40,20/08/2019
COMMERCIAL,REGIONAL ENTERPRISE,OTHER SERVICES,0060136972,CONWAY AECOM LTD,"1,029.00",20/08/2019
COMMERCIAL,REGIONAL ENTERPRISE,OTHER SERVICES,0060136973,CONWAY AECOM LTD,"2,049.60",20/08/2019
COMMERCIAL,REGIONAL ENTERPRISE,OTHER SERVICES,0060136975,CONWAY AECOM LTD,"1,453.20",20/08/2019
COMMERCIAL,REGIONAL ENTERPRISE,OTHER SERVICES,0060136977,CONWAY AECOM LTD,553.35,20/08/2019
COMMERCIAL,REGIONAL ENTERPRISE,OTHER SERVICES,0060136978,CONWAY AECOM LTD,824.25,20/08/2019
COMMERCIAL,REGIONAL ENTERPRISE,OTHER SERVICES,0060136984,CONWAY AECOM LTD,"1,677.90",20/08/2019
COMMERCIAL,REGIONAL ENTERPRISE,OTHER SERVICES,0060136992,CONWAY AECOM LTD,"1,260.00",20/08/2019
COMMERCIAL,REGIONAL ENTERPRISE,OTHER SERVICES,0060136995,CONWAY AECOM LTD,808.50,20/08/2019
COMMERCIAL,REGIONAL ENTERPRISE,OTHER SERVICES,0060137000,CONWAY AECOM LTD,990.00,20/08/2019
COMMERCIAL,REGIONAL ENTERPRISE,OTHER SERVICES,0060137006,CONWAY AECOM LTD,"1,102.50",20/08/2019
COMMERCIAL,REGIONAL ENTERPRISE,OTHER SERVICES,0060137008,CONWAY AECOM LTD,907.20,20/08/2019
COMMERCIAL,REGIONAL ENTERPRISE,OTHER SERVICES,0060137010,CONWAY AECOM LTD,"2,239.65",20/08/2019
COMMERCIAL,REGIONAL ENTERPRISE,OTHER SERVICES,0060137012,CONWAY AECOM LTD,845.25,20/08/2019
COMMERCIAL,REGIONAL ENTERPRISE,OTHER SERVICES,0060137013,CONWAY AECOM LTD,262.00,20/08/2019
COMMERCIAL,REGIONAL ENTERPRISE,OTHER SERVICES,0060137021,CONWAY AECOM LTD,724.50,20/08/2019
COMMERCIAL,REGIONAL ENTERPRISE,OTHER SERVICES,0060137027,CONWAY AECOM LTD,832.65,20/08/2019
COMMERCIAL,REGIONAL ENTERPRISE,OTHER SERVICES,0060137032,CONWAY AECOM LTD,"1,008.00",20/08/2019
COMMERCIAL,REGIONAL ENTERPRISE,OTHER SERVICES,0060137035,CONWAY AECOM LTD,756.00,20/08/2019
COMMERCIAL,REGIONAL ENTERPRISE,OTHER SERVICES,0060137038,CONWAY AECOM LTD,"1,054.20",20/08/2019
COMMERCIAL,REGIONAL ENTERPRISE,OTHER SERVICES,0060137043,CONWAY AECOM LTD,770.70,20/08/2019
COMMERCIAL,REGIONAL ENTERPRISE,OTHER SERVICES,0060137051,CONWAY AECOM LTD,924.00,20/08/2019
COMMERCIAL,REGIONAL ENTERPRISE,OTHER SERVICES,0060137053,CONWAY AECOM LTD,911.40,20/08/2019
COMMERCIAL,REGIONAL ENTERPRISE,OTHER SERVICES,0060137056,CONWAY AECOM LTD,"1,083.60",20/08/2019
COMMERCIAL,REGIONAL ENTERPRISE,OTHER SERVICES,0060137061,CONWAY AECOM LTD,"1,029.00",20/08/2019
COMMERCIAL,REGIONAL ENTERPRISE,OTHER SERVICES,0060137065,CONWAY AECOM LTD,"1,071.00",20/08/2019
COMMERCIAL,REGIONAL ENTERPRISE,OTHER SERVICES,0060137069,CONWAY AECOM LTD,787.50,20/08/2019
COMMERCIAL,REGIONAL ENTERPRISE,OTHER SERVICES,0060137116,CONWAY AECOM LTD,302.40,22/08/2019
COMMERCIAL,REGIONAL ENTERPRISE,OTHER SERVICES,0060137030,POD POINT,"2,103.40",29/08/2019
COMMERCIAL,REGIONAL ENTERPRISE,OTHER SERVICES,0060120355,LONDON BUSES SERVICES LIMITED,"6,733.44",22/08/2019
COMMERCIAL,REGIONAL ENTERPRISE,OTHER SERVICES,0060123092,LONDON BUSES SERVICES LIMITED,"6,256.34",22/08/2019
COMMERCIAL,REGIONAL ENTERPRISE,OTHER SERVICES,0060136802,CYCLE CONFIDENT LTD,"30,591.05",29/08/2019
COMMERCIAL,REGIONAL ENTERPRISE,ADVERTISING,0060136758,TMP (UK) LTD,597.00,23/08/2019
COMMERCIAL,REGIONAL ENTERPRISE,ADVERTISING,0060132519,TMP (UK) LTD,772.50,16/08/2019
COMMERCIAL,REGIONAL ENTERPRISE,OTHER SERVICES,0060136435,CONWAY AECOM LTD,35.36,14/08/2019
COMMERCIAL,REGIONAL ENTERPRISE,OTHER SERVICES,0060136440,CONWAY AECOM LTD,42.96,14/08/2019
COMMERCIAL,REGIONAL ENTERPRISE,OTHER SERVICES,0060136443,CONWAY AECOM LTD,38.58,14/08/2019
COMMERCIAL,REGIONAL ENTERPRISE,OTHER SERVICES,0060136455,CONWAY AECOM LTD,161.03,14/08/2019
COMMERCIAL,REGIONAL ENTERPRISE,OTHER SERVICES,0060136486,CONWAY AECOM LTD,40.82,14/08/2019
COMMERCIAL,REGIONAL ENTERPRISE,OTHER SERVICES,0060136490,CONWAY AECOM LTD,437.28,14/08/2019
COMMERCIAL,REGIONAL ENTERPRISE,OTHER SERVICES,0060136506,CONWAY AECOM LTD,40.82,14/08/2019
COMMERCIAL,REGIONAL ENTERPRISE,OTHER SERVICES,0060136526,CONWAY AECOM LTD,38.58,14/08/2019
COMMERCIAL,REGIONAL ENTERPRISE,OTHER SERVICES,0060136618,CONWAY AECOM LTD,674.24,14/08/2019
COMMERCIAL,REGIONAL ENTERPRISE,OTHER SERVICES,0060136619,CONWAY AECOM LTD,770.03,14/08/2019
COMMERCIAL,REGIONAL ENTERPRISE,OTHER SERVICES,0060136657,CONWAY AECOM LTD,40.00,14/08/2019
COMMERCIAL,REGIONAL ENTERPRISE,ADVERTISING,0060136763,TMP (UK) LTD,664.50,16/08/2019
COMMERCIAL,REGIONAL ENTERPRISE,OTHER SERVICES,0060134670,CONWAY AECOM LTD,25.91,08/08/2019
COMMERCIAL,REGIONAL ENTERPRISE,OTHER SERVICES,0060134703,CONWAY AECOM LTD,70.76,08/08/2019
COMMERCIAL,REGIONAL ENTERPRISE,EQUIPMENT AND MATERIALS PURCHA,0060135047,CONWAY AECOM LTD,"1,342.38",08/08/2019
COMMERCIAL,REGIONAL ENTERPRISE,OTHER SERVICES,0060135113,CONWAY AECOM LTD,"22,845.90",08/08/2019
COMMERCIAL,REGIONAL ENTERPRISE,OTHER SERVICES,0060136570,CONWAY AECOM LTD,101.80,20/08/2019
COMMERCIAL,REGIONAL ENTERPRISE,OTHER SERVICES,0060136586,CONWAY AECOM LTD,212.17,15/08/2019
COMMERCIAL,REGIONAL ENTERPRISE,OTHER SERVICES,0060136642,CONWAY AECOM LTD,"16,218.09",14/08/2019
COMMERCIAL,REGIONAL ENTERPRISE,OTHER SERVICES,0060135030,BOUYGUES E&S INFRASTRUCTURE UK LTD,"1,789.18",08/08/2019
COMMERCIAL,REGIONAL ENTERPRISE,EQUIPMENT AND MATERIALS PURCHA,0060136487,BOUYGUES E&S INFRASTRUCTURE UK LTD,"3,997.00",15/08/2019
COMMERCIAL,REGIONAL ENTERPRISE,OTHER SERVICES,0060136516,BOUYGUES E&S INFRASTRUCTURE UK LTD,"8,316.48",22/08/2019
COMMERCIAL,REGIONAL ENTERPRISE,OTHER SERVICES,0060137549,BOUYGUES E&S INFRASTRUCTURE UK LTD,"3,459.24",28/08/2019
COMMERCIAL,REGIONAL ENTERPRISE,CAPITAL CONSTRUCTION AND WORKS,0060137600,BOUYGUES E&S INFRASTRUCTURE UK LTD,"11,169.45",29/08/2019
COMMERCIAL,REGIONAL ENTERPRISE,CAPITAL CONSTRUCTION AND WORKS,0060137662,BOUYGUES E&S INFRASTRUCTURE UK LTD,"1,086.75",29/08/2019
COMMERCIAL,REGIONAL ENTERPRISE,OTHER SERVICES,0060134689,BUSH WHEELER SERVICES LIMITED,"32,610.00",01/08/2019
COMMERCIAL,REGIONAL ENTERPRISE,OTHER SERVICES,0060134678,CONWAY AECOM LTD,"8,684.45",22/08/2019
COMMERCIAL,REGIONAL ENTERPRISE,OTHER SERVICES,0060134681,CONWAY AECOM LTD,"14,216.12",01/08/2019
COMMERCIAL,REGIONAL ENTERPRISE,OTHER SERVICES,0060137024,CONWAY AECOM LTD,"12,280.04",28/08/2019
COMMERCIAL,REGIONAL ENTERPRISE,OTHER SERVICES,0060137091,CONWAY AECOM LTD,"59,625.10",22/08/2019
COMMERCIAL,REGIONAL ENTERPRISE,OTHER SERVICES,0060137098,CONWAY AECOM LTD,"81,236.92",28/08/2019
COMMERCIAL,REGIONAL ENTERPRISE,OTHER SERVICES,0060137110,CONWAY AECOM LTD,"85,254.65",28/08/2019
COMMERCIAL,REGIONAL ENTERPRISE,OTHER SERVICES,0060137128,CONWAY AECOM LTD,"84,187.33",28/08/2019
COMMERCIAL,REGIONAL ENTERPRISE,OTHER SERVICES,0060134835,CONWAY AECOM LTD,"10,928.66",01/08/2019
COMMERCIAL,REGIONAL ENTERPRISE,OTHER SERVICES,0060134841,CONWAY AECOM LTD,"9,136.98",01/08/2019
COMMERCIAL,REGIONAL ENTERPRISE,OTHER SERVICES,0060134861,CONWAY AECOM LTD,"13,098.82",01/08/2019
COMMERCIAL,REGIONAL ENTERPRISE,OTHER SERVICES,0060134901,CONWAY AECOM LTD,"16,960.82",01/08/2019
COMMERCIAL,REGIONAL ENTERPRISE,OTHER SERVICES,0060134904,CONWAY AECOM LTD,"13,499.50",01/08/2019
COMMERCIAL,REGIONAL ENTERPRISE,OTHER SERVICES,0060134993,CONWAY AECOM LTD,"9,475.71",01/08/2019
COMMERCIAL,REGIONAL ENTERPRISE,OTHER SERVICES,0060136605,CONWAY AECOM LTD,"34,781.76",14/08/2019
COMMERCIAL,REGIONAL ENTERPRISE,PROFESSIONAL SERVICES,0060136177,BLAKEDOWN LANDSCAPE (SE) LTD,"257,618.25",12/08/2019
COMMERCIAL,REGIONAL ENTERPRISE,EQUIPMENT AND MATERIALS PURCHA,0060131544,TAYLORMADE CASTINGS LTD,"5,950.00",22/08/2019
COMMERCIAL,REGIONAL ENTERPRISE,EQUIPMENT AND MATERIALS PURCHA,0060137396,TAYLORMADE CASTINGS LTD,"4,900.00",29/08/2019
COMMERCIAL,REGIONAL ENTERPRISE,EQUIPMENT AND MATERIALS PURCHA,0060137521,TAYLORMADE CASTINGS LTD,"5,750.00",28/08/2019
COMMERCIAL,REGIONAL ENTERPRISE,PROFESSIONAL SERVICES,0060137187,TRANSPORT FOR LONDON,82.00,23/08/2019
COMMERCIAL,REGIONAL ENTERPRISE,CONSULTANTS FEES,0060137236,EVERSHEDS LLP,"1,798.47",23/08/2019
COMMERCIAL,REGIONAL ENTERPRISE,CONSULTANTS FEES,0060137240,EVERSHEDS LLP,"8,320.45",23/08/2019
COMMERCIAL,REGIONAL ENTERPRISE,CONSULTANTS FEES,0060098149,NETWORK RAIL INFRASTRUCTURELTD,"358,121.49",15/08/2019
COMMERCIAL,REGIONAL ENTERPRISE,CONSULTANTS FEES,0060135433,NETWORK RAIL INFRASTRUCTURELTD,"7,576.48",16/08/2019
COMMERCIAL,REGIONAL ENTERPRISE,CONSULTANTS FEES,0060136270,NETWORK RAIL INFRASTRUCTURELTD,"8,444.41",22/08/2019
COMMERCIAL,REGIONAL ENTERPRISE,CONSULTANTS FEES,0060136335,NETWORK RAIL INFRASTRUCTURELTD,"32,512.09",16/08/2019
COMMERCIAL,REGIONAL ENTERPRISE,CONSULTANTS FEES,0060137058,NETWORK RAIL INFRASTRUCTURELTD,"2,340,069.69",22/08/2019
COMMERCIAL,REGIONAL ENTERPRISE,CONSULTANTS FEES,0060137067,NETWORK RAIL INFRASTRUCTURELTD,374.50,20/08/2019
COMMERCIAL,REGIONAL ENTERPRISE,RE SERVICES CONTRACT PAYMENT,0060130914,RE (REGIONAL ENTERPRISE) LIMITED,"233,535.82",09/08/2019
COMMERCIAL,REGIONAL ENTERPRISE,RE SERVICES CONTRACT PAYMENT,0060136990,RE (REGIONAL ENTERPRISE) LIMITED,"800,000.00",27/08/2019
COMMERCIAL,REGIONAL ENTERPRISE,EQUIPMENT AND MATERIALS PURCHA,0060134432,CONWAY AECOM LTD,"84,231.58",08/08/2019
COMMERCIAL,REGIONAL ENTERPRISE,PROFESSIONAL SERVICES,0060137234,AECOM INFRASTRUCTURE & ENVIRONMENT UK LT,"31,436.86",23/08/2019
COMMERCIAL,REGIONAL ENTERPRISE,EQUIPMENT AND MATERIALS PURCHA,0060137217,JOHN GRAHAM CONSTRUCTION LTD,"534,633.25",23/08/2019
COMMERCIAL,REGIONAL ENTERPRISE,PROFESSIONAL SERVICES,0060135144,EMERGENT VERNACULAR ARCHITECTURE LTD,"8,800.56",15/08/2019
CORPORATE ACCOUNTING,CORPORATE ACCOUNTING,OTHER LOCAL AUTHORITIES - THIR,0080028706,GLA LEVIES,"227,824.00",30/08/2019
CORPORATE ACCOUNTING,CORPORATE ACCOUNTING,OTHER LOCAL AUTHORITIES - THIR,1000024642,GREATER LONDON AUTHORITY," 1,519,940.00 ",19/08/2019
CORPORATE ACCOUNTING,CORPORATE ACCOUNTING,OTHER LOCAL AUTHORITIES - THIR,1000024380,GREATER LONDON AUTHORITY," 4,665,343.56 ",07/08/2019
CORPORATE ACCOUNTING,CORPORATE ACCOUNTING,GOVERNMENT DEPARTMENTS - THIRD,0080027845,DEPARTMENT FOR COMMUNITIES & LOCAL GOV.,"438,113.63",08/08/2019
CORPORATE ACCOUNTING,CORPORATE ACCOUNTING,GRANT PAYMENTS,0080027995,NATIONAL RESOURCE CENTRE FOR SUPPLEMENT,"2,498.00",12/08/2019
CORPORATE ACCOUNTING,CORPORATE ACCOUNTING,GRANT PAYMENTS,0080028063,BRIDGING THE GAP CIC,"2,880.00",15/08/2019
CORPORATE ACCOUNTING,CORPORATE ACCOUNTING,GRANT PAYMENTS,0080027800,DISABILITY SPORTS COACH,"2,300.00",12/08/2019
CORPORATE ACCOUNTING,CORPORATE ACCOUNTING,OTHER AGENCIES - THIRD PARTY P,0060137109,THE BARNETGROUP LIMITED,"91,666.67",21/08/2019
CORPORATE ACCOUNTING,CORPORATE ACCOUNTING,OTHER TRANSFER PAYMENTS TO SOC,0080028065,WIRECARD (FS ONGOING 2040881670310,"18,536.45",05/08/2019
CORPORATE ACCOUNTING,CORPORATE ACCOUNTING,CONSULTANTS FEES,0060137772,AXIOM STONE SOLICITORS,514.80,29/08/2019
DELIVERY UNITS,ADULTS AND HEALTH,VOLUNTARY ASSOCIATIONS - THIRD,0050002812,SANCTUARY HOUSING ASSOCIATION,"5,812.34",19/08/2019
DELIVERY UNITS,ADULTS AND HEALTH,VOLUNTARY ASSOCIATIONS - THIRD,0050002804,ELEANOR PALMER TRUST NO 2 A/C.,486.50,19/08/2019
DELIVERY UNITS,ADULTS AND HEALTH,VOLUNTARY ASSOCIATIONS - THIRD,0050002801,BARNET MENCAP,"11,142.65",19/08/2019
DELIVERY UNITS,ADULTS AND HEALTH,VOLUNTARY ASSOCIATIONS - THIRD,0050002803,CHRISTIAN ACTION (ENFIELD),365.80,19/08/2019
DELIVERY UNITS,ADULTS AND HEALTH,VOLUNTARY ASSOCIATIONS - THIRD,0050002811,LINEN & WOOLLEN DRAPERS COTTAGE,730.11,19/08/2019
DELIVERY UNITS,ADULTS AND HEALTH,VOLUNTARY ASSOCIATIONS - THIRD,0050002805,HABINTEG HOUSING ASSOCIATION,446.37,19/08/2019
DELIVERY UNITS,ADULTS AND HEALTH,VOLUNTARY ASSOCIATIONS - THIRD,0050002809,ORCHARD HOUSING ASSOCIATION,196.62,16/08/2019
DELIVERY UNITS,ADULTS AND HEALTH,VOLUNTARY ASSOCIATIONS - THIRD,0050002810,ST PANCRAS & HUMANIST H.A.,661.55,19/08/2019
DELIVERY UNITS,ADULTS AND HEALTH,OTHER SERVICES,0050002814,WILLOW HOUSING & CARE LTD.,711.38,19/08/2019
DELIVERY UNITS,ADULTS AND HEALTH,VOLUNTARY ASSOCIATIONS - THIRD,0050002806,JEWISH COMMUNITY HOUSING ASSOCIATIO,568.17,19/08/2019
DELIVERY UNITS,ADULTS AND HEALTH,VOLUNTARY ASSOCIATIONS - THIRD,0050002808,METROPOLITAN SUPPORT TRUST,"5,794.20",19/08/2019
DELIVERY UNITS,ADULTS AND HEALTH,VOLUNTARY ASSOCIATIONS - THIRD,0050002813,SCOTSCARE,361.52,19/08/2019
DELIVERY UNITS,ADULTS AND HEALTH,EQUIPMENT AND MATERIALS PURCHA,0060136955,MILLBROOK HEALTHCARE LTD,"37,507.78",20/08/2019
DELIVERY UNITS,ADULTS AND HEALTH,VOLUNTARY ASSOCIATIONS - THIRD,0050002807,MIDDLESEX ASSOCIATION  FOR THE BLIN,"2,394.00",19/08/2019
DELIVERY UNITS,ADULTS AND HEALTH,VOLUNTARY ASSOCIATIONS - THIRD,0050002802,BARNET MENCAP,"28,583.00",19/08/2019
DELIVERY UNITS,ADULTS AND HEALTH,PROFESSIONAL SERVICES,0060135602,BARNET CITIZENS ADVICE BUREAU,"87,955.25",02/08/2019
DELIVERY UNITS,ADULTS AND HEALTH,VOLUNTARY ASSOCIATIONS - THIRD,0050002800,AGE CONCERN,"58,333.00",19/08/2019
DELIVERY UNITS,ADULTS AND HEALTH,HEALTH AUTHORITIES - THIRD PAR,0060136947,THE BARNETGROUP LIMITED,"68,667.59",20/08/2019
DELIVERY UNITS,ADULTS AND HEALTH,HEALTH AUTHORITIES - THIRD PAR,0060137049,THE BARNETGROUP LIMITED,"51,337.59",20/08/2019
DELIVERY UNITS,ADULTS AND HEALTH,OTHER SERVICES,0060137260,POHWER,"6,780.00",27/08/2019
DELIVERY UNITS,ADULTS AND HEALTH,OTHER SERVICES,0060135772,COMMUNITY BARNET,"42,666.68",08/08/2019
DELIVERY UNITS,ADULTS AND HEALTH,OTHER SERVICES,0060136247,COMMUNITY BARNET,"10,666.67",14/08/2019
DELIVERY UNITS,ADULTS AND HEALTH,EQUIPMENT AND MATERIALS PURCHA,0060133395,BACK CARE SOLUTIONS LIMITED,890.65,01/08/2019
DELIVERY UNITS,ADULTS AND HEALTH,TRAVELLING EXPENSES,0060136260,M1 EXPRESS CAR SERVICES,181.00,09/08/2019
DELIVERY UNITS,ADULTS AND HEALTH,TRAVELLING EXPENSES,0060136315,M1 EXPRESS CAR SERVICES,87.00,09/08/2019
DELIVERY UNITS,ADULTS AND HEALTH,OTHER SERVICES,0060134003,D.A. LANGUAGES LTD,8.32,23/08/2019
DELIVERY UNITS,ADULTS AND HEALTH,OTHER SERVICES,0060134477,D.A. LANGUAGES LTD,27.00,01/08/2019
DELIVERY UNITS,ADULTS AND HEALTH,OTHER SERVICES,0060134504,D.A. LANGUAGES LTD,71.50,01/08/2019
DELIVERY UNITS,ADULTS AND HEALTH,OTHER SERVICES,0060134638,D.A. LANGUAGES LTD,98.00,01/08/2019
DELIVERY UNITS,ADULTS AND HEALTH,OTHER SERVICES,0060137597,ACTION FIRST RECRUITMENT,390.00,29/08/2019
DELIVERY UNITS,ADULTS AND HEALTH,TRANSPORT HIRE CHARGES,0060135649,BRENT COURIERS LIMITED,150.00,02/08/2019
DELIVERY UNITS,ADULTS AND HEALTH,OTHER TRANSFER PAYMENTS TO SOC,0060131892,STAPLES UK LTD,34.50,16/08/2019
DELIVERY UNITS,ADULTS AND HEALTH,OTHER SERVICES,80028035,UTILTIY DEBT COLLECTOR,179.65,02/08/2019
DELIVERY UNITS,ADULTS AND HEALTH,ELECTRICITY,0060136146,KENT COUNTY COUNCIL (KCS),166.56,15/08/2019
DELIVERY UNITS,ADULTS AND HEALTH,STATIONERY,0060136230,KENT COUNTY COUNCIL (KCS),126.38,08/08/2019
DELIVERY UNITS,ADULTS AND HEALTH,GAS,0060137623,KENT COUNTY COUNCIL (KCS),112.33,29/08/2019
DELIVERY UNITS,ADULTS AND HEALTH,STATIONERY,0060136245,HERTFORDSHIRE SUPPLIES   COUNTY CO,90.90,09/08/2019
DELIVERY UNITS,ADULTS AND HEALTH,GENERAL OFFICE EXPENSES,0060136740,HERTFORDSHIRE SUPPLIES   COUNTY CO,39.60,16/08/2019
DELIVERY UNITS,ADULTS AND HEALTH,RUBBISH COLLECTION,0060136196,BPR GROUP EUROPE LTD,174.00,20/08/2019
DELIVERY UNITS,ADULTS AND HEALTH,RUBBISH COLLECTION,0060137540,BPR GROUP EUROPE LTD,28.00,28/08/2019
DELIVERY UNITS,ADULTS AND HEALTH,FOOD COSTS,0060135995,MULLER MILK & INGREDIENTS,0.88,16/08/2019
DELIVERY UNITS,ADULTS AND HEALTH,FOOD COSTS,0060135996,MULLER MILK & INGREDIENTS,0.88,06/08/2019
DELIVERY UNITS,ADULTS AND HEALTH,FOOD COSTS,0060136861,MULLER MILK & INGREDIENTS,0.88,30/08/2019
DELIVERY UNITS,ADULTS AND HEALTH,FOOD COSTS,0060137525,MULLER MILK & INGREDIENTS,0.88,30/08/2019
DELIVERY UNITS,ADULTS AND HEALTH,FOOD COSTS,0060137649,MULLER MILK & INGREDIENTS,0.88,30/08/2019
DELIVERY UNITS,ADULTS AND HEALTH,WATER SERVICES,0060136236,CASTLE WATER LTD,14.92,08/08/2019
DELIVERY UNITS,ADULTS AND HEALTH,TRANSLATION EXP / INTERPRET,0060134135,D.A. LANGUAGES LTD,22.00,01/08/2019
DELIVERY UNITS,ADULTS AND HEALTH,STATIONERY,0060133264,STAPLES UK LTD,31.23,15/08/2019
DELIVERY UNITS,ADULTS AND HEALTH,GROUNDS MAINTENANCE,0060136214,REDACTED - PERSONAL DATA,100.00,08/08/2019
DELIVERY UNITS,ADULTS AND HEALTH,TRAINING,0060135632,MICHAEL MANDELSTAM LTD,850.00,01/08/2019
DELIVERY UNITS,ADULTS AND HEALTH,TRAINING,0060135986,HUNTERSJOY LTD,"2,199.60",28/08/2019
DELIVERY UNITS,ADULTS AND HEALTH,OTHER SERVICES,0060137383,UNIVERSITY OF HERTFORDSHIRE,680.00,29/08/2019
DELIVERY UNITS,ADULTS AND HEALTH,OTHER SERVICES,0060136346,NORFOLK COUNTY COUNCIL,500.00,12/08/2019
DELIVERY UNITS,ADULTS AND HEALTH,OTHER TRANSFER PAYMENTS TO SOC,0060127912,HAS TECHNOLOGY LTD,"5,693.83",19/08/2019
DELIVERY UNITS,ADULTS AND HEALTH,OTHER TRANSFER PAYMENTS TO SOC,0060129896,HAS TECHNOLOGY LTD,"5,599.86",19/08/2019
DELIVERY UNITS,ADULTS AND HEALTH,OTHER TRANSFER PAYMENTS TO SOC,0060132150,HAS TECHNOLOGY LTD,"5,202.73",19/08/2019
DELIVERY UNITS,ADULTS AND HEALTH,OTHER TRANSFER PAYMENTS TO SOC,0060136472,HAS TECHNOLOGY LTD,"5,286.03",14/08/2019
DELIVERY UNITS,ADULTS AND HEALTH,STATIONERY,0060133956,STAPLES UK LTD,19.05,01/08/2019
DELIVERY UNITS,ADULTS AND HEALTH,STATIONERY,0060134144,STAPLES UK LTD,13.96,01/08/2019
DELIVERY UNITS,ADULTS AND HEALTH,PUBLICATIONS,0060137832,GOOD IMPRESSIONS (LONDON) LIMITED,120.00,29/08/2019
DELIVERY UNITS,ADULTS AND HEALTH,VENUE HIRE,0060136583,VENUE SPACE HIRE,950.00,14/08/2019
DELIVERY UNITS,ADULTS AND HEALTH,OTHER SERVICES,0060137539,REDACTED - PERSONAL DATA,"4,800.00",29/08/2019
DELIVERY UNITS,ADULTS AND HEALTH,OTHER SERVICES,0060137690,REDACTED - PERSONAL DATA,"1,200.00",29/08/2019
DELIVERY UNITS,ADULTS AND HEALTH,OTHER SERVICES,0060134709,D.A. LANGUAGES LTD,44.00,01/08/2019
DELIVERY UNITS,ADULTS AND HEALTH,TRANSLATION EXP / INTERPRET,0060134091,D.A. LANGUAGES LTD,98.00,01/08/2019
DELIVERY UNITS,ADULTS AND HEALTH,TRANSLATION EXP / INTERPRET,0060134118,D.A. LANGUAGES LTD,49.00,01/08/2019
DELIVERY UNITS,ADULTS AND HEALTH,TRANSLATION EXP / INTERPRET,0060134125,D.A. LANGUAGES LTD,22.20,01/08/2019
DELIVERY UNITS,ADULTS AND HEALTH,TRANSLATION EXP / INTERPRET,0060134160,D.A. LANGUAGES LTD,98.00,01/08/2019
DELIVERY UNITS,ADULTS AND HEALTH,TRANSLATION EXP / INTERPRET,0060134182,D.A. LANGUAGES LTD,98.00,01/08/2019
DELIVERY UNITS,ADULTS AND HEALTH,TRANSLATION EXP / INTERPRET,0060134435,D.A. LANGUAGES LTD,33.00,01/08/2019
DELIVERY UNITS,ADULTS AND HEALTH,TRANSLATION EXP / INTERPRET,0060134457,D.A. LANGUAGES LTD,22.00,01/08/2019
DELIVERY UNITS,ADULTS AND HEALTH,TRANSLATION EXP / INTERPRET,0060134469,D.A. LANGUAGES LTD,33.00,01/08/2019
DELIVERY UNITS,ADULTS AND HEALTH,TRANSLATION EXP / INTERPRET,0060134498,D.A. LANGUAGES LTD,22.00,01/08/2019
DELIVERY UNITS,ADULTS AND HEALTH,TRANSLATION EXP / INTERPRET,0060134508,D.A. LANGUAGES LTD,22.00,01/08/2019
DELIVERY UNITS,ADULTS AND HEALTH,OTHER TRANSFER PAYMENTS TO SOC,0060136283,ST JOHN AMBULANCE (SAC),211.67,09/08/2019
DELIVERY UNITS,ADULTS AND HEALTH,OTHER SERVICES,0060135729,ANGEL SPRINGS LTD,26.46,02/08/2019
DELIVERY UNITS,ADULTS AND HEALTH,OTHER SERVICES,0060135762,ANGEL SPRINGS LTD,8.82,02/08/2019
DELIVERY UNITS,ADULTS AND HEALTH,OTHER SERVICES,0060135788,ANGEL SPRINGS LTD,18.76,02/08/2019
DELIVERY UNITS,ADULTS AND HEALTH,TRANSLATION EXP / INTERPRET,0060134172,D.A. LANGUAGES LTD,27.00,01/08/2019
DELIVERY UNITS,ADULTS AND HEALTH,TRANSLATION EXP / INTERPRET,0060134181,D.A. LANGUAGES LTD,27.50,01/08/2019
DELIVERY UNITS,ADULTS AND HEALTH,TRANSLATION EXP / INTERPRET,0060134503,D.A. LANGUAGES LTD,54.00,01/08/2019
DELIVERY UNITS,ADULTS AND HEALTH,TRANSLATION EXP / INTERPRET,0060136518,D.A. LANGUAGES LTD,120.87,14/08/2019
DELIVERY UNITS,ADULTS AND HEALTH,TRANSLATION EXP / INTERPRET,0060136522,D.A. LANGUAGES LTD,54.00,22/08/2019
DELIVERY UNITS,ADULTS AND HEALTH,TRANSLATION EXP / INTERPRET,0060136675,D.A. LANGUAGES LTD,44.00,16/08/2019
DELIVERY UNITS,ADULTS AND HEALTH,TRANSLATION EXP / INTERPRET,0060136701,D.A. LANGUAGES LTD,3.64,29/08/2019
DELIVERY UNITS,ADULTS AND HEALTH,TRANSLATION EXP / INTERPRET,0060136705,D.A. LANGUAGES LTD,27.00,16/08/2019
DELIVERY UNITS,ADULTS AND HEALTH,OTHER TRANSFER PAYMENTS TO SOC,0060130970,KORU MEDICAL LTD,"1,511.28",05/08/2019
DELIVERY UNITS,ADULTS AND HEALTH,OTHER TRANSFER PAYMENTS TO SOC,0060132400,KORU MEDICAL LTD,"1,835.67",05/08/2019
DELIVERY UNITS,ADULTS AND HEALTH,OTHER TRANSFER PAYMENTS TO SOC,0060134269,KORU MEDICAL LTD,"2,023.88",05/08/2019
DELIVERY UNITS,ADULTS AND HEALTH,OTHER TRANSFER PAYMENTS TO SOC,0060135501,KORU MEDICAL LTD,"2,514.45",05/08/2019
DELIVERY UNITS,ADULTS AND HEALTH,OTHER TRANSFER PAYMENTS TO SOC,0010015302,AKRAS SOLUTIONS LIMITED,"5,340.66",09/08/2019
DELIVERY UNITS,ADULTS AND HEALTH,OTHER TRANSFER PAYMENTS TO SOC,0060136010,AKRAS SOLUTIONS LIMITED,"3,059.15",08/08/2019
DELIVERY UNITS,ADULTS AND HEALTH,OTHER TRANSFER PAYMENTS TO SOC,0060136076,AKRAS SOLUTIONS LIMITED,"2,691.72",08/08/2019
DELIVERY UNITS,ADULTS AND HEALTH,OTHER TRANSFER PAYMENTS TO SOC,0060135629,AISA MEDICAL LTD,174.05,16/08/2019
DELIVERY UNITS,ADULTS AND HEALTH,OTHER TRANSFER PAYMENTS TO SOC,0060137451,AISA MEDICAL LTD,173.37,29/08/2019
DELIVERY UNITS,ADULTS AND HEALTH,OTHER TRANSFER PAYMENTS TO SOC,0060137491,AISA MEDICAL LTD,179.78,29/08/2019
DELIVERY UNITS,ADULTS AND HEALTH,OTHER TRANSFER PAYMENTS TO SOC,0060137498,AISA MEDICAL LTD,175.38,29/08/2019
DELIVERY UNITS,ADULTS AND HEALTH,OTHER TRANSFER PAYMENTS TO SOC,0060137518,AISA MEDICAL LTD,173.74,29/08/2019
DELIVERY UNITS,ADULTS AND HEALTH,OTHER TRANSFER PAYMENTS TO SOC,0060137562,AISA MEDICAL LTD,178.88,29/08/2019
DELIVERY UNITS,ADULTS AND HEALTH,OTHER TRANSFER PAYMENTS TO SOC,0060137569,AISA MEDICAL LTD,177.23,29/08/2019
DELIVERY UNITS,ADULTS AND HEALTH,OTHER TRANSFER PAYMENTS TO SOC,0060137572,AISA MEDICAL LTD,179.46,29/08/2019
DELIVERY UNITS,ADULTS AND HEALTH,OTHER TRANSFER PAYMENTS TO SOC,0060137577,AISA MEDICAL LTD,174.27,29/08/2019
DELIVERY UNITS,ADULTS AND HEALTH,OTHER TRANSFER PAYMENTS TO SOC,0060137630,AISA MEDICAL LTD,174.37,29/08/2019
DELIVERY UNITS,ADULTS AND HEALTH,OTHER TRANSFER PAYMENTS TO SOC,0060137655,AISA MEDICAL LTD,174.27,29/08/2019
DELIVERY UNITS,ADULTS AND HEALTH,OTHER TRANSFER PAYMENTS TO SOC,0060137659,AISA MEDICAL LTD,173.37,29/08/2019
DELIVERY UNITS,ADULTS AND HEALTH,OTHER TRANSFER PAYMENTS TO SOC,0060137665,AISA MEDICAL LTD,175.59,29/08/2019
DELIVERY UNITS,ADULTS AND HEALTH,OTHER TRANSFER PAYMENTS TO SOC,0060137666,AISA MEDICAL LTD,176.17,29/08/2019
DELIVERY UNITS,ADULTS AND HEALTH,OTHER TRANSFER PAYMENTS TO SOC,0060137672,AISA MEDICAL LTD,175.06,29/08/2019
DELIVERY UNITS,ADULTS AND HEALTH,OTHER TRANSFER PAYMENTS TO SOC,0060137712,AISA MEDICAL LTD,179.20,29/08/2019
DELIVERY UNITS,ADULTS AND HEALTH,OTHER TRANSFER PAYMENTS TO SOC,0060137836,AISA MEDICAL LTD,176.76,29/08/2019
DELIVERY UNITS,ADULTS AND HEALTH,OTHER TRANSFER PAYMENTS TO SOC,0060135305,PEACEABLE HABITATION LTD,641.04,15/08/2019
DELIVERY UNITS,ADULTS AND HEALTH,OTHER TRANSFER PAYMENTS TO SOC,0060137372,PEACEABLE HABITATION LTD,802.92,28/08/2019
DELIVERY UNITS,ADULTS AND HEALTH,TRANSLATION EXP / INTERPRET,0060134098,D.A. LANGUAGES LTD,27.00,01/08/2019
DELIVERY UNITS,ADULTS AND HEALTH,TRANSLATION EXP / INTERPRET,0060134194,D.A. LANGUAGES LTD,27.00,01/08/2019
DELIVERY UNITS,ADULTS AND HEALTH,OTHER TRANSFER PAYMENTS TO SOC,0010015295,AIDAN JARVIS-INDEPENDENT  BEST INTEREST,282.80,05/08/2019
DELIVERY UNITS,ADULTS AND HEALTH,OTHER TRANSFER PAYMENTS TO SOC,0060136517,HENDERSON AMANDA LIMITED,"1,050.00",14/08/2019
DELIVERY UNITS,ADULTS AND HEALTH,CONSULTANTS FEES,0060135555,MOTT MACDONALD LTD/CAMBRIDGE EDUCATION,127.50,29/08/2019
DELIVERY UNITS,ADULTS AND HEALTH,OTHER SERVICES,0060137590,AGE CONCERN,640.00,29/08/2019
DELIVERY UNITS,ADULTS AND HEALTH,OTHER AGENCIES - THIRD PARTY P,0090189555,NIGHTINGALE HOUSE,"2,952.35",22/08/2019
DELIVERY UNITS,ADULTS AND HEALTH,OTHER AGENCIES - THIRD PARTY P,0090185912,JEWISH CARE,"3,311.70",06/08/2019
DELIVERY UNITS,ADULTS AND HEALTH,OTHER AGENCIES - THIRD PARTY P,0090185913,JEWISH CARE,"3,311.70",06/08/2019
DELIVERY UNITS,ADULTS AND HEALTH,OTHER AGENCIES - THIRD PARTY P,0090185916,JEWISH CARE,787.69,06/08/2019
DELIVERY UNITS,ADULTS AND HEALTH,OTHER AGENCIES - THIRD PARTY P,0090185930,JEWISH CARE,"2,976.15",06/08/2019
DELIVERY UNITS,ADULTS AND HEALTH,OTHER AGENCIES - THIRD PARTY P,0090185933,JEWISH CARE,"3,311.70",06/08/2019
DELIVERY UNITS,ADULTS AND HEALTH,OTHER AGENCIES - THIRD PARTY P,0090185950,JEWISH CARE,"3,012.85",06/08/2019
DELIVERY UNITS,ADULTS AND HEALTH,OTHER AGENCIES - THIRD PARTY P,0090185951,JEWISH CARE,"3,012.85",06/08/2019
DELIVERY UNITS,ADULTS AND HEALTH,OTHER AGENCIES - THIRD PARTY P,0090185958,JEWISH CARE,"16,751.70",06/08/2019
DELIVERY UNITS,ADULTS AND HEALTH,OTHER AGENCIES - THIRD PARTY P,0090185963,JEWISH CARE,"3,311.70",06/08/2019
DELIVERY UNITS,ADULTS AND HEALTH,OTHER AGENCIES - THIRD PARTY P,0090185973,JEWISH CARE,"3,311.70",06/08/2019
DELIVERY UNITS,ADULTS AND HEALTH,OTHER AGENCIES - THIRD PARTY P,0090185974,JEWISH CARE,"3,311.70",06/08/2019
DELIVERY UNITS,ADULTS AND HEALTH,OTHER AGENCIES - THIRD PARTY P,0090185975,JEWISH CARE,"3,012.85",06/08/2019
DELIVERY UNITS,ADULTS AND HEALTH,OTHER AGENCIES - THIRD PARTY P,0090185977,JEWISH CARE,"3,311.70",06/08/2019
DELIVERY UNITS,ADULTS AND HEALTH,OTHER AGENCIES - THIRD PARTY P,0090185982,JEWISH CARE,"3,012.85",06/08/2019
DELIVERY UNITS,ADULTS AND HEALTH,OTHER AGENCIES - THIRD PARTY P,0090185992,JEWISH CARE,"3,012.85",06/08/2019
DELIVERY UNITS,ADULTS AND HEALTH,OTHER AGENCIES - THIRD PARTY P,0090185994,JEWISH CARE,"3,012.85",06/08/2019
DELIVERY UNITS,ADULTS AND HEALTH,OTHER AGENCIES - THIRD PARTY P,0090185999,JEWISH CARE,"3,012.85",06/08/2019
DELIVERY UNITS,ADULTS AND HEALTH,OTHER AGENCIES - THIRD PARTY P,0090186008,JEWISH CARE,"4,362.05",06/08/2019
DELIVERY UNITS,ADULTS AND HEALTH,OTHER AGENCIES - THIRD PARTY P,0090186010,JEWISH CARE,"3,012.85",06/08/2019
DELIVERY UNITS,ADULTS AND HEALTH,OTHER AGENCIES - THIRD PARTY P,0090186016,JEWISH CARE,"3,012.85",06/08/2019
DELIVERY UNITS,ADULTS AND HEALTH,OTHER AGENCIES - THIRD PARTY P,0090186017,JEWISH CARE,"3,311.70",06/08/2019
DELIVERY UNITS,ADULTS AND HEALTH,OTHER AGENCIES - THIRD PARTY P,0090186021,JEWISH CARE,"3,012.85",06/08/2019
DELIVERY UNITS,ADULTS AND HEALTH,OTHER AGENCIES - THIRD PARTY P,0090189365,FERNBANK NURSING HOME.,"2,507.90",22/08/2019
DELIVERY UNITS,ADULTS AND HEALTH,OTHER AGENCIES - THIRD PARTY P,0090189366,FERNBANK NURSING HOME.,"2,507.90",22/08/2019
DELIVERY UNITS,ADULTS AND HEALTH,OTHER AGENCIES - THIRD PARTY P,0090189367,FERNBANK NURSING HOME.,"2,759.93",22/08/2019
DELIVERY UNITS,ADULTS AND HEALTH,OTHER AGENCIES - THIRD PARTY P,0090189369,FERNBANK NURSING HOME.,"2,759.93",22/08/2019
DELIVERY UNITS,ADULTS AND HEALTH,OTHER AGENCIES - THIRD PARTY P,0090189370,FERNBANK NURSING HOME.,"4,362.01",22/08/2019
DELIVERY UNITS,ADULTS AND HEALTH,OTHER AGENCIES - THIRD PARTY P,0090186326,BUPA NURSING HOMES LTD - ARKLEY,"1,100.00",08/08/2019
DELIVERY UNITS,ADULTS AND HEALTH,OTHER AGENCIES - THIRD PARTY P,0090186327,BUPA NURSING HOMES LTD - ARKLEY,"4,400.00",08/08/2019
DELIVERY UNITS,ADULTS AND HEALTH,OTHER AGENCIES - THIRD PARTY P,0090186328,BUPA NURSING HOMES LTD - ARKLEY,"4,400.00",08/08/2019
DELIVERY UNITS,ADULTS AND HEALTH,OTHER AGENCIES - THIRD PARTY P,0090186329,BUPA NURSING HOMES LTD - ARKLEY,"4,400.00",08/08/2019
DELIVERY UNITS,ADULTS AND HEALTH,OTHER AGENCIES - THIRD PARTY P,0090186367,BUPA NURSING HOMES LTD - ARKLEY,"2,318.76",08/08/2019
DELIVERY UNITS,ADULTS AND HEALTH,OTHER AGENCIES - THIRD PARTY P,0090186368,BUPA NURSING HOMES LTD - ARKLEY,"2,318.76",08/08/2019
DELIVERY UNITS,ADULTS AND HEALTH,OTHER AGENCIES - THIRD PARTY P,0090186369,BUPA NURSING HOMES LTD - ARKLEY,"2,243.20",08/08/2019
DELIVERY UNITS,ADULTS AND HEALTH,OTHER AGENCIES - THIRD PARTY P,0090186370,BUPA NURSING HOMES LTD - ARKLEY,"2,318.76",08/08/2019
DELIVERY UNITS,ADULTS AND HEALTH,OTHER AGENCIES - THIRD PARTY P,0090186372,BUPA NURSING HOMES LTD - ARKLEY,"2,318.76",08/08/2019
DELIVERY UNITS,ADULTS AND HEALTH,OTHER AGENCIES - THIRD PARTY P,0090189538,BUPA NURSING HOMES LTD - ARKLEY,"2,318.76",22/08/2019
DELIVERY UNITS,ADULTS AND HEALTH,OTHER AGENCIES - THIRD PARTY P,0090189539,BUPA NURSING HOMES LTD - ARKLEY,"2,318.76",22/08/2019
DELIVERY UNITS,ADULTS AND HEALTH,OTHER AGENCIES - THIRD PARTY P,0090189540,BUPA NURSING HOMES LTD - ARKLEY,"2,318.76",22/08/2019
DELIVERY UNITS,ADULTS AND HEALTH,OTHER AGENCIES - THIRD PARTY P,0090189542,BUPA NURSING HOMES LTD - ARKLEY,"2,318.76",22/08/2019
DELIVERY UNITS,ADULTS AND HEALTH,OTHER AGENCIES - THIRD PARTY P,0090189543,BUPA NURSING HOMES LTD - ARKLEY,"4,400.00",22/08/2019
DELIVERY UNITS,ADULTS AND HEALTH,OTHER AGENCIES - THIRD PARTY P,0090189545,BUPA NURSING HOMES LTD - ARKLEY,"2,243.20",22/08/2019
DELIVERY UNITS,ADULTS AND HEALTH,OTHER AGENCIES - THIRD PARTY P,0090186066,AGUDAS ISRAEL HOUSING ASSCTN LTD,"2,736.86",14/08/2019
DELIVERY UNITS,ADULTS AND HEALTH,OTHER AGENCIES - THIRD PARTY P,0090186322,WESTMINSTER HEALTH CARE LTD,"2,475.31",08/08/2019
DELIVERY UNITS,ADULTS AND HEALTH,OTHER AGENCIES - THIRD PARTY P,0090190086,METHODIST HOMES FOR THE AGED,"2,400.00",29/08/2019
DELIVERY UNITS,ADULTS AND HEALTH,OTHER AGENCIES - THIRD PARTY P,0090189394,HENRY NIHILL HOUSE,"2,167.36",22/08/2019
DELIVERY UNITS,ADULTS AND HEALTH,OTHER AGENCIES - THIRD PARTY P,0090189395,HENRY NIHILL HOUSE,"2,167.36",22/08/2019
DELIVERY UNITS,ADULTS AND HEALTH,OTHER AGENCIES - THIRD PARTY P,0090189396,HENRY NIHILL HOUSE,"2,167.36",22/08/2019
DELIVERY UNITS,ADULTS AND HEALTH,OTHER AGENCIES - THIRD PARTY P,0090189397,HENRY NIHILL HOUSE,"2,167.36",22/08/2019
DELIVERY UNITS,ADULTS AND HEALTH,OTHER AGENCIES - THIRD PARTY P,0090189399,HENRY NIHILL HOUSE,"2,167.36",22/08/2019
DELIVERY UNITS,ADULTS AND HEALTH,OTHER AGENCIES - THIRD PARTY P,0090189400,HENRY NIHILL HOUSE,"2,167.36",22/08/2019
DELIVERY UNITS,ADULTS AND HEALTH,OTHER AGENCIES - THIRD PARTY P,0090189401,HENRY NIHILL HOUSE,"2,167.36",22/08/2019
DELIVERY UNITS,ADULTS AND HEALTH,OTHER AGENCIES - THIRD PARTY P,0090189402,HENRY NIHILL HOUSE,"2,167.36",22/08/2019
DELIVERY UNITS,ADULTS AND HEALTH,OTHER AGENCIES - THIRD PARTY P,0090189403,HENRY NIHILL HOUSE,"2,167.36",22/08/2019
DELIVERY UNITS,ADULTS AND HEALTH,OTHER AGENCIES - THIRD PARTY P,0090189404,HENRY NIHILL HOUSE,"2,167.36",22/08/2019
DELIVERY UNITS,ADULTS AND HEALTH,OTHER AGENCIES - THIRD PARTY P,0090189405,HENRY NIHILL HOUSE,"2,167.36",22/08/2019
DELIVERY UNITS,ADULTS AND HEALTH,OTHER AGENCIES - THIRD PARTY P,0090189407,HENRY NIHILL HOUSE,"2,167.36",22/08/2019
DELIVERY UNITS,ADULTS AND HEALTH,OTHER AGENCIES - THIRD PARTY P,0090189408,HENRY NIHILL HOUSE,"2,167.36",22/08/2019
DELIVERY UNITS,ADULTS AND HEALTH,OTHER AGENCIES - THIRD PARTY P,0090189409,HENRY NIHILL HOUSE,"2,167.36",22/08/2019
DELIVERY UNITS,ADULTS AND HEALTH,OTHER AGENCIES - THIRD PARTY P,0090189535,THE LEONARD CHESHIRE FOUNDATION,"6,634.00",27/08/2019
DELIVERY UNITS,ADULTS AND HEALTH,OTHER AGENCIES - THIRD PARTY P,0090186300,LIFESTYLE CARE PLC,"2,655.55",09/08/2019
DELIVERY UNITS,ADULTS AND HEALTH,OTHER AGENCIES - THIRD PARTY P,0090186302,LIFESTYLE CARE PLC,"2,397.72",09/08/2019
DELIVERY UNITS,ADULTS AND HEALTH,OTHER AGENCIES - THIRD PARTY P,0090186303,LIFESTYLE CARE PLC,"2,842.43",09/08/2019
DELIVERY UNITS,ADULTS AND HEALTH,OTHER AGENCIES - THIRD PARTY P,0090186305,LIFESTYLE CARE PLC,"2,655.55",09/08/2019
DELIVERY UNITS,ADULTS AND HEALTH,OTHER AGENCIES - THIRD PARTY P,0090186306,LIFESTYLE CARE PLC,"2,397.72",09/08/2019
DELIVERY UNITS,ADULTS AND HEALTH,OTHER AGENCIES - THIRD PARTY P,0090186307,LIFESTYLE CARE PLC,"2,397.72",09/08/2019
DELIVERY UNITS,ADULTS AND HEALTH,OTHER AGENCIES - THIRD PARTY P,0090186308,LIFESTYLE CARE PLC,"2,397.72",09/08/2019
DELIVERY UNITS,ADULTS AND HEALTH,OTHER AGENCIES - THIRD PARTY P,0090186309,LIFESTYLE CARE PLC,"2,655.55",09/08/2019
DELIVERY UNITS,ADULTS AND HEALTH,OTHER AGENCIES - THIRD PARTY P,0090186310,LIFESTYLE CARE PLC,"2,397.72",09/08/2019
DELIVERY UNITS,ADULTS AND HEALTH,OTHER AGENCIES - THIRD PARTY P,0090186311,LIFESTYLE CARE PLC,618.77,09/08/2019
DELIVERY UNITS,ADULTS AND HEALTH,OTHER AGENCIES - THIRD PARTY P,0090187499,LIFESTYLE CARE PLC,"1,778.95",15/08/2019
DELIVERY UNITS,ADULTS AND HEALTH,OTHER AGENCIES - THIRD PARTY P,0090187705,LIFESTYLE CARE PLC,"4,616.48",15/08/2019
DELIVERY UNITS,ADULTS AND HEALTH,OTHER AGENCIES - THIRD PARTY P,0090187706,LIFESTYLE CARE PLC,"3,252.52",15/08/2019
DELIVERY UNITS,ADULTS AND HEALTH,OTHER AGENCIES - THIRD PARTY P,0090187707,LIFESTYLE CARE PLC,"2,856.21",15/08/2019
DELIVERY UNITS,ADULTS AND HEALTH,OTHER AGENCIES - THIRD PARTY P,0090190077,LIFESTYLE CARE PLC,"3,147.60",29/08/2019
DELIVERY UNITS,ADULTS AND HEALTH,OTHER AGENCIES - THIRD PARTY P,0090187220,CARETECH COMMUNITY SERVICES LTD,"5,169.41",29/08/2019
DELIVERY UNITS,ADULTS AND HEALTH,OTHER AGENCIES - THIRD PARTY P,0090189320,SONESTA NURSING HOME LTD.,"2,399.58",22/08/2019
DELIVERY UNITS,ADULTS AND HEALTH,OTHER AGENCIES - THIRD PARTY P,0090189323,SONESTA NURSING HOME LTD.,"2,397.72",22/08/2019
DELIVERY UNITS,ADULTS AND HEALTH,OTHER AGENCIES - THIRD PARTY P,0090189325,SONESTA NURSING HOME LTD.,"2,508.08",22/08/2019
DELIVERY UNITS,ADULTS AND HEALTH,OTHER AGENCIES - THIRD PARTY P,0090189326,SONESTA NURSING HOME LTD.,"2,878.57",22/08/2019
DELIVERY UNITS,ADULTS AND HEALTH,OTHER AGENCIES - THIRD PARTY P,0090187687,MEERA NURSING HOME LIMITED,"3,100.00",15/08/2019
DELIVERY UNITS,ADULTS AND HEALTH,OTHER AGENCIES - THIRD PARTY P,0090189381,MEERA NURSING HOME LIMITED,"2,366.79",22/08/2019
DELIVERY UNITS,ADULTS AND HEALTH,OTHER AGENCIES - THIRD PARTY P,0090189382,MEERA NURSING HOME LIMITED,"2,445.68",22/08/2019
DELIVERY UNITS,ADULTS AND HEALTH,OTHER AGENCIES - THIRD PARTY P,0090189383,MEERA NURSING HOME LIMITED,"2,366.79",22/08/2019
DELIVERY UNITS,ADULTS AND HEALTH,OTHER AGENCIES - THIRD PARTY P,0090189384,MEERA NURSING HOME LIMITED,"2,445.68",22/08/2019
DELIVERY UNITS,ADULTS AND HEALTH,OTHER AGENCIES - THIRD PARTY P,0090189385,MEERA NURSING HOME LIMITED,"2,445.68",22/08/2019
DELIVERY UNITS,ADULTS AND HEALTH,OTHER AGENCIES - THIRD PARTY P,0090189386,MEERA NURSING HOME LIMITED,"2,445.68",22/08/2019
DELIVERY UNITS,ADULTS AND HEALTH,OTHER AGENCIES - THIRD PARTY P,0090189387,MEERA NURSING HOME LIMITED,"2,366.79",22/08/2019
DELIVERY UNITS,ADULTS AND HEALTH,OTHER AGENCIES - THIRD PARTY P,0090189388,MEERA NURSING HOME LIMITED,"2,445.68",22/08/2019
DELIVERY UNITS,ADULTS AND HEALTH,OTHER AGENCIES - THIRD PARTY P,0090189389,MEERA NURSING HOME LIMITED,"2,445.68",22/08/2019
DELIVERY UNITS,ADULTS AND HEALTH,OTHER AGENCIES - THIRD PARTY P,0090189536,MEERA NURSING HOME LIMITED,"3,506.72",22/08/2019
DELIVERY UNITS,ADULTS AND HEALTH,OTHER AGENCIES - THIRD PARTY P,0090187430,NEWCENTURY CARE LTD,"4,932.76",13/08/2019
DELIVERY UNITS,ADULTS AND HEALTH,OTHER AGENCIES - THIRD PARTY P,0090187431,NEWCENTURY CARE LTD,"4,530.19",13/08/2019
DELIVERY UNITS,ADULTS AND HEALTH,OTHER AGENCIES - THIRD PARTY P,0090187432,NEWCENTURY CARE LTD,"3,706.30",13/08/2019
DELIVERY UNITS,ADULTS AND HEALTH,OTHER AGENCIES - THIRD PARTY P,0090187433,NEWCENTURY CARE LTD,"3,717.73",13/08/2019
DELIVERY UNITS,ADULTS AND HEALTH,OTHER AGENCIES - THIRD PARTY P,0090187434,NEWCENTURY CARE LTD,"4,278.57",13/08/2019
DELIVERY UNITS,ADULTS AND HEALTH,OTHER AGENCIES - THIRD PARTY P,0090187435,NEWCENTURY CARE LTD,"10,078.58",13/08/2019
DELIVERY UNITS,ADULTS AND HEALTH,OTHER AGENCIES - THIRD PARTY P,0090187674,BUPA CARE HOMES,"2,493.08",15/08/2019
DELIVERY UNITS,ADULTS AND HEALTH,OTHER AGENCIES - THIRD PARTY P,0090187678,BUPA CARE HOMES,"2,563.39",15/08/2019
DELIVERY UNITS,ADULTS AND HEALTH,OTHER AGENCIES - THIRD PARTY P,0090185712,BUPA CARE HOMES,"2,322.17",05/08/2019
DELIVERY UNITS,ADULTS AND HEALTH,OTHER AGENCIES - THIRD PARTY P,0090187196,BUPA CARE HOMES,"2,760.20",12/08/2019
DELIVERY UNITS,ADULTS AND HEALTH,OTHER AGENCIES - THIRD PARTY P,0090187198,BUPA CARE HOMES,"2,399.58",12/08/2019
DELIVERY UNITS,ADULTS AND HEALTH,OTHER AGENCIES - THIRD PARTY P,0090187200,BUPA CARE HOMES,"2,780.70",12/08/2019
DELIVERY UNITS,ADULTS AND HEALTH,OTHER AGENCIES - THIRD PARTY P,0090187201,BUPA CARE HOMES,"3,210.71",12/08/2019
DELIVERY UNITS,ADULTS AND HEALTH,OTHER AGENCIES - THIRD PARTY P,0090187202,BUPA CARE HOMES,"2,413.57",12/08/2019
DELIVERY UNITS,ADULTS AND HEALTH,OTHER AGENCIES - THIRD PARTY P,0090187203,BUPA CARE HOMES,"2,399.58",12/08/2019
DELIVERY UNITS,ADULTS AND HEALTH,OTHER AGENCIES - THIRD PARTY P,0090187204,BUPA CARE HOMES,"2,399.58",12/08/2019
DELIVERY UNITS,ADULTS AND HEALTH,OTHER AGENCIES - THIRD PARTY P,0090187930,BUPA CARE HOMES,"2,399.58",19/08/2019
DELIVERY UNITS,ADULTS AND HEALTH,OTHER AGENCIES - THIRD PARTY P,0090187951,BUPA CARE HOMES,"2,587.44",19/08/2019
DELIVERY UNITS,ADULTS AND HEALTH,OTHER AGENCIES - THIRD PARTY P,0090187952,BUPA CARE HOMES,"2,345.12",19/08/2019
DELIVERY UNITS,ADULTS AND HEALTH,OTHER AGENCIES - THIRD PARTY P,0090187953,BUPA CARE HOMES,"2,265.36",19/08/2019
DELIVERY UNITS,ADULTS AND HEALTH,OTHER AGENCIES - THIRD PARTY P,0090187954,BUPA CARE HOMES,"2,587.44",19/08/2019
DELIVERY UNITS,ADULTS AND HEALTH,OTHER AGENCIES - THIRD PARTY P,0090187955,BUPA CARE HOMES,"2,345.12",19/08/2019
DELIVERY UNITS,ADULTS AND HEALTH,OTHER AGENCIES - THIRD PARTY P,0090187956,BUPA CARE HOMES,"2,265.36",19/08/2019
DELIVERY UNITS,ADULTS AND HEALTH,OTHER AGENCIES - THIRD PARTY P,0090187957,BUPA CARE HOMES,"2,587.44",19/08/2019
DELIVERY UNITS,ADULTS AND HEALTH,OTHER AGENCIES - THIRD PARTY P,0090187958,BUPA CARE HOMES,"2,345.12",19/08/2019
DELIVERY UNITS,ADULTS AND HEALTH,OTHER AGENCIES - THIRD PARTY P,0090187959,BUPA CARE HOMES,"2,265.36",19/08/2019
DELIVERY UNITS,ADULTS AND HEALTH,OTHER AGENCIES - THIRD PARTY P,0090187960,BUPA CARE HOMES,"2,587.44",19/08/2019
DELIVERY UNITS,ADULTS AND HEALTH,OTHER AGENCIES - THIRD PARTY P,0090187961,BUPA CARE HOMES,"2,345.12",19/08/2019
DELIVERY UNITS,ADULTS AND HEALTH,OTHER AGENCIES - THIRD PARTY P,0090187962,BUPA CARE HOMES,"2,265.36",19/08/2019
DELIVERY UNITS,ADULTS AND HEALTH,OTHER AGENCIES - THIRD PARTY P,0090187517,FOUR SEASONS HEALTH CARE,"2,645.51",15/08/2019
DELIVERY UNITS,ADULTS AND HEALTH,OTHER AGENCIES - THIRD PARTY P,0090187518,FOUR SEASONS HEALTH CARE,"2,645.51",15/08/2019
DELIVERY UNITS,ADULTS AND HEALTH,OTHER AGENCIES - THIRD PARTY P,0090187520,FOUR SEASONS HEALTH CARE,"2,376.50",15/08/2019
DELIVERY UNITS,ADULTS AND HEALTH,OTHER AGENCIES - THIRD PARTY P,0090187522,FOUR SEASONS HEALTH CARE,"2,376.50",15/08/2019
DELIVERY UNITS,ADULTS AND HEALTH,OTHER AGENCIES - THIRD PARTY P,0090187523,FOUR SEASONS HEALTH CARE,"2,643.34",15/08/2019
DELIVERY UNITS,ADULTS AND HEALTH,OTHER AGENCIES - THIRD PARTY P,0090187524,FOUR SEASONS HEALTH CARE,"2,643.34",15/08/2019
DELIVERY UNITS,ADULTS AND HEALTH,OTHER AGENCIES - THIRD PARTY P,0090187525,FOUR SEASONS HEALTH CARE,"2,376.50",15/08/2019
DELIVERY UNITS,ADULTS AND HEALTH,OTHER AGENCIES - THIRD PARTY P,0090189546,SANCTUARY CARE LTD,"2,541.07",22/08/2019
DELIVERY UNITS,ADULTS AND HEALTH,OTHER AGENCIES - THIRD PARTY P,0090187681,BUPA CARE HOMES,"3,556.23",15/08/2019
DELIVERY UNITS,ADULTS AND HEALTH,OTHER AGENCIES - THIRD PARTY P,0090187683,BUPA CARE HOMES,"2,567.20",15/08/2019
DELIVERY UNITS,ADULTS AND HEALTH,OTHER AGENCIES - THIRD PARTY P,0090187684,BUPA CARE HOMES,"3,615.84",15/08/2019
DELIVERY UNITS,ADULTS AND HEALTH,OTHER AGENCIES - THIRD PARTY P,0090187686,BUPA CARE HOMES,"3,412.44",15/08/2019
DELIVERY UNITS,ADULTS AND HEALTH,OTHER AGENCIES - THIRD PARTY P,0090187540,M D HOMES,"3,072.32",15/08/2019
DELIVERY UNITS,ADULTS AND HEALTH,OTHER AGENCIES - THIRD PARTY P,0090187699,APPLE TREE COURT CARE HOME,"4,871.43",15/08/2019
DELIVERY UNITS,ADULTS AND HEALTH,OTHER AGENCIES - THIRD PARTY P,0090187701,APPLE TREE COURT CARE HOME,"2,760.20",15/08/2019
DELIVERY UNITS,ADULTS AND HEALTH,OTHER AGENCIES - THIRD PARTY P,0090187702,APPLE TREE COURT CARE HOME,"2,508.08",15/08/2019
DELIVERY UNITS,ADULTS AND HEALTH,OTHER AGENCIES - THIRD PARTY P,0090187704,APPLE TREE COURT CARE HOME,"2,985.71",15/08/2019
DELIVERY UNITS,ADULTS AND HEALTH,OTHER AGENCIES - THIRD PARTY P,0090187709,APPLE TREE COURT CARE HOME,"4,207.14",15/08/2019
DELIVERY UNITS,ADULTS AND HEALTH,OTHER AGENCIES - THIRD PARTY P,0090187720,APPLE TREE COURT CARE HOME,"4,207.14",15/08/2019
DELIVERY UNITS,ADULTS AND HEALTH,OTHER AGENCIES - THIRD PARTY P,0090187721,APPLE TREE COURT CARE HOME,"-6,921.43",15/08/2019
DELIVERY UNITS,ADULTS AND HEALTH,OTHER AGENCIES - THIRD PARTY P,0090186269,AUTUMN GARDENS,"4,800.00",07/08/2019
DELIVERY UNITS,ADULTS AND HEALTH,OTHER AGENCIES - THIRD PARTY P,0090186271,AUTUMN GARDENS,"4,800.00",07/08/2019
DELIVERY UNITS,ADULTS AND HEALTH,OTHER AGENCIES - THIRD PARTY P,0090186274,AUTUMN GARDENS,"3,440.00",07/08/2019
DELIVERY UNITS,ADULTS AND HEALTH,OTHER AGENCIES - THIRD PARTY P,0090186320,SUNRISE SENIOR LIVING,"6,382.28",08/08/2019
DELIVERY UNITS,ADULTS AND HEALTH,OTHER AGENCIES - THIRD PARTY P,0090189554,ABBEY RAVENSCROFT PARK NURSING HOME,"1,485.71",22/08/2019
DELIVERY UNITS,ADULTS AND HEALTH,OTHER AGENCIES - THIRD PARTY P,0090189558,ABBEY RAVENSCROFT PARK NURSING HOME,"3,542.86",22/08/2019
DELIVERY UNITS,ADULTS AND HEALTH,OTHER AGENCIES - THIRD PARTY P,0090189559,ABBEY RAVENSCROFT PARK NURSING HOME,800.00,22/08/2019
DELIVERY UNITS,ADULTS AND HEALTH,OTHER AGENCIES - THIRD PARTY P,0090189562,ABBEY RAVENSCROFT PARK NURSING HOME,"2,788.32",22/08/2019
DELIVERY UNITS,ADULTS AND HEALTH,OTHER AGENCIES - THIRD PARTY P,0090190044,ABBEY RAVENSCROFT PARK NURSING HOME,"3,542.86",28/08/2019
DELIVERY UNITS,ADULTS AND HEALTH,OTHER AGENCIES - THIRD PARTY P,0090190045,ABBEY RAVENSCROFT PARK NURSING HOME,"3,321.43",28/08/2019
DELIVERY UNITS,ADULTS AND HEALTH,OTHER AGENCIES - THIRD PARTY P,0090190046,ABBEY RAVENSCROFT PARK NURSING HOME,"3,321.43",28/08/2019
DELIVERY UNITS,ADULTS AND HEALTH,OTHER AGENCIES - THIRD PARTY P,0090190049,ABBEY RAVENSCROFT PARK NURSING HOME,"2,788.32",28/08/2019
DELIVERY UNITS,ADULTS AND HEALTH,OTHER AGENCIES - THIRD PARTY P,0090190051,ABBEY RAVENSCROFT PARK NURSING HOME,"2,788.32",28/08/2019
DELIVERY UNITS,ADULTS AND HEALTH,OTHER AGENCIES - THIRD PARTY P,0090190052,ABBEY RAVENSCROFT PARK NURSING HOME,"3,321.43",28/08/2019
DELIVERY UNITS,ADULTS AND HEALTH,OTHER AGENCIES - THIRD PARTY P,0090190053,ABBEY RAVENSCROFT PARK NURSING HOME,"3,100.00",28/08/2019
DELIVERY UNITS,ADULTS AND HEALTH,OTHER AGENCIES - THIRD PARTY P,0090190055,ABBEY RAVENSCROFT PARK NURSING HOME,"2,788.32",28/08/2019
DELIVERY UNITS,ADULTS AND HEALTH,OTHER AGENCIES - THIRD PARTY P,0090190057,ABBEY RAVENSCROFT PARK NURSING HOME,"3,321.43",28/08/2019
DELIVERY UNITS,ADULTS AND HEALTH,OTHER AGENCIES - THIRD PARTY P,0090190058,ABBEY RAVENSCROFT PARK NURSING HOME,"3,321.43",28/08/2019
DELIVERY UNITS,ADULTS AND HEALTH,OTHER AGENCIES - THIRD PARTY P,0090190059,ABBEY RAVENSCROFT PARK NURSING HOME,"4,995.43",28/08/2019
DELIVERY UNITS,ADULTS AND HEALTH,OTHER AGENCIES - THIRD PARTY P,0090190060,ABBEY RAVENSCROFT PARK NURSING HOME,"2,788.32",28/08/2019
DELIVERY UNITS,ADULTS AND HEALTH,OTHER AGENCIES - THIRD PARTY P,0090190063,ABBEY RAVENSCROFT PARK NURSING HOME,"3,542.86",28/08/2019
DELIVERY UNITS,ADULTS AND HEALTH,OTHER AGENCIES - THIRD PARTY P,0090190064,ABBEY RAVENSCROFT PARK NURSING HOME,"3,764.29",28/08/2019
DELIVERY UNITS,ADULTS AND HEALTH,OTHER AGENCIES - THIRD PARTY P,0090190951,ABBEY RAVENSCROFT PARK NURSING HOME,964.29,30/08/2019
DELIVERY UNITS,ADULTS AND HEALTH,OTHER AGENCIES - THIRD PARTY P,0090190952,ABBEY RAVENSCROFT PARK NURSING HOME,"3,321.43",30/08/2019
DELIVERY UNITS,ADULTS AND HEALTH,OTHER AGENCIES - THIRD PARTY P,0090187670,CARLTON COURT (TLC GROUP),"3,642.86",15/08/2019
DELIVERY UNITS,ADULTS AND HEALTH,OTHER AGENCIES - THIRD PARTY P,0090187671,CARLTON COURT (TLC GROUP),"3,885.71",15/08/2019
DELIVERY UNITS,ADULTS AND HEALTH,OTHER AGENCIES - THIRD PARTY P,0090187672,CARLTON COURT (TLC GROUP),"3,764.29",15/08/2019
DELIVERY UNITS,ADULTS AND HEALTH,OTHER AGENCIES - THIRD PARTY P,0090189303,CARLTON COURT (TLC GROUP),"4,428.57",22/08/2019
DELIVERY UNITS,ADULTS AND HEALTH,OTHER AGENCIES - THIRD PARTY P,0090189304,CARLTON COURT (TLC GROUP),"3,736.61",22/08/2019
DELIVERY UNITS,ADULTS AND HEALTH,OTHER AGENCIES - THIRD PARTY P,0090189308,CARLTON COURT (TLC GROUP),"2,448.78",22/08/2019
DELIVERY UNITS,ADULTS AND HEALTH,OTHER AGENCIES - THIRD PARTY P,0090189313,CARLTON COURT (TLC GROUP),"3,764.29",22/08/2019
DELIVERY UNITS,ADULTS AND HEALTH,OTHER AGENCIES - THIRD PARTY P,0090186662,HUSKARDS NEW CARE LTD,"2,397.72",09/08/2019
DELIVERY UNITS,ADULTS AND HEALTH,OTHER AGENCIES - THIRD PARTY P,0090185700,ASHTON LODGE CARE CENTRE,"3,513.88",05/08/2019
DELIVERY UNITS,ADULTS AND HEALTH,OTHER AGENCIES - THIRD PARTY P,0090185730,ASHTON LODGE CARE CENTRE,"3,026.44",05/08/2019
DELIVERY UNITS,ADULTS AND HEALTH,OTHER AGENCIES - THIRD PARTY P,0090189673,ASHTON LODGE CARE CENTRE,"3,386.22",23/08/2019
DELIVERY UNITS,ADULTS AND HEALTH,OTHER AGENCIES - THIRD PARTY P,0090189674,ASHTON LODGE CARE CENTRE,"4,212.72",23/08/2019
DELIVERY UNITS,ADULTS AND HEALTH,OTHER AGENCIES - THIRD PARTY P,0090189675,ASHTON LODGE CARE CENTRE,"3,018.60",23/08/2019
DELIVERY UNITS,ADULTS AND HEALTH,OTHER AGENCIES - THIRD PARTY P,0090189676,ASHTON LODGE CARE CENTRE,"3,642.32",23/08/2019
DELIVERY UNITS,ADULTS AND HEALTH,OTHER AGENCIES - THIRD PARTY P,0090189677,ASHTON LODGE CARE CENTRE,"3,164.04",23/08/2019
DELIVERY UNITS,ADULTS AND HEALTH,OTHER AGENCIES - THIRD PARTY P,0090189678,ASHTON LODGE CARE CENTRE,"2,925.69",23/08/2019
DELIVERY UNITS,ADULTS AND HEALTH,OTHER AGENCIES - THIRD PARTY P,0090189679,ASHTON LODGE CARE CENTRE,"4,359.66",23/08/2019
DELIVERY UNITS,ADULTS AND HEALTH,OTHER AGENCIES - THIRD PARTY P,0090189680,ASHTON LODGE CARE CENTRE,"3,391.67",23/08/2019
DELIVERY UNITS,ADULTS AND HEALTH,OTHER AGENCIES - THIRD PARTY P,0090189681,ASHTON LODGE CARE CENTRE,"3,221.74",23/08/2019
DELIVERY UNITS,ADULTS AND HEALTH,OTHER AGENCIES - THIRD PARTY P,0090189683,ASHTON LODGE CARE CENTRE,"3,159.70",23/08/2019
DELIVERY UNITS,ADULTS AND HEALTH,OTHER AGENCIES - THIRD PARTY P,0090189685,ASHTON LODGE CARE CENTRE,"3,541.79",23/08/2019
DELIVERY UNITS,ADULTS AND HEALTH,OTHER AGENCIES - THIRD PARTY P,0090189686,ASHTON LODGE CARE CENTRE,"2,923.96",23/08/2019
DELIVERY UNITS,ADULTS AND HEALTH,OTHER AGENCIES - THIRD PARTY P,0090189687,ASHTON LODGE CARE CENTRE,"3,846.97",23/08/2019
DELIVERY UNITS,ADULTS AND HEALTH,OTHER AGENCIES - THIRD PARTY P,0090189688,ASHTON LODGE CARE CENTRE,"3,541.79",23/08/2019
DELIVERY UNITS,ADULTS AND HEALTH,OTHER AGENCIES - THIRD PARTY P,0090189689,ASHTON LODGE CARE CENTRE,"2,640.05",23/08/2019
DELIVERY UNITS,ADULTS AND HEALTH,OTHER AGENCIES - THIRD PARTY P,0090189690,ASHTON LODGE CARE CENTRE,"3,619.34",23/08/2019
DELIVERY UNITS,ADULTS AND HEALTH,OTHER AGENCIES - THIRD PARTY P,0090189691,ASHTON LODGE CARE CENTRE,"3,158.59",23/08/2019
DELIVERY UNITS,ADULTS AND HEALTH,OTHER AGENCIES - THIRD PARTY P,0090189692,ASHTON LODGE CARE CENTRE,"3,164.04",23/08/2019
DELIVERY UNITS,ADULTS AND HEALTH,OTHER AGENCIES - THIRD PARTY P,0090189694,ASHTON LODGE CARE CENTRE,"4,436.37",23/08/2019
DELIVERY UNITS,ADULTS AND HEALTH,OTHER AGENCIES - THIRD PARTY P,0090189695,ASHTON LODGE CARE CENTRE,"3,870.44",23/08/2019
DELIVERY UNITS,ADULTS AND HEALTH,OTHER AGENCIES - THIRD PARTY P,0090189696,ASHTON LODGE CARE CENTRE,"2,923.96",23/08/2019
DELIVERY UNITS,ADULTS AND HEALTH,OTHER AGENCIES - THIRD PARTY P,0090189697,ASHTON LODGE CARE CENTRE,"3,779.34",23/08/2019
DELIVERY UNITS,ADULTS AND HEALTH,OTHER AGENCIES - THIRD PARTY P,0090189699,ASHTON LODGE CARE CENTRE,-622.55,23/08/2019
DELIVERY UNITS,ADULTS AND HEALTH,OTHER AGENCIES - THIRD PARTY P,0090190066,ASHTON LODGE CARE CENTRE,"3,605.17",28/08/2019
DELIVERY UNITS,ADULTS AND HEALTH,OTHER AGENCIES - THIRD PARTY P,0090187689,WESTGATE HOUSE CARE CENTRE,"3,725.76",16/08/2019
DELIVERY UNITS,ADULTS AND HEALTH,OTHER AGENCIES - THIRD PARTY P,0090187530,WILSMERE HOUSE CARE CENTRE,"4,979.35",15/08/2019
DELIVERY UNITS,ADULTS AND HEALTH,OTHER AGENCIES - THIRD PARTY P,0090189362,KARUNA MANOR,"4,392.43",22/08/2019
DELIVERY UNITS,ADULTS AND HEALTH,OTHER AGENCIES - THIRD PARTY P,0090189363,KARUNA MANOR,"4,207.14",22/08/2019
DELIVERY UNITS,ADULTS AND HEALTH,OTHER AGENCIES - THIRD PARTY P,0090186295,ST ANNS HOME-LITTLE SISTERS OF THE POOR,"7,186.92",08/08/2019
DELIVERY UNITS,ADULTS AND HEALTH,OTHER AGENCIES - THIRD PARTY P,0090187690,PINELODGE CARE HOME,"2,655.55",29/08/2019
DELIVERY UNITS,ADULTS AND HEALTH,OTHER AGENCIES - THIRD PARTY P,0090189672,CHISWICK HOUSE,"3,321.34",23/08/2019
DELIVERY UNITS,ADULTS AND HEALTH,OTHER AGENCIES - THIRD PARTY P,0090186318,ADARA HEALTHCARE LTD,"3,400.00",08/08/2019
DELIVERY UNITS,ADULTS AND HEALTH,OTHER AGENCIES - THIRD PARTY P,0090187719,ADARA HEALTHCARE LTD,"3,400.00",15/08/2019
DELIVERY UNITS,ADULTS AND HEALTH,OTHER AGENCIES - THIRD PARTY P,0090190978,ADARA HEALTHCARE LTD,"3,400.00",30/08/2019
DELIVERY UNITS,ADULTS AND HEALTH,OTHER AGENCIES - THIRD PARTY P,0090186639,AARANDALE MANOR CARE HOME,"2,129.79",09/08/2019
DELIVERY UNITS,ADULTS AND HEALTH,OTHER AGENCIES - THIRD PARTY P,0090186640,AARANDALE MANOR CARE HOME,"4,428.57",09/08/2019
DELIVERY UNITS,ADULTS AND HEALTH,OTHER AGENCIES - THIRD PARTY P,0090186641,AARANDALE MANOR CARE HOME,"3,741.92",09/08/2019
DELIVERY UNITS,ADULTS AND HEALTH,OTHER AGENCIES - THIRD PARTY P,0090186642,AARANDALE MANOR CARE HOME,"2,570.56",09/08/2019
DELIVERY UNITS,ADULTS AND HEALTH,OTHER AGENCIES - THIRD PARTY P,0090189534,BONDCARE LONDON (THE FOUNTAINS),"2,138.00",22/08/2019
DELIVERY UNITS,ADULTS AND HEALTH,OTHER AGENCIES - THIRD PARTY P,0090187194,ST JOHNS WOOD CARE CENTRE,"2,850.89",12/08/2019
DELIVERY UNITS,ADULTS AND HEALTH,OTHER AGENCIES - THIRD PARTY P,0090187708,ST JOHNS WOOD CARE CENTRE,"2,850.89",29/08/2019
DELIVERY UNITS,ADULTS AND HEALTH,OTHER AGENCIES - THIRD PARTY P,0090186189,CONTEMPLATION HOMES,"3,409.78",29/08/2019
DELIVERY UNITS,ADULTS AND HEALTH,OTHER AGENCIES - THIRD PARTY P,0090187691,LANSGLADE HOMES LIMITED,"2,723.35",29/08/2019
DELIVERY UNITS,ADULTS AND HEALTH,OTHER AGENCIES - THIRD PARTY P,0090186359,ALLIANCE CARE (DALES HOMES) LIMITED,"3,764.29",08/08/2019
DELIVERY UNITS,ADULTS AND HEALTH,OTHER AGENCIES - THIRD PARTY P,0090186265,LARCHWOOD CARE HOMES(SOUTH)LT,"3,400.00",07/08/2019
DELIVERY UNITS,ADULTS AND HEALTH,OTHER AGENCIES - THIRD PARTY P,0090190030,ROSEACRES CARE HOME LIMITED,"3,321.43",28/08/2019
DELIVERY UNITS,ADULTS AND HEALTH,OTHER AGENCIES - THIRD PARTY P,0090190031,ROSEACRES CARE HOME LIMITED,"3,321.43",28/08/2019
DELIVERY UNITS,ADULTS AND HEALTH,OTHER AGENCIES - THIRD PARTY P,0090190032,ROSEACRES CARE HOME LIMITED,"2,550.86",28/08/2019
DELIVERY UNITS,ADULTS AND HEALTH,OTHER AGENCIES - THIRD PARTY P,0090190033,ROSEACRES CARE HOME LIMITED,"2,550.86",28/08/2019
DELIVERY UNITS,ADULTS AND HEALTH,OTHER AGENCIES - THIRD PARTY P,0090190035,ROSEACRES CARE HOME LIMITED,"3,764.29",28/08/2019
DELIVERY UNITS,ADULTS AND HEALTH,OTHER AGENCIES - THIRD PARTY P,0090190036,ROSEACRES CARE HOME LIMITED,"2,550.86",28/08/2019
DELIVERY UNITS,ADULTS AND HEALTH,OTHER AGENCIES - THIRD PARTY P,0090190037,ROSEACRES CARE HOME LIMITED,"2,550.86",28/08/2019
DELIVERY UNITS,ADULTS AND HEALTH,OTHER AGENCIES - THIRD PARTY P,0090190038,ROSEACRES CARE HOME LIMITED,"2,988.53",28/08/2019
DELIVERY UNITS,ADULTS AND HEALTH,OTHER AGENCIES - THIRD PARTY P,0090190040,ROSEACRES CARE HOME LIMITED,"3,321.43",28/08/2019
DELIVERY UNITS,ADULTS AND HEALTH,OTHER AGENCIES - THIRD PARTY P,0090190041,ROSEACRES CARE HOME LIMITED,"2,550.86",28/08/2019
DELIVERY UNITS,ADULTS AND HEALTH,OTHER AGENCIES - THIRD PARTY P,0090190042,ROSEACRES CARE HOME LIMITED,"3,321.43",28/08/2019
DELIVERY UNITS,ADULTS AND HEALTH,OTHER AGENCIES - THIRD PARTY P,0090187692,NIGHTINGALE HOUSE,"2,437.71",15/08/2019
DELIVERY UNITS,ADULTS AND HEALTH,OTHER AGENCIES - THIRD PARTY P,0090187693,NIGHTINGALE HOUSE,"3,072.01",15/08/2019
DELIVERY UNITS,ADULTS AND HEALTH,OTHER AGENCIES - THIRD PARTY P,0090189556,NIGHTINGALE HOUSE,"2,437.71",22/08/2019
DELIVERY UNITS,ADULTS AND HEALTH,OTHER AGENCIES - THIRD PARTY P,0090187014,ELEANOR PALMER TRUST NO 2 A/C.,32.14,12/08/2019
DELIVERY UNITS,ADULTS AND HEALTH,OTHER AGENCIES - THIRD PARTY P,0090187015,ELEANOR PALMER TRUST NO 2 A/C.,32.87,12/08/2019
DELIVERY UNITS,ADULTS AND HEALTH,OTHER AGENCIES - THIRD PARTY P,0090187016,ELEANOR PALMER TRUST NO 2 A/C.,32.14,12/08/2019
DELIVERY UNITS,ADULTS AND HEALTH,OTHER AGENCIES - THIRD PARTY P,0090187017,ELEANOR PALMER TRUST NO 2 A/C.,32.14,12/08/2019
DELIVERY UNITS,ADULTS AND HEALTH,OTHER AGENCIES - THIRD PARTY P,0090187018,ELEANOR PALMER TRUST NO 2 A/C.,32.87,12/08/2019
DELIVERY UNITS,ADULTS AND HEALTH,OTHER AGENCIES - THIRD PARTY P,0090187019,ELEANOR PALMER TRUST NO 2 A/C.,25.20,12/08/2019
DELIVERY UNITS,ADULTS AND HEALTH,OTHER AGENCIES - THIRD PARTY P,0090187020,ELEANOR PALMER TRUST NO 2 A/C.,32.87,12/08/2019
DELIVERY UNITS,ADULTS AND HEALTH,OTHER AGENCIES - THIRD PARTY P,0090187021,ELEANOR PALMER TRUST NO 2 A/C.,25.20,12/08/2019
DELIVERY UNITS,ADULTS AND HEALTH,OTHER AGENCIES - THIRD PARTY P,0090187022,ELEANOR PALMER TRUST NO 2 A/C.,27.94,12/08/2019
DELIVERY UNITS,ADULTS AND HEALTH,OTHER AGENCIES - THIRD PARTY P,0090187023,ELEANOR PALMER TRUST NO 2 A/C.,32.14,12/08/2019
DELIVERY UNITS,ADULTS AND HEALTH,OTHER AGENCIES - THIRD PARTY P,0090187024,ELEANOR PALMER TRUST NO 2 A/C.,32.87,12/08/2019
DELIVERY UNITS,ADULTS AND HEALTH,OTHER AGENCIES - THIRD PARTY P,0090187025,ELEANOR PALMER TRUST NO 2 A/C.,32.87,12/08/2019
DELIVERY UNITS,ADULTS AND HEALTH,OTHER AGENCIES - THIRD PARTY P,0090187026,ELEANOR PALMER TRUST NO 2 A/C.,32.87,12/08/2019
DELIVERY UNITS,ADULTS AND HEALTH,OTHER AGENCIES - THIRD PARTY P,0090187027,ELEANOR PALMER TRUST NO 2 A/C.,27.94,12/08/2019
DELIVERY UNITS,ADULTS AND HEALTH,OTHER AGENCIES - THIRD PARTY P,0090187028,ELEANOR PALMER TRUST NO 2 A/C.,25.20,12/08/2019
DELIVERY UNITS,ADULTS AND HEALTH,OTHER AGENCIES - THIRD PARTY P,0090187029,ELEANOR PALMER TRUST NO 2 A/C.,32.14,12/08/2019
DELIVERY UNITS,ADULTS AND HEALTH,OTHER AGENCIES - THIRD PARTY P,0090187030,ELEANOR PALMER TRUST NO 2 A/C.,32.87,12/08/2019
DELIVERY UNITS,ADULTS AND HEALTH,OTHER AGENCIES - THIRD PARTY P,0090187031,ELEANOR PALMER TRUST NO 2 A/C.,32.87,12/08/2019
DELIVERY UNITS,ADULTS AND HEALTH,OTHER AGENCIES - THIRD PARTY P,0090187032,ELEANOR PALMER TRUST NO 2 A/C.,33.21,12/08/2019
DELIVERY UNITS,ADULTS AND HEALTH,OTHER AGENCIES - THIRD PARTY P,0090187033,ELEANOR PALMER TRUST NO 2 A/C.,33.97,12/08/2019
DELIVERY UNITS,ADULTS AND HEALTH,OTHER AGENCIES - THIRD PARTY P,0090187034,ELEANOR PALMER TRUST NO 2 A/C.,33.21,12/08/2019
DELIVERY UNITS,ADULTS AND HEALTH,OTHER AGENCIES - THIRD PARTY P,0090187035,ELEANOR PALMER TRUST NO 2 A/C.,33.21,12/08/2019
DELIVERY UNITS,ADULTS AND HEALTH,OTHER AGENCIES - THIRD PARTY P,0090187036,ELEANOR PALMER TRUST NO 2 A/C.,33.97,12/08/2019
DELIVERY UNITS,ADULTS AND HEALTH,OTHER AGENCIES - THIRD PARTY P,0090187037,ELEANOR PALMER TRUST NO 2 A/C.,26.04,12/08/2019
DELIVERY UNITS,ADULTS AND HEALTH,OTHER AGENCIES - THIRD PARTY P,0090187038,ELEANOR PALMER TRUST NO 2 A/C.,33.97,12/08/2019
DELIVERY UNITS,ADULTS AND HEALTH,OTHER AGENCIES - THIRD PARTY P,0090187039,ELEANOR PALMER TRUST NO 2 A/C.,26.04,12/08/2019
DELIVERY UNITS,ADULTS AND HEALTH,OTHER AGENCIES - THIRD PARTY P,0090187040,ELEANOR PALMER TRUST NO 2 A/C.,33.21,12/08/2019
DELIVERY UNITS,ADULTS AND HEALTH,OTHER AGENCIES - THIRD PARTY P,0090187041,ELEANOR PALMER TRUST NO 2 A/C.,33.97,12/08/2019
DELIVERY UNITS,ADULTS AND HEALTH,OTHER AGENCIES - THIRD PARTY P,0090187042,ELEANOR PALMER TRUST NO 2 A/C.,33.97,12/08/2019
DELIVERY UNITS,ADULTS AND HEALTH,OTHER AGENCIES - THIRD PARTY P,0090187043,ELEANOR PALMER TRUST NO 2 A/C.,33.97,12/08/2019
DELIVERY UNITS,ADULTS AND HEALTH,OTHER AGENCIES - THIRD PARTY P,0090187044,ELEANOR PALMER TRUST NO 2 A/C.,26.04,12/08/2019
DELIVERY UNITS,ADULTS AND HEALTH,OTHER AGENCIES - THIRD PARTY P,0090187045,ELEANOR PALMER TRUST NO 2 A/C.,33.21,12/08/2019
DELIVERY UNITS,ADULTS AND HEALTH,OTHER AGENCIES - THIRD PARTY P,0090187046,ELEANOR PALMER TRUST NO 2 A/C.,33.97,12/08/2019
DELIVERY UNITS,ADULTS AND HEALTH,OTHER AGENCIES - THIRD PARTY P,0090187047,ELEANOR PALMER TRUST NO 2 A/C.,33.97,12/08/2019
DELIVERY UNITS,ADULTS AND HEALTH,OTHER AGENCIES - THIRD PARTY P,0090187387,ELEANOR PALMER TRUST NO 2 A/C.,32.14,13/08/2019
DELIVERY UNITS,ADULTS AND HEALTH,OTHER AGENCIES - THIRD PARTY P,0090187388,ELEANOR PALMER TRUST NO 2 A/C.,32.87,13/08/2019
DELIVERY UNITS,ADULTS AND HEALTH,OTHER AGENCIES - THIRD PARTY P,0090187389,ELEANOR PALMER TRUST NO 2 A/C.,32.14,13/08/2019
DELIVERY UNITS,ADULTS AND HEALTH,OTHER AGENCIES - THIRD PARTY P,0090187390,ELEANOR PALMER TRUST NO 2 A/C.,32.14,13/08/2019
DELIVERY UNITS,ADULTS AND HEALTH,OTHER AGENCIES - THIRD PARTY P,0090187391,ELEANOR PALMER TRUST NO 2 A/C.,32.87,13/08/2019
DELIVERY UNITS,ADULTS AND HEALTH,OTHER AGENCIES - THIRD PARTY P,0090187392,ELEANOR PALMER TRUST NO 2 A/C.,25.20,13/08/2019
DELIVERY UNITS,ADULTS AND HEALTH,OTHER AGENCIES - THIRD PARTY P,0090187393,ELEANOR PALMER TRUST NO 2 A/C.,32.87,13/08/2019
DELIVERY UNITS,ADULTS AND HEALTH,OTHER AGENCIES - THIRD PARTY P,0090187394,ELEANOR PALMER TRUST NO 2 A/C.,25.20,13/08/2019
DELIVERY UNITS,ADULTS AND HEALTH,OTHER AGENCIES - THIRD PARTY P,0090187395,ELEANOR PALMER TRUST NO 2 A/C.,27.94,13/08/2019
DELIVERY UNITS,ADULTS AND HEALTH,OTHER AGENCIES - THIRD PARTY P,0090187396,ELEANOR PALMER TRUST NO 2 A/C.,32.14,13/08/2019
DELIVERY UNITS,ADULTS AND HEALTH,OTHER AGENCIES - THIRD PARTY P,0090187397,ELEANOR PALMER TRUST NO 2 A/C.,32.87,13/08/2019
DELIVERY UNITS,ADULTS AND HEALTH,OTHER AGENCIES - THIRD PARTY P,0090187398,ELEANOR PALMER TRUST NO 2 A/C.,32.87,13/08/2019
DELIVERY UNITS,ADULTS AND HEALTH,OTHER AGENCIES - THIRD PARTY P,0090187399,ELEANOR PALMER TRUST NO 2 A/C.,32.87,13/08/2019
DELIVERY UNITS,ADULTS AND HEALTH,OTHER AGENCIES - THIRD PARTY P,0090187400,ELEANOR PALMER TRUST NO 2 A/C.,27.94,13/08/2019
DELIVERY UNITS,ADULTS AND HEALTH,OTHER AGENCIES - THIRD PARTY P,0090187401,ELEANOR PALMER TRUST NO 2 A/C.,25.20,13/08/2019
DELIVERY UNITS,ADULTS AND HEALTH,OTHER AGENCIES - THIRD PARTY P,0090187402,ELEANOR PALMER TRUST NO 2 A/C.,32.14,13/08/2019
DELIVERY UNITS,ADULTS AND HEALTH,OTHER AGENCIES - THIRD PARTY P,0090187403,ELEANOR PALMER TRUST NO 2 A/C.,32.87,13/08/2019
DELIVERY UNITS,ADULTS AND HEALTH,OTHER AGENCIES - THIRD PARTY P,0090187404,ELEANOR PALMER TRUST NO 2 A/C.,33.21,13/08/2019
DELIVERY UNITS,ADULTS AND HEALTH,OTHER AGENCIES - THIRD PARTY P,0090187405,ELEANOR PALMER TRUST NO 2 A/C.,33.97,13/08/2019
DELIVERY UNITS,ADULTS AND HEALTH,OTHER AGENCIES - THIRD PARTY P,0090187406,ELEANOR PALMER TRUST NO 2 A/C.,33.21,13/08/2019
DELIVERY UNITS,ADULTS AND HEALTH,OTHER AGENCIES - THIRD PARTY P,0090187407,ELEANOR PALMER TRUST NO 2 A/C.,33.21,13/08/2019
DELIVERY UNITS,ADULTS AND HEALTH,OTHER AGENCIES - THIRD PARTY P,0090187408,ELEANOR PALMER TRUST NO 2 A/C.,33.97,13/08/2019
DELIVERY UNITS,ADULTS AND HEALTH,OTHER AGENCIES - THIRD PARTY P,0090187409,ELEANOR PALMER TRUST NO 2 A/C.,26.04,13/08/2019
DELIVERY UNITS,ADULTS AND HEALTH,OTHER AGENCIES - THIRD PARTY P,0090187410,ELEANOR PALMER TRUST NO 2 A/C.,33.97,13/08/2019
DELIVERY UNITS,ADULTS AND HEALTH,OTHER AGENCIES - THIRD PARTY P,0090187411,ELEANOR PALMER TRUST NO 2 A/C.,26.04,13/08/2019
DELIVERY UNITS,ADULTS AND HEALTH,OTHER AGENCIES - THIRD PARTY P,0090187412,ELEANOR PALMER TRUST NO 2 A/C.,28.87,13/08/2019
DELIVERY UNITS,ADULTS AND HEALTH,OTHER AGENCIES - THIRD PARTY P,0090187413,ELEANOR PALMER TRUST NO 2 A/C.,33.21,13/08/2019
DELIVERY UNITS,ADULTS AND HEALTH,OTHER AGENCIES - THIRD PARTY P,0090187414,ELEANOR PALMER TRUST NO 2 A/C.,33.97,13/08/2019
DELIVERY UNITS,ADULTS AND HEALTH,OTHER AGENCIES - THIRD PARTY P,0090187415,ELEANOR PALMER TRUST NO 2 A/C.,33.97,13/08/2019
DELIVERY UNITS,ADULTS AND HEALTH,OTHER AGENCIES - THIRD PARTY P,0090187416,ELEANOR PALMER TRUST NO 2 A/C.,33.97,13/08/2019
DELIVERY UNITS,ADULTS AND HEALTH,OTHER AGENCIES - THIRD PARTY P,0090187417,ELEANOR PALMER TRUST NO 2 A/C.,28.87,13/08/2019
DELIVERY UNITS,ADULTS AND HEALTH,OTHER AGENCIES - THIRD PARTY P,0090187418,ELEANOR PALMER TRUST NO 2 A/C.,26.04,13/08/2019
DELIVERY UNITS,ADULTS AND HEALTH,OTHER AGENCIES - THIRD PARTY P,0090187419,ELEANOR PALMER TRUST NO 2 A/C.,33.21,13/08/2019
DELIVERY UNITS,ADULTS AND HEALTH,OTHER AGENCIES - THIRD PARTY P,0090187420,ELEANOR PALMER TRUST NO 2 A/C.,33.97,13/08/2019
DELIVERY UNITS,ADULTS AND HEALTH,OTHER AGENCIES - THIRD PARTY P,0090187726,ELEANOR PALMER TRUST NO 2 A/C.,"3,354.64",15/08/2019
DELIVERY UNITS,ADULTS AND HEALTH,OTHER AGENCIES - THIRD PARTY P,0090187727,ELEANOR PALMER TRUST NO 2 A/C.,"3,430.46",15/08/2019
DELIVERY UNITS,ADULTS AND HEALTH,OTHER AGENCIES - THIRD PARTY P,0090187728,ELEANOR PALMER TRUST NO 2 A/C.,"3,354.64",15/08/2019
DELIVERY UNITS,ADULTS AND HEALTH,OTHER AGENCIES - THIRD PARTY P,0090187729,ELEANOR PALMER TRUST NO 2 A/C.,"3,354.64",15/08/2019
DELIVERY UNITS,ADULTS AND HEALTH,OTHER AGENCIES - THIRD PARTY P,0090187730,ELEANOR PALMER TRUST NO 2 A/C.,"3,430.46",15/08/2019
DELIVERY UNITS,ADULTS AND HEALTH,OTHER AGENCIES - THIRD PARTY P,0090187731,ELEANOR PALMER TRUST NO 2 A/C.,"2,630.35",15/08/2019
DELIVERY UNITS,ADULTS AND HEALTH,OTHER AGENCIES - THIRD PARTY P,0090187732,ELEANOR PALMER TRUST NO 2 A/C.,"3,430.46",15/08/2019
DELIVERY UNITS,ADULTS AND HEALTH,OTHER AGENCIES - THIRD PARTY P,0090187733,ELEANOR PALMER TRUST NO 2 A/C.,"2,630.35",15/08/2019
DELIVERY UNITS,ADULTS AND HEALTH,OTHER AGENCIES - THIRD PARTY P,0090187734,ELEANOR PALMER TRUST NO 2 A/C.,"2,421.19",15/08/2019
DELIVERY UNITS,ADULTS AND HEALTH,OTHER AGENCIES - THIRD PARTY P,0090187735,ELEANOR PALMER TRUST NO 2 A/C.,"-1,071.43",15/08/2019
DELIVERY UNITS,ADULTS AND HEALTH,OTHER AGENCIES - THIRD PARTY P,0090187736,ELEANOR PALMER TRUST NO 2 A/C.,"3,430.46",15/08/2019
DELIVERY UNITS,ADULTS AND HEALTH,OTHER AGENCIES - THIRD PARTY P,0090187737,ELEANOR PALMER TRUST NO 2 A/C.,"3,430.46",15/08/2019
DELIVERY UNITS,ADULTS AND HEALTH,OTHER AGENCIES - THIRD PARTY P,0090187738,ELEANOR PALMER TRUST NO 2 A/C.,"3,430.46",15/08/2019
DELIVERY UNITS,ADULTS AND HEALTH,OTHER AGENCIES - THIRD PARTY P,0090187739,ELEANOR PALMER TRUST NO 2 A/C.,"2,421.19",15/08/2019
DELIVERY UNITS,ADULTS AND HEALTH,OTHER AGENCIES - THIRD PARTY P,0090187740,ELEANOR PALMER TRUST NO 2 A/C.,"2,630.35",15/08/2019
DELIVERY UNITS,ADULTS AND HEALTH,OTHER AGENCIES - THIRD PARTY P,0090187741,ELEANOR PALMER TRUST NO 2 A/C.,"3,354.64",15/08/2019
DELIVERY UNITS,ADULTS AND HEALTH,OTHER AGENCIES - THIRD PARTY P,0090187742,ELEANOR PALMER TRUST NO 2 A/C.,"3,321.43",15/08/2019
DELIVERY UNITS,ADULTS AND HEALTH,OTHER AGENCIES - THIRD PARTY P,0090187743,ELEANOR PALMER TRUST NO 2 A/C.,"3,430.46",15/08/2019
DELIVERY UNITS,ADULTS AND HEALTH,OTHER AGENCIES - THIRD PARTY P,0090185709,ELM PARK LODGE,"3,242.51",06/08/2019
DELIVERY UNITS,ADULTS AND HEALTH,OTHER AGENCIES - THIRD PARTY P,0090189377,TORRINGTON HOMES,"2,448.78",22/08/2019
DELIVERY UNITS,ADULTS AND HEALTH,OTHER AGENCIES - THIRD PARTY P,0090189378,TORRINGTON HOMES,"2,448.78",22/08/2019
DELIVERY UNITS,ADULTS AND HEALTH,OTHER AGENCIES - THIRD PARTY P,0090189379,TORRINGTON HOMES,"2,249.45",22/08/2019
DELIVERY UNITS,ADULTS AND HEALTH,OTHER AGENCIES - THIRD PARTY P,0090186224,THE GRANGE,"2,350.08",07/08/2019
DELIVERY UNITS,ADULTS AND HEALTH,OTHER AGENCIES - THIRD PARTY P,0090186225,THE GRANGE,"2,600.00",07/08/2019
DELIVERY UNITS,ADULTS AND HEALTH,OTHER AGENCIES - THIRD PARTY P,0090185901,JEWISH CARE,"3,102.95",06/08/2019
DELIVERY UNITS,ADULTS AND HEALTH,OTHER AGENCIES - THIRD PARTY P,0090185906,JEWISH CARE,"3,050.20",06/08/2019
DELIVERY UNITS,ADULTS AND HEALTH,OTHER AGENCIES - THIRD PARTY P,0090185907,JEWISH CARE,"3,105.70",06/08/2019
DELIVERY UNITS,ADULTS AND HEALTH,OTHER AGENCIES - THIRD PARTY P,0090185908,JEWISH CARE,"3,105.70",06/08/2019
DELIVERY UNITS,ADULTS AND HEALTH,OTHER AGENCIES - THIRD PARTY P,0090185909,JEWISH CARE,"2,870.30",06/08/2019
DELIVERY UNITS,ADULTS AND HEALTH,OTHER AGENCIES - THIRD PARTY P,0090185910,JEWISH CARE,"3,099.60",06/08/2019
DELIVERY UNITS,ADULTS AND HEALTH,OTHER AGENCIES - THIRD PARTY P,0090185911,JEWISH CARE,"3,105.70",06/08/2019
DELIVERY UNITS,ADULTS AND HEALTH,OTHER AGENCIES - THIRD PARTY P,0090185914,JEWISH CARE,"3,105.70",06/08/2019
DELIVERY UNITS,ADULTS AND HEALTH,OTHER AGENCIES - THIRD PARTY P,0090185915,JEWISH CARE,"2,870.30",06/08/2019
DELIVERY UNITS,ADULTS AND HEALTH,OTHER AGENCIES - THIRD PARTY P,0090185917,JEWISH CARE,"2,870.30",06/08/2019
DELIVERY UNITS,ADULTS AND HEALTH,OTHER AGENCIES - THIRD PARTY P,0090185918,JEWISH CARE,"3,099.60",06/08/2019
DELIVERY UNITS,ADULTS AND HEALTH,OTHER AGENCIES - THIRD PARTY P,0090185919,JEWISH CARE,"3,101.15",06/08/2019
DELIVERY UNITS,ADULTS AND HEALTH,OTHER AGENCIES - THIRD PARTY P,0090185921,JEWISH CARE,"3,311.70",06/08/2019
DELIVERY UNITS,ADULTS AND HEALTH,OTHER AGENCIES - THIRD PARTY P,0090185922,JEWISH CARE,"3,101.15",06/08/2019
DELIVERY UNITS,ADULTS AND HEALTH,OTHER AGENCIES - THIRD PARTY P,0090185924,JEWISH CARE,"3,099.60",06/08/2019
DELIVERY UNITS,ADULTS AND HEALTH,OTHER AGENCIES - THIRD PARTY P,0090185925,JEWISH CARE,"3,099.60",06/08/2019
DELIVERY UNITS,ADULTS AND HEALTH,OTHER AGENCIES - THIRD PARTY P,0090185926,JEWISH CARE,"3,102.95",06/08/2019
DELIVERY UNITS,ADULTS AND HEALTH,OTHER AGENCIES - THIRD PARTY P,0090185927,JEWISH CARE,"3,105.70",06/08/2019
DELIVERY UNITS,ADULTS AND HEALTH,OTHER AGENCIES - THIRD PARTY P,0090185929,JEWISH CARE,"3,105.70",06/08/2019
DELIVERY UNITS,ADULTS AND HEALTH,OTHER AGENCIES - THIRD PARTY P,0090185931,JEWISH CARE,"2,870.30",06/08/2019
DELIVERY UNITS,ADULTS AND HEALTH,OTHER AGENCIES - THIRD PARTY P,0090185932,JEWISH CARE,"2,850.40",06/08/2019
DELIVERY UNITS,ADULTS AND HEALTH,OTHER AGENCIES - THIRD PARTY P,0090185934,JEWISH CARE,"5,520.05",06/08/2019
DELIVERY UNITS,ADULTS AND HEALTH,OTHER AGENCIES - THIRD PARTY P,0090185935,JEWISH CARE,"3,099.60",06/08/2019
DELIVERY UNITS,ADULTS AND HEALTH,OTHER AGENCIES - THIRD PARTY P,0090185936,JEWISH CARE,"3,101.15",06/08/2019
DELIVERY UNITS,ADULTS AND HEALTH,OTHER AGENCIES - THIRD PARTY P,0090185937,JEWISH CARE,"3,101.15",06/08/2019
DELIVERY UNITS,ADULTS AND HEALTH,OTHER AGENCIES - THIRD PARTY P,0090185938,JEWISH CARE,"3,099.60",06/08/2019
DELIVERY UNITS,ADULTS AND HEALTH,OTHER AGENCIES - THIRD PARTY P,0090185939,JEWISH CARE,"5,331.85",06/08/2019
DELIVERY UNITS,ADULTS AND HEALTH,OTHER AGENCIES - THIRD PARTY P,0090185941,JEWISH CARE,"2,850.40",06/08/2019
DELIVERY UNITS,ADULTS AND HEALTH,OTHER AGENCIES - THIRD PARTY P,0090185942,JEWISH CARE,"2,870.30",06/08/2019
DELIVERY UNITS,ADULTS AND HEALTH,OTHER AGENCIES - THIRD PARTY P,0090185943,JEWISH CARE,"2,696.00",06/08/2019
DELIVERY UNITS,ADULTS AND HEALTH,OTHER AGENCIES - THIRD PARTY P,0090185946,JEWISH CARE,"3,101.15",06/08/2019
DELIVERY UNITS,ADULTS AND HEALTH,OTHER AGENCIES - THIRD PARTY P,0090185947,JEWISH CARE,"3,102.95",06/08/2019
DELIVERY UNITS,ADULTS AND HEALTH,OTHER AGENCIES - THIRD PARTY P,0090185948,JEWISH CARE,"3,102.95",06/08/2019
DELIVERY UNITS,ADULTS AND HEALTH,OTHER AGENCIES - THIRD PARTY P,0090185949,JEWISH CARE,"2,870.30",06/08/2019
DELIVERY UNITS,ADULTS AND HEALTH,OTHER AGENCIES - THIRD PARTY P,0090185952,JEWISH CARE,"3,102.95",06/08/2019
DELIVERY UNITS,ADULTS AND HEALTH,OTHER AGENCIES - THIRD PARTY P,0090185953,JEWISH CARE,"3,101.15",06/08/2019
DELIVERY UNITS,ADULTS AND HEALTH,OTHER AGENCIES - THIRD PARTY P,0090185956,JEWISH CARE,"3,101.15",06/08/2019
DELIVERY UNITS,ADULTS AND HEALTH,OTHER AGENCIES - THIRD PARTY P,0090185959,JEWISH CARE,"3,105.70",06/08/2019
DELIVERY UNITS,ADULTS AND HEALTH,OTHER AGENCIES - THIRD PARTY P,0090185961,JEWISH CARE,"2,870.30",06/08/2019
DELIVERY UNITS,ADULTS AND HEALTH,OTHER AGENCIES - THIRD PARTY P,0090185964,JEWISH CARE,"2,870.30",06/08/2019
DELIVERY UNITS,ADULTS AND HEALTH,OTHER AGENCIES - THIRD PARTY P,0090185965,JEWISH CARE,"2,870.30",06/08/2019
DELIVERY UNITS,ADULTS AND HEALTH,OTHER AGENCIES - THIRD PARTY P,0090185966,JEWISH CARE,"3,099.60",06/08/2019
DELIVERY UNITS,ADULTS AND HEALTH,OTHER AGENCIES - THIRD PARTY P,0090185968,JEWISH CARE,"3,102.95",06/08/2019
DELIVERY UNITS,ADULTS AND HEALTH,OTHER AGENCIES - THIRD PARTY P,0090185969,JEWISH CARE,"3,102.95",06/08/2019
DELIVERY UNITS,ADULTS AND HEALTH,OTHER AGENCIES - THIRD PARTY P,0090185970,JEWISH CARE,"3,102.95",06/08/2019
DELIVERY UNITS,ADULTS AND HEALTH,OTHER AGENCIES - THIRD PARTY P,0090185971,JEWISH CARE,"3,099.60",06/08/2019
DELIVERY UNITS,ADULTS AND HEALTH,OTHER AGENCIES - THIRD PARTY P,0090185972,JEWISH CARE,"2,870.30",06/08/2019
DELIVERY UNITS,ADULTS AND HEALTH,OTHER AGENCIES - THIRD PARTY P,0090185976,JEWISH CARE,"3,102.95",06/08/2019
DELIVERY UNITS,ADULTS AND HEALTH,OTHER AGENCIES - THIRD PARTY P,0090185978,JEWISH CARE,"3,102.95",06/08/2019
DELIVERY UNITS,ADULTS AND HEALTH,OTHER AGENCIES - THIRD PARTY P,0090185981,JEWISH CARE,"2,870.30",06/08/2019
DELIVERY UNITS,ADULTS AND HEALTH,OTHER AGENCIES - THIRD PARTY P,0090185989,JEWISH CARE,"2,870.30",06/08/2019
DELIVERY UNITS,ADULTS AND HEALTH,OTHER AGENCIES - THIRD PARTY P,0090185990,JEWISH CARE,"2,870.30",06/08/2019
DELIVERY UNITS,ADULTS AND HEALTH,OTHER AGENCIES - THIRD PARTY P,0090185991,JEWISH CARE,708.83,06/08/2019
DELIVERY UNITS,ADULTS AND HEALTH,OTHER AGENCIES - THIRD PARTY P,0090185995,JEWISH CARE,"3,105.70",06/08/2019
DELIVERY UNITS,ADULTS AND HEALTH,OTHER AGENCIES - THIRD PARTY P,0090185996,JEWISH CARE,"3,099.60",06/08/2019
DELIVERY UNITS,ADULTS AND HEALTH,OTHER AGENCIES - THIRD PARTY P,0090185998,JEWISH CARE,"3,102.95",06/08/2019
DELIVERY UNITS,ADULTS AND HEALTH,OTHER AGENCIES - THIRD PARTY P,0090186001,JEWISH CARE,"2,870.30",06/08/2019
DELIVERY UNITS,ADULTS AND HEALTH,OTHER AGENCIES - THIRD PARTY P,0090186002,JEWISH CARE,"6,153.40",06/08/2019
DELIVERY UNITS,ADULTS AND HEALTH,OTHER AGENCIES - THIRD PARTY P,0090186006,JEWISH CARE,"2,870.30",06/08/2019
DELIVERY UNITS,ADULTS AND HEALTH,OTHER AGENCIES - THIRD PARTY P,0090186009,JEWISH CARE,"3,101.15",06/08/2019
DELIVERY UNITS,ADULTS AND HEALTH,OTHER AGENCIES - THIRD PARTY P,0090186012,JEWISH CARE,"3,099.60",06/08/2019
DELIVERY UNITS,ADULTS AND HEALTH,OTHER AGENCIES - THIRD PARTY P,0090186013,JEWISH CARE,"3,099.60",06/08/2019
DELIVERY UNITS,ADULTS AND HEALTH,OTHER AGENCIES - THIRD PARTY P,0090186014,JEWISH CARE,"3,105.70",06/08/2019
DELIVERY UNITS,ADULTS AND HEALTH,OTHER AGENCIES - THIRD PARTY P,0090186015,JEWISH CARE,"3,102.95",06/08/2019
DELIVERY UNITS,ADULTS AND HEALTH,OTHER AGENCIES - THIRD PARTY P,0090186018,JEWISH CARE,"3,105.70",06/08/2019
DELIVERY UNITS,ADULTS AND HEALTH,OTHER AGENCIES - THIRD PARTY P,0090186019,JEWISH CARE,"6,031.45",06/08/2019
DELIVERY UNITS,ADULTS AND HEALTH,OTHER AGENCIES - THIRD PARTY P,0090186020,JEWISH CARE,"3,101.15",06/08/2019
DELIVERY UNITS,ADULTS AND HEALTH,OTHER AGENCIES - THIRD PARTY P,0090186022,JEWISH CARE,"10,914.32",06/08/2019
DELIVERY UNITS,ADULTS AND HEALTH,OTHER AGENCIES - THIRD PARTY P,0090186231,CLOVELLY HOUSE RESID. HOME LTD,"2,780.00",07/08/2019
DELIVERY UNITS,ADULTS AND HEALTH,OTHER AGENCIES - THIRD PARTY P,0090186233,CLOVELLY HOUSE RESID. HOME LTD,"3,000.00",07/08/2019
DELIVERY UNITS,ADULTS AND HEALTH,OTHER AGENCIES - THIRD PARTY P,0090186234,CLOVELLY HOUSE RESID. HOME LTD,"2,600.00",07/08/2019
DELIVERY UNITS,ADULTS AND HEALTH,OTHER AGENCIES - THIRD PARTY P,0090186235,CLOVELLY HOUSE RESID. HOME LTD,"2,780.00",07/08/2019
DELIVERY UNITS,ADULTS AND HEALTH,OTHER AGENCIES - THIRD PARTY P,0090186236,CLOVELLY HOUSE RESID. HOME LTD,"2,350.08",07/08/2019
DELIVERY UNITS,ADULTS AND HEALTH,OTHER AGENCIES - THIRD PARTY P,0090186240,CLOVELLY HOUSE RESID. HOME LTD,"3,000.00",07/08/2019
DELIVERY UNITS,ADULTS AND HEALTH,OTHER AGENCIES - THIRD PARTY P,0090186242,CLOVELLY HOUSE RESID. HOME LTD,"2,350.08",07/08/2019
DELIVERY UNITS,ADULTS AND HEALTH,OTHER AGENCIES - THIRD PARTY P,0090186243,CLOVELLY HOUSE RESID. HOME LTD,"2,600.00",07/08/2019
DELIVERY UNITS,ADULTS AND HEALTH,OTHER AGENCIES - THIRD PARTY P,0090187712,FINBOND LIMITED,"3,321.43",16/08/2019
DELIVERY UNITS,ADULTS AND HEALTH,OTHER AGENCIES - THIRD PARTY P,0090187773,FINBOND LIMITED,"2,657.14",16/08/2019
DELIVERY UNITS,ADULTS AND HEALTH,OTHER AGENCIES - THIRD PARTY P,0090190073,FINBOND LIMITED,"2,431.29",29/08/2019
DELIVERY UNITS,ADULTS AND HEALTH,OTHER AGENCIES - THIRD PARTY P,0090185688,QUANTUM CARE LIMITED,"3,642.86",05/08/2019
DELIVERY UNITS,ADULTS AND HEALTH,OTHER AGENCIES - THIRD PARTY P,0090185689,QUANTUM CARE LIMITED,"3,764.29",05/08/2019
DELIVERY UNITS,ADULTS AND HEALTH,OTHER AGENCIES - THIRD PARTY P,0090185690,QUANTUM CARE LIMITED,"3,642.86",05/08/2019
DELIVERY UNITS,ADULTS AND HEALTH,OTHER AGENCIES - THIRD PARTY P,0090187694,QUANTUM CARE LIMITED,"3,321.43",15/08/2019
DELIVERY UNITS,ADULTS AND HEALTH,OTHER AGENCIES - THIRD PARTY P,0090187695,QUANTUM CARE LIMITED,"4,207.14",15/08/2019
DELIVERY UNITS,ADULTS AND HEALTH,OTHER AGENCIES - THIRD PARTY P,0090186664,CATHERINE LODGE,"2,601.87",15/08/2019
DELIVERY UNITS,ADULTS AND HEALTH,OTHER AGENCIES - THIRD PARTY P,0090186666,CATHERINE LODGE,"3,321.43",15/08/2019
DELIVERY UNITS,ADULTS AND HEALTH,OTHER AGENCIES - THIRD PARTY P,0090186667,CATHERINE LODGE,"2,601.87",15/08/2019
DELIVERY UNITS,ADULTS AND HEALTH,OTHER AGENCIES - THIRD PARTY P,0090186669,CATHERINE LODGE,"2,601.87",15/08/2019
DELIVERY UNITS,ADULTS AND HEALTH,OTHER AGENCIES - THIRD PARTY P,0090186671,CATHERINE LODGE,"3,764.29",15/08/2019
DELIVERY UNITS,ADULTS AND HEALTH,OTHER AGENCIES - THIRD PARTY P,0090186366,BUPA NURSING HOMES LTD - ARKLEY,"2,218.04",08/08/2019
DELIVERY UNITS,ADULTS AND HEALTH,OTHER AGENCIES - THIRD PARTY P,0090186371,BUPA NURSING HOMES LTD - ARKLEY,"2,167.68",08/08/2019
DELIVERY UNITS,ADULTS AND HEALTH,OTHER AGENCIES - THIRD PARTY P,0090189541,BUPA NURSING HOMES LTD - ARKLEY,"2,218.04",22/08/2019
DELIVERY UNITS,ADULTS AND HEALTH,OTHER AGENCIES - THIRD PARTY P,0090189544,BUPA NURSING HOMES LTD - ARKLEY,"2,167.68",22/08/2019
DELIVERY UNITS,ADULTS AND HEALTH,OTHER AGENCIES - THIRD PARTY P,0090189329,SUNRIDGE HOUSING ASSOCIATION LTD,"2,898.19",22/08/2019
DELIVERY UNITS,ADULTS AND HEALTH,OTHER AGENCIES - THIRD PARTY P,0090189330,SUNRIDGE HOUSING ASSOCIATION LTD,"2,989.58",22/08/2019
DELIVERY UNITS,ADULTS AND HEALTH,OTHER AGENCIES - THIRD PARTY P,0090186245,NAZARETH HOUSE,"2,186.88",07/08/2019
DELIVERY UNITS,ADULTS AND HEALTH,OTHER AGENCIES - THIRD PARTY P,0090186246,NAZARETH HOUSE,"2,186.88",07/08/2019
DELIVERY UNITS,ADULTS AND HEALTH,OTHER AGENCIES - THIRD PARTY P,0090186247,NAZARETH HOUSE,"2,186.88",07/08/2019
DELIVERY UNITS,ADULTS AND HEALTH,OTHER AGENCIES - THIRD PARTY P,0090186248,NAZARETH HOUSE,"2,186.88",07/08/2019
DELIVERY UNITS,ADULTS AND HEALTH,OTHER AGENCIES - THIRD PARTY P,0090186249,NAZARETH HOUSE,"2,350.08",07/08/2019
DELIVERY UNITS,ADULTS AND HEALTH,OTHER AGENCIES - THIRD PARTY P,0090186250,NAZARETH HOUSE,"2,186.88",07/08/2019
DELIVERY UNITS,ADULTS AND HEALTH,OTHER AGENCIES - THIRD PARTY P,0090186251,NAZARETH HOUSE,"2,186.88",07/08/2019
DELIVERY UNITS,ADULTS AND HEALTH,OTHER AGENCIES - THIRD PARTY P,0090186253,NAZARETH HOUSE,"2,650.40",07/08/2019
DELIVERY UNITS,ADULTS AND HEALTH,OTHER AGENCIES - THIRD PARTY P,0090186254,NAZARETH HOUSE,"2,186.88",07/08/2019
DELIVERY UNITS,ADULTS AND HEALTH,OTHER AGENCIES - THIRD PARTY P,0090186255,NAZARETH HOUSE,"2,186.88",07/08/2019
DELIVERY UNITS,ADULTS AND HEALTH,OTHER AGENCIES - THIRD PARTY P,0090186256,NAZARETH HOUSE,"2,350.08",07/08/2019
DELIVERY UNITS,ADULTS AND HEALTH,OTHER AGENCIES - THIRD PARTY P,0090186257,NAZARETH HOUSE,"2,186.88",07/08/2019
DELIVERY UNITS,ADULTS AND HEALTH,OTHER AGENCIES - THIRD PARTY P,0090186258,NAZARETH HOUSE,"2,186.88",07/08/2019
DELIVERY UNITS,ADULTS AND HEALTH,OTHER AGENCIES - THIRD PARTY P,0090186259,NAZARETH HOUSE,"2,186.88",07/08/2019
DELIVERY UNITS,ADULTS AND HEALTH,OTHER AGENCIES - THIRD PARTY P,0090186260,NAZARETH HOUSE,"2,186.88",07/08/2019
DELIVERY UNITS,ADULTS AND HEALTH,OTHER AGENCIES - THIRD PARTY P,0090186261,NAZARETH HOUSE,"2,186.88",07/08/2019
DELIVERY UNITS,ADULTS AND HEALTH,OTHER AGENCIES - THIRD PARTY P,0090186262,NAZARETH HOUSE,"2,350.08",07/08/2019
DELIVERY UNITS,ADULTS AND HEALTH,OTHER AGENCIES - THIRD PARTY P,0090186263,NAZARETH HOUSE,"2,186.88",07/08/2019
DELIVERY UNITS,ADULTS AND HEALTH,OTHER AGENCIES - THIRD PARTY P,0090186264,NAZARETH HOUSE,"2,186.88",07/08/2019
DELIVERY UNITS,ADULTS AND HEALTH,OTHER AGENCIES - THIRD PARTY P,0090189549,NAZARETH HOUSE,"2,186.88",22/08/2019
DELIVERY UNITS,ADULTS AND HEALTH,OTHER AGENCIES - THIRD PARTY P,0090189550,NAZARETH HOUSE,"2,144.00",22/08/2019
DELIVERY UNITS,ADULTS AND HEALTH,OTHER AGENCIES - THIRD PARTY P,0090189551,NAZARETH HOUSE,"2,186.88",22/08/2019
DELIVERY UNITS,ADULTS AND HEALTH,OTHER AGENCIES - THIRD PARTY P,0090189552,NAZARETH HOUSE,"2,186.88",22/08/2019
DELIVERY UNITS,ADULTS AND HEALTH,OTHER AGENCIES - THIRD PARTY P,0090189553,NAZARETH HOUSE,"2,186.88",22/08/2019
DELIVERY UNITS,ADULTS AND HEALTH,OTHER AGENCIES - THIRD PARTY P,0090189563,NAZARETH HOUSE,"1,837.71",22/08/2019
DELIVERY UNITS,ADULTS AND HEALTH,OTHER AGENCIES - THIRD PARTY P,0090189564,NAZARETH HOUSE,"2,144.00",22/08/2019
DELIVERY UNITS,ADULTS AND HEALTH,OTHER AGENCIES - THIRD PARTY P,0090189565,NAZARETH HOUSE,"2,144.00",22/08/2019
DELIVERY UNITS,ADULTS AND HEALTH,OTHER AGENCIES - THIRD PARTY P,0090189566,NAZARETH HOUSE,"2,144.00",22/08/2019
DELIVERY UNITS,ADULTS AND HEALTH,OTHER AGENCIES - THIRD PARTY P,0090189567,NAZARETH HOUSE,"2,144.00",22/08/2019
DELIVERY UNITS,ADULTS AND HEALTH,OTHER AGENCIES - THIRD PARTY P,0090189702,NAZARETH HOUSE,"2,421.19",23/08/2019
DELIVERY UNITS,ADULTS AND HEALTH,OTHER AGENCIES - THIRD PARTY P,0090190088,NAZARETH HOUSE,"2,186.88",29/08/2019
DELIVERY UNITS,ADULTS AND HEALTH,OTHER AGENCIES - THIRD PARTY P,0090189299,KESTREL GROVE NURSING HOME,"3,060.14",22/08/2019
DELIVERY UNITS,ADULTS AND HEALTH,OTHER AGENCIES - THIRD PARTY P,0090185283,FRIARY LODGE,"3,321.43",01/08/2019
DELIVERY UNITS,ADULTS AND HEALTH,OTHER AGENCIES - THIRD PARTY P,0090185284,FRIARY LODGE,"3,321.42",01/08/2019
DELIVERY UNITS,ADULTS AND HEALTH,OTHER AGENCIES - THIRD PARTY P,0090186629,THE WOODSIDE HOME,"2,186.88",09/08/2019
DELIVERY UNITS,ADULTS AND HEALTH,OTHER AGENCIES - THIRD PARTY P,0090186630,THE WOODSIDE HOME,"2,186.88",09/08/2019
DELIVERY UNITS,ADULTS AND HEALTH,OTHER AGENCIES - THIRD PARTY P,0090186631,THE WOODSIDE HOME,"2,186.88",09/08/2019
DELIVERY UNITS,ADULTS AND HEALTH,OTHER AGENCIES - THIRD PARTY P,0090187543,THE WOODSIDE HOME,"2,186.88",22/08/2019
DELIVERY UNITS,ADULTS AND HEALTH,OTHER AGENCIES - THIRD PARTY P,0090187544,THE WOODSIDE HOME,"1,093.44",22/08/2019
DELIVERY UNITS,ADULTS AND HEALTH,OTHER AGENCIES - THIRD PARTY P,0090190084,THE WOODSIDE HOME,335.72,29/08/2019
DELIVERY UNITS,ADULTS AND HEALTH,OTHER AGENCIES - THIRD PARTY P,0090190085,THE WOODSIDE HOME,952.74,29/08/2019
DELIVERY UNITS,ADULTS AND HEALTH,OTHER AGENCIES - THIRD PARTY P,0090186321,WESTMINSTER HEALTH CARE LTD,"3,741.92",08/08/2019
DELIVERY UNITS,ADULTS AND HEALTH,OTHER AGENCIES - THIRD PARTY P,0090186633,METHODIST HOMES FOR THE AGED,"2,631.76",12/08/2019
DELIVERY UNITS,ADULTS AND HEALTH,OTHER AGENCIES - THIRD PARTY P,0090186340,SYDMAR LODGE,"2,389.76",08/08/2019
DELIVERY UNITS,ADULTS AND HEALTH,OTHER AGENCIES - THIRD PARTY P,0090186341,SYDMAR LODGE,"2,796.75",08/08/2019
DELIVERY UNITS,ADULTS AND HEALTH,OTHER AGENCIES - THIRD PARTY P,0090186342,SYDMAR LODGE,"2,425.41",08/08/2019
DELIVERY UNITS,ADULTS AND HEALTH,OTHER AGENCIES - THIRD PARTY P,0090186343,SYDMAR LODGE,"2,425.41",08/08/2019
DELIVERY UNITS,ADULTS AND HEALTH,OTHER AGENCIES - THIRD PARTY P,0090186346,SYDMAR LODGE,"2,469.42",08/08/2019
DELIVERY UNITS,ADULTS AND HEALTH,OTHER AGENCIES - THIRD PARTY P,0090186347,SYDMAR LODGE,"2,506.26",08/08/2019
DELIVERY UNITS,ADULTS AND HEALTH,OTHER AGENCIES - THIRD PARTY P,0090186348,SYDMAR LODGE,"2,506.26",08/08/2019
DELIVERY UNITS,ADULTS AND HEALTH,OTHER AGENCIES - THIRD PARTY P,0090186349,SYDMAR LODGE,"2,425.41",08/08/2019
DELIVERY UNITS,ADULTS AND HEALTH,OTHER AGENCIES - THIRD PARTY P,0090186350,SYDMAR LODGE,"2,425.41",08/08/2019
DELIVERY UNITS,ADULTS AND HEALTH,OTHER AGENCIES - THIRD PARTY P,0090186351,SYDMAR LODGE,"2,469.42",08/08/2019
DELIVERY UNITS,ADULTS AND HEALTH,OTHER AGENCIES - THIRD PARTY P,0090186352,SYDMAR LODGE,"2,506.26",08/08/2019
DELIVERY UNITS,ADULTS AND HEALTH,OTHER AGENCIES - THIRD PARTY P,0090186353,SYDMAR LODGE,"2,506.26",08/08/2019
DELIVERY UNITS,ADULTS AND HEALTH,OTHER AGENCIES - THIRD PARTY P,0090186354,SYDMAR LODGE,"2,469.42",08/08/2019
DELIVERY UNITS,ADULTS AND HEALTH,OTHER AGENCIES - THIRD PARTY P,0090186356,SYDMAR LODGE,"2,506.26",08/08/2019
DELIVERY UNITS,ADULTS AND HEALTH,OTHER AGENCIES - THIRD PARTY P,0090186357,SYDMAR LODGE,"4,756.41",09/08/2019
DELIVERY UNITS,ADULTS AND HEALTH,OTHER AGENCIES - THIRD PARTY P,0090186358,SYDMAR LODGE,"2,506.26",08/08/2019
DELIVERY UNITS,ADULTS AND HEALTH,OTHER AGENCIES - THIRD PARTY P,0090190970,SYDMAR LODGE,"2,389.76",30/08/2019
DELIVERY UNITS,ADULTS AND HEALTH,OTHER AGENCIES - THIRD PARTY P,0090190971,SYDMAR LODGE,"2,550.86",30/08/2019
DELIVERY UNITS,ADULTS AND HEALTH,OTHER AGENCIES - THIRD PARTY P,0090190972,SYDMAR LODGE,"1,563.43",30/08/2019
DELIVERY UNITS,ADULTS AND HEALTH,OTHER AGENCIES - THIRD PARTY P,0090187744,THE LIMES RESIDENTIAL HOME,"2,421.19",15/08/2019
DELIVERY UNITS,ADULTS AND HEALTH,OTHER AGENCIES - THIRD PARTY P,0090187745,THE LIMES RESIDENTIAL HOME,"2,878.57",15/08/2019
DELIVERY UNITS,ADULTS AND HEALTH,OTHER AGENCIES - THIRD PARTY P,0090187746,THE LIMES RESIDENTIAL HOME,"2,601.87",15/08/2019
DELIVERY UNITS,ADULTS AND HEALTH,OTHER AGENCIES - THIRD PARTY P,0090187748,THE LIMES RESIDENTIAL HOME,"2,601.87",15/08/2019
DELIVERY UNITS,ADULTS AND HEALTH,OTHER AGENCIES - THIRD PARTY P,0090187749,THE LIMES RESIDENTIAL HOME,"2,601.87",15/08/2019
DELIVERY UNITS,ADULTS AND HEALTH,OTHER AGENCIES - THIRD PARTY P,0090187750,THE LIMES RESIDENTIAL HOME,"2,601.87",15/08/2019
DELIVERY UNITS,ADULTS AND HEALTH,OTHER AGENCIES - THIRD PARTY P,0090187752,THE LIMES RESIDENTIAL HOME,"2,421.19",15/08/2019
DELIVERY UNITS,ADULTS AND HEALTH,OTHER AGENCIES - THIRD PARTY P,0090187753,THE LIMES RESIDENTIAL HOME,"2,550.86",15/08/2019
DELIVERY UNITS,ADULTS AND HEALTH,OTHER AGENCIES - THIRD PARTY P,0090187754,THE LIMES RESIDENTIAL HOME,"2,601.87",15/08/2019
DELIVERY UNITS,ADULTS AND HEALTH,OTHER AGENCIES - THIRD PARTY P,0090187755,THE LIMES RESIDENTIAL HOME,"2,601.87",15/08/2019
DELIVERY UNITS,ADULTS AND HEALTH,OTHER AGENCIES - THIRD PARTY P,0090187756,THE LIMES RESIDENTIAL HOME,"2,601.87",15/08/2019
DELIVERY UNITS,ADULTS AND HEALTH,OTHER AGENCIES - THIRD PARTY P,0090187757,THE LIMES RESIDENTIAL HOME,"2,550.86",15/08/2019
DELIVERY UNITS,ADULTS AND HEALTH,OTHER AGENCIES - THIRD PARTY P,0090187758,THE LIMES RESIDENTIAL HOME,"2,601.87",15/08/2019
DELIVERY UNITS,ADULTS AND HEALTH,OTHER AGENCIES - THIRD PARTY P,0090187759,THE LIMES RESIDENTIAL HOME,"2,601.87",15/08/2019
DELIVERY UNITS,ADULTS AND HEALTH,OTHER AGENCIES - THIRD PARTY P,0090187760,THE LIMES RESIDENTIAL HOME,"2,601.87",15/08/2019
DELIVERY UNITS,ADULTS AND HEALTH,OTHER AGENCIES - THIRD PARTY P,0090189331,SCIMITAR CARE HOTELS PLC,"3,985.71",29/08/2019
DELIVERY UNITS,ADULTS AND HEALTH,OTHER AGENCIES - THIRD PARTY P,0090189332,SCIMITAR CARE HOTELS PLC,"3,764.29",29/08/2019
DELIVERY UNITS,ADULTS AND HEALTH,OTHER AGENCIES - THIRD PARTY P,0090189333,SCIMITAR CARE HOTELS PLC,"4,207.14",29/08/2019
DELIVERY UNITS,ADULTS AND HEALTH,OTHER AGENCIES - THIRD PARTY P,0090187688,MEERA NURSING HOME LIMITED,"3,542.86",15/08/2019
DELIVERY UNITS,ADULTS AND HEALTH,OTHER AGENCIES - THIRD PARTY P,0090187703,MEERA NURSING HOME LIMITED,"3,428.57",15/08/2019
DELIVERY UNITS,ADULTS AND HEALTH,OTHER AGENCIES - THIRD PARTY P,0090187950,MEERA NURSING HOME LIMITED,"3,542.86",19/08/2019
DELIVERY UNITS,ADULTS AND HEALTH,OTHER AGENCIES - THIRD PARTY P,0090187677,BUPA CARE HOMES,"2,589.03",15/08/2019
DELIVERY UNITS,ADULTS AND HEALTH,OTHER AGENCIES - THIRD PARTY P,0090187679,BUPA CARE HOMES,"2,546.74",15/08/2019
DELIVERY UNITS,ADULTS AND HEALTH,OTHER AGENCIES - THIRD PARTY P,0090187680,BUPA CARE HOMES,"2,446.74",15/08/2019
DELIVERY UNITS,ADULTS AND HEALTH,OTHER AGENCIES - THIRD PARTY P,0090186266,ANASTASIA LODGE,"2,800.00",07/08/2019
DELIVERY UNITS,ADULTS AND HEALTH,OTHER AGENCIES - THIRD PARTY P,0090186267,ANASTASIA LODGE,"3,600.00",07/08/2019
DELIVERY UNITS,ADULTS AND HEALTH,OTHER AGENCIES - THIRD PARTY P,0090187717,HILTON LODGE LTD.,"2,880.00",15/08/2019
DELIVERY UNITS,ADULTS AND HEALTH,OTHER AGENCIES - THIRD PARTY P,0090187526,FOUR SEASONS HEALTH CARE,"2,489.15",15/08/2019
DELIVERY UNITS,ADULTS AND HEALTH,OTHER AGENCIES - THIRD PARTY P,0090186658,VENTRY RESIDENTIAL CARE LTD,"3,100.00",09/08/2019
DELIVERY UNITS,ADULTS AND HEALTH,OTHER AGENCIES - THIRD PARTY P,0090186661,VENTRY RESIDENTIAL CARE LTD,"2,601.87",09/08/2019
DELIVERY UNITS,ADULTS AND HEALTH,OTHER AGENCIES - THIRD PARTY P,0090186222,B & M CARE,"2,249.45",07/08/2019
DELIVERY UNITS,ADULTS AND HEALTH,OTHER AGENCIES - THIRD PARTY P,0090187963,EASTSIDE HOUSE RESIDENTIAL CARE HOM,"15,750.00",23/08/2019
DELIVERY UNITS,ADULTS AND HEALTH,OTHER AGENCIES - THIRD PARTY P,0090187696,APPLE TREE COURT CARE HOME,"3,764.29",15/08/2019
DELIVERY UNITS,ADULTS AND HEALTH,OTHER AGENCIES - THIRD PARTY P,0090187697,APPLE TREE COURT CARE HOME,"3,764.29",15/08/2019
DELIVERY UNITS,ADULTS AND HEALTH,OTHER AGENCIES - THIRD PARTY P,0090189314,R.M.B.I,"2,249.45",23/08/2019
DELIVERY UNITS,ADULTS AND HEALTH,OTHER AGENCIES - THIRD PARTY P,0090189548,SWANBOROUGH HOUSE,"4,121.27",22/08/2019
DELIVERY UNITS,ADULTS AND HEALTH,OTHER AGENCIES - THIRD PARTY P,0090186635,ASHFIELDS RESIDENTIAL CARE HOME,"3,321.43",09/08/2019
DELIVERY UNITS,ADULTS AND HEALTH,OTHER AGENCIES - THIRD PARTY P,0090187209,ASHFIELDS RESIDENTIAL CARE HOME,"2,601.87",12/08/2019
DELIVERY UNITS,ADULTS AND HEALTH,OTHER AGENCIES - THIRD PARTY P,0090187210,ASHFIELDS RESIDENTIAL CARE HOME,"2,421.19",12/08/2019
DELIVERY UNITS,ADULTS AND HEALTH,OTHER AGENCIES - THIRD PARTY P,0090190076,ASHFIELDS RESIDENTIAL CARE HOME,"1,371.43",29/08/2019
DELIVERY UNITS,ADULTS AND HEALTH,OTHER AGENCIES - THIRD PARTY P,0090186268,AUTUMN GARDENS,"3,160.00",07/08/2019
DELIVERY UNITS,ADULTS AND HEALTH,OTHER AGENCIES - THIRD PARTY P,0090186270,AUTUMN GARDENS,"3,560.00",07/08/2019
DELIVERY UNITS,ADULTS AND HEALTH,OTHER AGENCIES - THIRD PARTY P,0090186273,AUTUMN GARDENS,"2,880.00",07/08/2019
DELIVERY UNITS,ADULTS AND HEALTH,OTHER AGENCIES - THIRD PARTY P,0090186228,THE CHRISTIAN CARE TRUST,"2,350.08",07/08/2019
DELIVERY UNITS,ADULTS AND HEALTH,OTHER AGENCIES - THIRD PARTY P,0090186229,THE CHRISTIAN CARE TRUST,"2,350.08",07/08/2019
DELIVERY UNITS,ADULTS AND HEALTH,OTHER AGENCIES - THIRD PARTY P,0090189560,ABBEY RAVENSCROFT PARK NURSING HOME,800.00,22/08/2019
DELIVERY UNITS,ADULTS AND HEALTH,OTHER AGENCIES - THIRD PARTY P,0090189561,ABBEY RAVENSCROFT PARK NURSING HOME,"1,942.86",22/08/2019
DELIVERY UNITS,ADULTS AND HEALTH,OTHER AGENCIES - THIRD PARTY P,0090190047,ABBEY RAVENSCROFT PARK NURSING HOME,"3,321.43",28/08/2019
DELIVERY UNITS,ADULTS AND HEALTH,OTHER AGENCIES - THIRD PARTY P,0090190048,ABBEY RAVENSCROFT PARK NURSING HOME,"3,321.43",28/08/2019
DELIVERY UNITS,ADULTS AND HEALTH,OTHER AGENCIES - THIRD PARTY P,0090189301,CARLTON COURT (TLC GROUP),"2,249.45",22/08/2019
DELIVERY UNITS,ADULTS AND HEALTH,OTHER AGENCIES - THIRD PARTY P,0090189682,ASHTON LODGE CARE CENTRE,"3,541.79",23/08/2019
DELIVERY UNITS,ADULTS AND HEALTH,OTHER AGENCIES - THIRD PARTY P,0090185519,THE BARNETGROUP LIMITED,"2,144.00",01/08/2019
DELIVERY UNITS,ADULTS AND HEALTH,OTHER AGENCIES - THIRD PARTY P,0090185521,THE BARNETGROUP LIMITED,"2,144.00",01/08/2019
DELIVERY UNITS,ADULTS AND HEALTH,OTHER AGENCIES - THIRD PARTY P,0090185522,THE BARNETGROUP LIMITED,"2,304.00",01/08/2019
DELIVERY UNITS,ADULTS AND HEALTH,OTHER AGENCIES - THIRD PARTY P,0090185523,THE BARNETGROUP LIMITED,"2,144.00",01/08/2019
DELIVERY UNITS,ADULTS AND HEALTH,OTHER AGENCIES - THIRD PARTY P,0090185524,THE BARNETGROUP LIMITED,"2,304.00",01/08/2019
DELIVERY UNITS,ADULTS AND HEALTH,OTHER AGENCIES - THIRD PARTY P,0090185525,THE BARNETGROUP LIMITED,"2,144.00",01/08/2019
DELIVERY UNITS,ADULTS AND HEALTH,OTHER AGENCIES - THIRD PARTY P,0090185526,THE BARNETGROUP LIMITED,"2,144.00",01/08/2019
DELIVERY UNITS,ADULTS AND HEALTH,OTHER AGENCIES - THIRD PARTY P,0090185527,THE BARNETGROUP LIMITED,"2,144.00",01/08/2019
DELIVERY UNITS,ADULTS AND HEALTH,OTHER AGENCIES - THIRD PARTY P,0090185528,THE BARNETGROUP LIMITED,"2,144.00",01/08/2019
DELIVERY UNITS,ADULTS AND HEALTH,OTHER AGENCIES - THIRD PARTY P,0090185529,THE BARNETGROUP LIMITED,"2,144.00",01/08/2019
DELIVERY UNITS,ADULTS AND HEALTH,OTHER AGENCIES - THIRD PARTY P,0090185530,THE BARNETGROUP LIMITED,"2,144.00",01/08/2019
DELIVERY UNITS,ADULTS AND HEALTH,OTHER AGENCIES - THIRD PARTY P,0090185531,THE BARNETGROUP LIMITED,"2,304.00",01/08/2019
DELIVERY UNITS,ADULTS AND HEALTH,OTHER AGENCIES - THIRD PARTY P,0090185532,THE BARNETGROUP LIMITED,"2,304.00",01/08/2019
DELIVERY UNITS,ADULTS AND HEALTH,OTHER AGENCIES - THIRD PARTY P,0090185533,THE BARNETGROUP LIMITED,"2,144.00",01/08/2019
DELIVERY UNITS,ADULTS AND HEALTH,OTHER AGENCIES - THIRD PARTY P,0090185534,THE BARNETGROUP LIMITED,"2,144.00",01/08/2019
DELIVERY UNITS,ADULTS AND HEALTH,OTHER AGENCIES - THIRD PARTY P,0090185535,THE BARNETGROUP LIMITED,"2,304.00",01/08/2019
DELIVERY UNITS,ADULTS AND HEALTH,OTHER AGENCIES - THIRD PARTY P,0090185536,THE BARNETGROUP LIMITED,"2,304.00",01/08/2019
DELIVERY UNITS,ADULTS AND HEALTH,OTHER AGENCIES - THIRD PARTY P,0090185537,THE BARNETGROUP LIMITED,"2,694.00",01/08/2019
DELIVERY UNITS,ADULTS AND HEALTH,OTHER AGENCIES - THIRD PARTY P,0090185538,THE BARNETGROUP LIMITED,"25,714.04",01/08/2019
DELIVERY UNITS,ADULTS AND HEALTH,OTHER AGENCIES - THIRD PARTY P,0090185539,THE BARNETGROUP LIMITED,"2,144.00",01/08/2019
DELIVERY UNITS,ADULTS AND HEALTH,OTHER AGENCIES - THIRD PARTY P,0090185540,THE BARNETGROUP LIMITED,"2,144.00",01/08/2019
DELIVERY UNITS,ADULTS AND HEALTH,OTHER AGENCIES - THIRD PARTY P,0090185541,THE BARNETGROUP LIMITED,"2,144.00",01/08/2019
DELIVERY UNITS,ADULTS AND HEALTH,OTHER AGENCIES - THIRD PARTY P,0090185542,THE BARNETGROUP LIMITED,"2,304.00",01/08/2019
DELIVERY UNITS,ADULTS AND HEALTH,OTHER AGENCIES - THIRD PARTY P,0090185543,THE BARNETGROUP LIMITED,"2,304.00",01/08/2019
DELIVERY UNITS,ADULTS AND HEALTH,OTHER AGENCIES - THIRD PARTY P,0090185544,THE BARNETGROUP LIMITED,"2,144.00",01/08/2019
DELIVERY UNITS,ADULTS AND HEALTH,OTHER AGENCIES - THIRD PARTY P,0090185545,THE BARNETGROUP LIMITED,"2,144.00",01/08/2019
DELIVERY UNITS,ADULTS AND HEALTH,OTHER AGENCIES - THIRD PARTY P,0090185546,THE BARNETGROUP LIMITED,"2,144.00",01/08/2019
DELIVERY UNITS,ADULTS AND HEALTH,OTHER AGENCIES - THIRD PARTY P,0090185547,THE BARNETGROUP LIMITED,"2,304.00",01/08/2019
DELIVERY UNITS,ADULTS AND HEALTH,OTHER AGENCIES - THIRD PARTY P,0090185549,THE BARNETGROUP LIMITED,"2,304.00",01/08/2019
DELIVERY UNITS,ADULTS AND HEALTH,OTHER AGENCIES - THIRD PARTY P,0090185550,THE BARNETGROUP LIMITED,"2,304.00",01/08/2019
DELIVERY UNITS,ADULTS AND HEALTH,OTHER AGENCIES - THIRD PARTY P,0090185551,THE BARNETGROUP LIMITED,"2,304.00",01/08/2019
DELIVERY UNITS,ADULTS AND HEALTH,OTHER AGENCIES - THIRD PARTY P,0090185552,THE BARNETGROUP LIMITED,"2,144.00",01/08/2019
DELIVERY UNITS,ADULTS AND HEALTH,OTHER AGENCIES - THIRD PARTY P,0090185553,THE BARNETGROUP LIMITED,"2,304.00",01/08/2019
DELIVERY UNITS,ADULTS AND HEALTH,OTHER AGENCIES - THIRD PARTY P,0090185554,THE BARNETGROUP LIMITED,"2,144.00",01/08/2019
DELIVERY UNITS,ADULTS AND HEALTH,OTHER AGENCIES - THIRD PARTY P,0090185555,THE BARNETGROUP LIMITED,403.57,01/08/2019
DELIVERY UNITS,ADULTS AND HEALTH,OTHER AGENCIES - THIRD PARTY P,0090185556,THE BARNETGROUP LIMITED,"2,304.00",01/08/2019
DELIVERY UNITS,ADULTS AND HEALTH,OTHER AGENCIES - THIRD PARTY P,0090185557,THE BARNETGROUP LIMITED,"2,144.00",01/08/2019
DELIVERY UNITS,ADULTS AND HEALTH,OTHER AGENCIES - THIRD PARTY P,0090185560,THE BARNETGROUP LIMITED,"2,304.00",01/08/2019
DELIVERY UNITS,ADULTS AND HEALTH,OTHER AGENCIES - THIRD PARTY P,0090185561,THE BARNETGROUP LIMITED,"2,304.00",01/08/2019
DELIVERY UNITS,ADULTS AND HEALTH,OTHER AGENCIES - THIRD PARTY P,0090185562,THE BARNETGROUP LIMITED,"2,144.00",01/08/2019
DELIVERY UNITS,ADULTS AND HEALTH,OTHER AGENCIES - THIRD PARTY P,0090185563,THE BARNETGROUP LIMITED,"2,304.00",01/08/2019
DELIVERY UNITS,ADULTS AND HEALTH,OTHER AGENCIES - THIRD PARTY P,0090185564,THE BARNETGROUP LIMITED,"2,144.00",01/08/2019
DELIVERY UNITS,ADULTS AND HEALTH,OTHER AGENCIES - THIRD PARTY P,0090185565,THE BARNETGROUP LIMITED,"2,144.00",01/08/2019
DELIVERY UNITS,ADULTS AND HEALTH,OTHER AGENCIES - THIRD PARTY P,0090185566,THE BARNETGROUP LIMITED,"2,144.00",01/08/2019
DELIVERY UNITS,ADULTS AND HEALTH,OTHER AGENCIES - THIRD PARTY P,0090185567,THE BARNETGROUP LIMITED,"2,144.00",01/08/2019
DELIVERY UNITS,ADULTS AND HEALTH,OTHER AGENCIES - THIRD PARTY P,0090185568,THE BARNETGROUP LIMITED,"2,144.00",01/08/2019
DELIVERY UNITS,ADULTS AND HEALTH,OTHER AGENCIES - THIRD PARTY P,0090185570,THE BARNETGROUP LIMITED,"4,062.40",01/08/2019
DELIVERY UNITS,ADULTS AND HEALTH,OTHER AGENCIES - THIRD PARTY P,0090185572,THE BARNETGROUP LIMITED,"2,144.00",01/08/2019
DELIVERY UNITS,ADULTS AND HEALTH,OTHER AGENCIES - THIRD PARTY P,0090185573,THE BARNETGROUP LIMITED,"2,144.00",01/08/2019
DELIVERY UNITS,ADULTS AND HEALTH,OTHER AGENCIES - THIRD PARTY P,0090185575,THE BARNETGROUP LIMITED,"2,304.00",01/08/2019
DELIVERY UNITS,ADULTS AND HEALTH,OTHER AGENCIES - THIRD PARTY P,0090185577,THE BARNETGROUP LIMITED,"2,144.00",01/08/2019
DELIVERY UNITS,ADULTS AND HEALTH,OTHER AGENCIES - THIRD PARTY P,0090185578,THE BARNETGROUP LIMITED,"2,144.00",01/08/2019
DELIVERY UNITS,ADULTS AND HEALTH,OTHER AGENCIES - THIRD PARTY P,0090185579,THE BARNETGROUP LIMITED,"2,144.00",01/08/2019
DELIVERY UNITS,ADULTS AND HEALTH,OTHER AGENCIES - THIRD PARTY P,0090185580,THE BARNETGROUP LIMITED,"2,144.00",01/08/2019
DELIVERY UNITS,ADULTS AND HEALTH,OTHER AGENCIES - THIRD PARTY P,0090185582,THE BARNETGROUP LIMITED,"2,144.00",01/08/2019
DELIVERY UNITS,ADULTS AND HEALTH,OTHER AGENCIES - THIRD PARTY P,0090185583,THE BARNETGROUP LIMITED,"2,144.00",01/08/2019
DELIVERY UNITS,ADULTS AND HEALTH,OTHER AGENCIES - THIRD PARTY P,0090185584,THE BARNETGROUP LIMITED,"2,304.00",01/08/2019
DELIVERY UNITS,ADULTS AND HEALTH,OTHER AGENCIES - THIRD PARTY P,0090185585,THE BARNETGROUP LIMITED,"2,144.00",01/08/2019
DELIVERY UNITS,ADULTS AND HEALTH,OTHER AGENCIES - THIRD PARTY P,0090185586,THE BARNETGROUP LIMITED,"2,144.00",01/08/2019
DELIVERY UNITS,ADULTS AND HEALTH,OTHER AGENCIES - THIRD PARTY P,0090185587,THE BARNETGROUP LIMITED,"2,144.00",01/08/2019
DELIVERY UNITS,ADULTS AND HEALTH,OTHER AGENCIES - THIRD PARTY P,0090185589,THE BARNETGROUP LIMITED,"4,080.00",01/08/2019
DELIVERY UNITS,ADULTS AND HEALTH,OTHER AGENCIES - THIRD PARTY P,0090185590,THE BARNETGROUP LIMITED,"2,304.00",01/08/2019
DELIVERY UNITS,ADULTS AND HEALTH,OTHER AGENCIES - THIRD PARTY P,0090185593,THE BARNETGROUP LIMITED,"2,304.00",01/08/2019
DELIVERY UNITS,ADULTS AND HEALTH,OTHER AGENCIES - THIRD PARTY P,0090185594,THE BARNETGROUP LIMITED,"2,144.00",01/08/2019
DELIVERY UNITS,ADULTS AND HEALTH,OTHER AGENCIES - THIRD PARTY P,0090185595,THE BARNETGROUP LIMITED,"2,144.00",01/08/2019
DELIVERY UNITS,ADULTS AND HEALTH,OTHER AGENCIES - THIRD PARTY P,0090185596,THE BARNETGROUP LIMITED,"2,304.00",01/08/2019
DELIVERY UNITS,ADULTS AND HEALTH,OTHER AGENCIES - THIRD PARTY P,0090185597,THE BARNETGROUP LIMITED,"2,304.00",01/08/2019
DELIVERY UNITS,ADULTS AND HEALTH,OTHER AGENCIES - THIRD PARTY P,0090185598,THE BARNETGROUP LIMITED,"2,304.00",01/08/2019
DELIVERY UNITS,ADULTS AND HEALTH,OTHER AGENCIES - THIRD PARTY P,0090185599,THE BARNETGROUP LIMITED,"2,144.00",01/08/2019
DELIVERY UNITS,ADULTS AND HEALTH,OTHER AGENCIES - THIRD PARTY P,0090185600,THE BARNETGROUP LIMITED,"2,304.00",01/08/2019
DELIVERY UNITS,ADULTS AND HEALTH,OTHER AGENCIES - THIRD PARTY P,0090185601,THE BARNETGROUP LIMITED,"2,304.00",01/08/2019
DELIVERY UNITS,ADULTS AND HEALTH,OTHER AGENCIES - THIRD PARTY P,0090185602,THE BARNETGROUP LIMITED,"3,567.52",01/08/2019
DELIVERY UNITS,ADULTS AND HEALTH,OTHER AGENCIES - THIRD PARTY P,0090185604,THE BARNETGROUP LIMITED,"2,304.00",01/08/2019
DELIVERY UNITS,ADULTS AND HEALTH,OTHER AGENCIES - THIRD PARTY P,0090185605,THE BARNETGROUP LIMITED,"2,304.00",01/08/2019
DELIVERY UNITS,ADULTS AND HEALTH,OTHER AGENCIES - THIRD PARTY P,0090185607,THE BARNETGROUP LIMITED,"2,304.00",01/08/2019
DELIVERY UNITS,ADULTS AND HEALTH,OTHER AGENCIES - THIRD PARTY P,0090185608,THE BARNETGROUP LIMITED,"2,304.00",01/08/2019
DELIVERY UNITS,ADULTS AND HEALTH,OTHER AGENCIES - THIRD PARTY P,0090185609,THE BARNETGROUP LIMITED,"2,304.00",01/08/2019
DELIVERY UNITS,ADULTS AND HEALTH,OTHER AGENCIES - THIRD PARTY P,0090185610,THE BARNETGROUP LIMITED,"2,304.00",01/08/2019
DELIVERY UNITS,ADULTS AND HEALTH,OTHER AGENCIES - THIRD PARTY P,0090185611,THE BARNETGROUP LIMITED,"2,304.00",01/08/2019
DELIVERY UNITS,ADULTS AND HEALTH,OTHER AGENCIES - THIRD PARTY P,0090185612,THE BARNETGROUP LIMITED,"2,304.00",01/08/2019
DELIVERY UNITS,ADULTS AND HEALTH,OTHER AGENCIES - THIRD PARTY P,0090185613,THE BARNETGROUP LIMITED,"2,144.00",01/08/2019
DELIVERY UNITS,ADULTS AND HEALTH,OTHER AGENCIES - THIRD PARTY P,0090185614,THE BARNETGROUP LIMITED,"2,144.00",01/08/2019
DELIVERY UNITS,ADULTS AND HEALTH,OTHER AGENCIES - THIRD PARTY P,0090185615,THE BARNETGROUP LIMITED,"2,144.00",01/08/2019
DELIVERY UNITS,ADULTS AND HEALTH,OTHER AGENCIES - THIRD PARTY P,0090185616,THE BARNETGROUP LIMITED,"2,304.00",01/08/2019
DELIVERY UNITS,ADULTS AND HEALTH,OTHER AGENCIES - THIRD PARTY P,0090185617,THE BARNETGROUP LIMITED,"2,144.00",01/08/2019
DELIVERY UNITS,ADULTS AND HEALTH,OTHER AGENCIES - THIRD PARTY P,0090185618,THE BARNETGROUP LIMITED,"2,304.00",01/08/2019
DELIVERY UNITS,ADULTS AND HEALTH,OTHER AGENCIES - THIRD PARTY P,0090185620,THE BARNETGROUP LIMITED,"3,000.00",01/08/2019
DELIVERY UNITS,ADULTS AND HEALTH,OTHER AGENCIES - THIRD PARTY P,0090185691,AARON COURT CARE HOME,"2,144.94",05/08/2019
DELIVERY UNITS,ADULTS AND HEALTH,OTHER AGENCIES - THIRD PARTY P,0090185692,AARON COURT CARE HOME,"2,216.41",05/08/2019
DELIVERY UNITS,ADULTS AND HEALTH,OTHER AGENCIES - THIRD PARTY P,0090186363,AARON COURT CARE HOME,"4,361.32",08/08/2019
DELIVERY UNITS,ADULTS AND HEALTH,OTHER AGENCIES - THIRD PARTY P,0090186364,AARON COURT CARE HOME,"2,216.41",08/08/2019
DELIVERY UNITS,ADULTS AND HEALTH,OTHER AGENCIES - THIRD PARTY P,0090186344,BELMONT LODGE CARE CENTRE,"2,418.04",08/08/2019
DELIVERY UNITS,ADULTS AND HEALTH,OTHER AGENCIES - THIRD PARTY P,0090189361,KARUNA MANOR,"4,114.14",22/08/2019
DELIVERY UNITS,ADULTS AND HEALTH,OTHER AGENCIES - THIRD PARTY P,0090189364,KARUNA MANOR,"4,207.14",22/08/2019
DELIVERY UNITS,ADULTS AND HEALTH,OTHER AGENCIES - THIRD PARTY P,0090186654,ALEXANDRA HOUSE (RUNWOOD HOMES),"2,262.69",09/08/2019
DELIVERY UNITS,ADULTS AND HEALTH,OTHER AGENCIES - THIRD PARTY P,0090186221,VISION MENTAL HEALTH (VMH),"2,550.86",07/08/2019
DELIVERY UNITS,ADULTS AND HEALTH,OTHER AGENCIES - THIRD PARTY P,0090186316,VISION MENTAL HEALTH (VMH),"2,468.57",08/08/2019
DELIVERY UNITS,ADULTS AND HEALTH,OTHER AGENCIES - THIRD PARTY P,0090186636,THE WINDMILL CARE HOME,"1,872.40",09/08/2019
DELIVERY UNITS,ADULTS AND HEALTH,OTHER AGENCIES - THIRD PARTY P,0090186292,GCH (HERTFORDSHIRE) LTD T/A,"2,414.68",08/08/2019
DELIVERY UNITS,ADULTS AND HEALTH,OTHER AGENCIES - THIRD PARTY P,0090186332,GCH (HERTFORDSHIRE) LTD T/A,"2,414.68",08/08/2019
DELIVERY UNITS,ADULTS AND HEALTH,OTHER AGENCIES - THIRD PARTY P,0090187769,YORK HOMES (DORSET) LTD,"2,600.00",16/08/2019
DELIVERY UNITS,ADULTS AND HEALTH,OTHER AGENCIES - THIRD PARTY P,0090190069,GCH (NORTH LONDON) T/A THE TUDORS,"2,300.00",29/08/2019
DELIVERY UNITS,ADULTS AND HEALTH,OTHER AGENCIES - THIRD PARTY P,0090187539,WILTON HOUSE LTD,"2,611.48",15/08/2019
DELIVERY UNITS,ADULTS AND HEALTH,OTHER AGENCIES - THIRD PARTY P,0090189339,WILTON HOUSE LTD,"2,621.01",22/08/2019
DELIVERY UNITS,ADULTS AND HEALTH,OTHER AGENCIES - THIRD PARTY P,0090184839,SOUTH COAST CARE HOMES LTD,"2,568.57",20/08/2019
DELIVERY UNITS,ADULTS AND HEALTH,OTHER AGENCIES - THIRD PARTY P,0090190966,AMRON PREMIER CARE,"2,790.11",30/08/2019
DELIVERY UNITS,ADULTS AND HEALTH,OTHER AGENCIES - THIRD PARTY P,0090189341,WORDSWORTH HOUSE CARE HOME,"2,657.14",22/08/2019
DELIVERY UNITS,ADULTS AND HEALTH,OTHER AGENCIES - THIRD PARTY P,0090189342,WORDSWORTH HOUSE CARE HOME,"2,657.14",22/08/2019
DELIVERY UNITS,ADULTS AND HEALTH,OTHER AGENCIES - THIRD PARTY P,0090187676,COUNTRY COURT CARE HOMES T/A LYLE HOUSE,"3,764.29",15/08/2019
DELIVERY UNITS,ADULTS AND HEALTH,OTHER AGENCIES - THIRD PARTY P,0090186360,JACKSON CARE LIMITED,"5,314.29",08/08/2019
DELIVERY UNITS,ADULTS AND HEALTH,OTHER AGENCIES - THIRD PARTY P,0090186637,LYNDON HALL CARE HOME,"2,542.09",09/08/2019
DELIVERY UNITS,ADULTS AND HEALTH,DIRECT TRANSFER PAYMENTS TO SO,0090188594,REDACTED - PERSONAL DATA,"2,931.20",19/08/2019
DELIVERY UNITS,ADULTS AND HEALTH,DIRECT TRANSFER PAYMENTS TO SO,0080028006,REDACTED - PERSONAL DATA,"4,040.34",12/08/2019
DELIVERY UNITS,ADULTS AND HEALTH,DIRECT TRANSFER PAYMENTS TO SO,0090189042,REDACTED - PERSONAL DATA,"3,846.40",19/08/2019
DELIVERY UNITS,ADULTS AND HEALTH,DIRECT TRANSFER PAYMENTS TO SO,0090189011,REDACTED - PERSONAL DATA,"3,834.44",19/08/2019
DELIVERY UNITS,ADULTS AND HEALTH,DIRECT TRANSFER PAYMENTS TO SO,0090188471,REDACTED - PERSONAL DATA,240.00,19/08/2019
DELIVERY UNITS,ADULTS AND HEALTH,DIRECT TRANSFER PAYMENTS TO SO,0090188218,REDACTED - PERSONAL DATA,295.68,19/08/2019
DELIVERY UNITS,ADULTS AND HEALTH,DIRECT TRANSFER PAYMENTS TO SO,0090188715,REDACTED - PERSONAL DATA,"1,560.72",19/08/2019
DELIVERY UNITS,ADULTS AND HEALTH,FEES AND CHARGES,0090189014,REDACTED - PERSONAL DATA,450.49,19/08/2019
DELIVERY UNITS,ADULTS AND HEALTH,DIRECT TRANSFER PAYMENTS TO SO,0090188259,REDACTED - PERSONAL DATA,961.60,19/08/2019
DELIVERY UNITS,ADULTS AND HEALTH,DIRECT TRANSFER PAYMENTS TO SO,0090188686,REDACTED - PERSONAL DATA,144.24,19/08/2019
DELIVERY UNITS,ADULTS AND HEALTH,DIRECT TRANSFER PAYMENTS TO SO,0090188117,REDACTED - PERSONAL DATA,"1,766.96",19/08/2019
DELIVERY UNITS,ADULTS AND HEALTH,DIRECT TRANSFER PAYMENTS TO SO,0090188201,REDACTED - PERSONAL DATA,"2,638.76",19/08/2019
DELIVERY UNITS,ADULTS AND HEALTH,DIRECT TRANSFER PAYMENTS TO SO,0090188758,REDACTED - PERSONAL DATA,"1,185.32",19/08/2019
DELIVERY UNITS,ADULTS AND HEALTH,DIRECT TRANSFER PAYMENTS TO SO,0090188776,REDACTED - PERSONAL DATA,568.16,19/08/2019
DELIVERY UNITS,ADULTS AND HEALTH,DIRECT TRANSFER PAYMENTS TO SO,0090188112,REDACTED - PERSONAL DATA,589.00,19/08/2019
DELIVERY UNITS,ADULTS AND HEALTH,DIRECT TRANSFER PAYMENTS TO SO,0090188616,REDACTED - PERSONAL DATA,889.48,19/08/2019
DELIVERY UNITS,ADULTS AND HEALTH,DIRECT TRANSFER PAYMENTS TO SO,0090188206,REDACTED - PERSONAL DATA,456.76,19/08/2019
DELIVERY UNITS,ADULTS AND HEALTH,DIRECT TRANSFER PAYMENTS TO SO,0090186280,REDACTED - PERSONAL DATA,828.87,08/08/2019
DELIVERY UNITS,ADULTS AND HEALTH,DIRECT TRANSFER PAYMENTS TO SO,0090188381,REDACTED - PERSONAL DATA,"2,703.12",19/08/2019
DELIVERY UNITS,ADULTS AND HEALTH,DIRECT TRANSFER PAYMENTS TO SO,0090188981,REDACTED - PERSONAL DATA,349.12,19/08/2019
DELIVERY UNITS,ADULTS AND HEALTH,DIRECT TRANSFER PAYMENTS TO SO,0090188827,REDACTED - PERSONAL DATA,377.88,19/08/2019
DELIVERY UNITS,ADULTS AND HEALTH,DIRECT TRANSFER PAYMENTS TO SO,0090188380,REDACTED - PERSONAL DATA,"2,005.04",19/08/2019
DELIVERY UNITS,ADULTS AND HEALTH,DIRECT TRANSFER PAYMENTS TO SO,0090188182,REDACTED - PERSONAL DATA,913.52,19/08/2019
DELIVERY UNITS,ADULTS AND HEALTH,DIRECT TRANSFER PAYMENTS TO SO,0090188145,REDACTED - PERSONAL DATA,"1,143.16",19/08/2019
DELIVERY UNITS,ADULTS AND HEALTH,DIRECT TRANSFER PAYMENTS TO SO,0090188427,REDACTED - PERSONAL DATA,"2,933.80",19/08/2019
DELIVERY UNITS,ADULTS AND HEALTH,DIRECT TRANSFER PAYMENTS TO SO,0090188242,REDACTED - PERSONAL DATA,"1,238.92",19/08/2019
DELIVERY UNITS,ADULTS AND HEALTH,DIRECT TRANSFER PAYMENTS TO SO,0090188793,REDACTED - PERSONAL DATA,"1,545.48",19/08/2019
DELIVERY UNITS,ADULTS AND HEALTH,DIRECT TRANSFER PAYMENTS TO SO,0090188291,REDACTED - PERSONAL DATA,"1,699.72",19/08/2019
DELIVERY UNITS,ADULTS AND HEALTH,DIRECT TRANSFER PAYMENTS TO SO,0090188984,REDACTED - PERSONAL DATA,"1,260.00",19/08/2019
DELIVERY UNITS,ADULTS AND HEALTH,FEES AND CHARGES,0090188682,REDACTED - PERSONAL DATA,-428.72,19/08/2019
DELIVERY UNITS,ADULTS AND HEALTH,DIRECT TRANSFER PAYMENTS TO SO,0090188884,REDACTED - PERSONAL DATA,640.00,19/08/2019
DELIVERY UNITS,ADULTS AND HEALTH,DIRECT TRANSFER PAYMENTS TO SO,0090188435,REDACTED - PERSONAL DATA,"1,029.76",19/08/2019
DELIVERY UNITS,ADULTS AND HEALTH,DIRECT TRANSFER PAYMENTS TO SO,0090188802,REDACTED - PERSONAL DATA,351.52,19/08/2019
DELIVERY UNITS,ADULTS AND HEALTH,DIRECT TRANSFER PAYMENTS TO SO,0090188509,REDACTED - PERSONAL DATA,"1,353.04",19/08/2019
DELIVERY UNITS,ADULTS AND HEALTH,DIRECT TRANSFER PAYMENTS TO SO,0090188413,REDACTED - PERSONAL DATA,490.04,19/08/2019
DELIVERY UNITS,ADULTS AND HEALTH,DIRECT TRANSFER PAYMENTS TO SO,0090188310,REDACTED - PERSONAL DATA,975.36,19/08/2019
DELIVERY UNITS,ADULTS AND HEALTH,DIRECT TRANSFER PAYMENTS TO SO,0090188570,REDACTED - PERSONAL DATA,800.00,19/08/2019
DELIVERY UNITS,ADULTS AND HEALTH,DIRECT TRANSFER PAYMENTS TO SO,0090188316,REDACTED - PERSONAL DATA,"2,349.16",19/08/2019
DELIVERY UNITS,ADULTS AND HEALTH,DIRECT TRANSFER PAYMENTS TO SO,0090185628,REDACTED - PERSONAL DATA,405.17,01/08/2019
DELIVERY UNITS,ADULTS AND HEALTH,DIRECT TRANSFER PAYMENTS TO SO,0090188907,REDACTED - PERSONAL DATA,966.40,19/08/2019
DELIVERY UNITS,ADULTS AND HEALTH,DIRECT TRANSFER PAYMENTS TO SO,0090188422,REDACTED - PERSONAL DATA,480.80,19/08/2019
DELIVERY UNITS,ADULTS AND HEALTH,DIRECT TRANSFER PAYMENTS TO SO,0090188908,REDACTED - PERSONAL DATA,"3,444.00",19/08/2019
DELIVERY UNITS,ADULTS AND HEALTH,DIRECT TRANSFER PAYMENTS TO SO,0090188642,REDACTED - PERSONAL DATA,"1,104.00",19/08/2019
DELIVERY UNITS,ADULTS AND HEALTH,DIRECT TRANSFER PAYMENTS TO SO,0090188425,REDACTED - PERSONAL DATA,451.92,19/08/2019
DELIVERY UNITS,ADULTS AND HEALTH,DIRECT TRANSFER PAYMENTS TO SO,0090188601,REDACTED - PERSONAL DATA,649.08,19/08/2019
DELIVERY UNITS,ADULTS AND HEALTH,DIRECT TRANSFER PAYMENTS TO SO,0090188329,REDACTED - PERSONAL DATA,348.00,19/08/2019
DELIVERY UNITS,ADULTS AND HEALTH,DIRECT TRANSFER PAYMENTS TO SO,0090188535,REDACTED - PERSONAL DATA,547.08,19/08/2019
DELIVERY UNITS,ADULTS AND HEALTH,DIRECT TRANSFER PAYMENTS TO SO,0090188088,REDACTED - PERSONAL DATA,"4,093.84",19/08/2019
DELIVERY UNITS,ADULTS AND HEALTH,DIRECT TRANSFER PAYMENTS TO SO,0090188429,REDACTED - PERSONAL DATA,"4,093.84",19/08/2019
DELIVERY UNITS,ADULTS AND HEALTH,DIRECT TRANSFER PAYMENTS TO SO,0090188648,REDACTED - PERSONAL DATA,700.00,19/08/2019
DELIVERY UNITS,ADULTS AND HEALTH,DIRECT TRANSFER PAYMENTS TO SO,0090188674,REDACTED - PERSONAL DATA,"1,560.72",19/08/2019
DELIVERY UNITS,ADULTS AND HEALTH,DIRECT TRANSFER PAYMENTS TO SO,0090188434,REDACTED - PERSONAL DATA,347.20,19/08/2019
DELIVERY UNITS,ADULTS AND HEALTH,DIRECT TRANSFER PAYMENTS TO SO,0090188540,REDACTED - PERSONAL DATA,560.00,19/08/2019
DELIVERY UNITS,ADULTS AND HEALTH,DIRECT TRANSFER PAYMENTS TO SO,0090188510,REDACTED - PERSONAL DATA,"2,316.96",19/08/2019
DELIVERY UNITS,ADULTS AND HEALTH,DIRECT TRANSFER PAYMENTS TO SO,0090188335,REDACTED - PERSONAL DATA,"1,431.96",19/08/2019
DELIVERY UNITS,ADULTS AND HEALTH,DIRECT TRANSFER PAYMENTS TO SO,0090188653,REDACTED - PERSONAL DATA,410.96,19/08/2019
DELIVERY UNITS,ADULTS AND HEALTH,DIRECT TRANSFER PAYMENTS TO SO,0090188652,REDACTED - PERSONAL DATA,360.60,19/08/2019
DELIVERY UNITS,ADULTS AND HEALTH,DIRECT TRANSFER PAYMENTS TO SO,0090188464,REDACTED - PERSONAL DATA,"3,260.00",19/08/2019
DELIVERY UNITS,ADULTS AND HEALTH,DIRECT TRANSFER PAYMENTS TO SO,0090188672,REDACTED - PERSONAL DATA,"1,872.00",19/08/2019
DELIVERY UNITS,ADULTS AND HEALTH,DIRECT TRANSFER PAYMENTS TO SO,0090188441,REDACTED - PERSONAL DATA,844.40,19/08/2019
DELIVERY UNITS,ADULTS AND HEALTH,DIRECT TRANSFER PAYMENTS TO SO,0090188694,REDACTED - PERSONAL DATA,"3,279.20",19/08/2019
DELIVERY UNITS,ADULTS AND HEALTH,DIRECT TRANSFER PAYMENTS TO SO,0090188614,REDACTED - PERSONAL DATA,392.00,19/08/2019
DELIVERY UNITS,ADULTS AND HEALTH,FEES AND CHARGES,0090188933,REDACTED - PERSONAL DATA,-241.60,19/08/2019
DELIVERY UNITS,ADULTS AND HEALTH,DIRECT TRANSFER PAYMENTS TO SO,0090188344,REDACTED - PERSONAL DATA,960.00,19/08/2019
DELIVERY UNITS,ADULTS AND HEALTH,DIRECT TRANSFER PAYMENTS TO SO,0090188010,REDACTED - PERSONAL DATA,"1,353.91",19/08/2019
DELIVERY UNITS,ADULTS AND HEALTH,DIRECT TRANSFER PAYMENTS TO SO,0090188663,REDACTED - PERSONAL DATA,"2,066.00",19/08/2019
DELIVERY UNITS,ADULTS AND HEALTH,DIRECT TRANSFER PAYMENTS TO SO,0090188446,REDACTED - PERSONAL DATA,"2,092.96",19/08/2019
DELIVERY UNITS,ADULTS AND HEALTH,DIRECT TRANSFER PAYMENTS TO SO,0090188617,REDACTED - PERSONAL DATA,231.40,19/08/2019
DELIVERY UNITS,ADULTS AND HEALTH,DIRECT TRANSFER PAYMENTS TO SO,0090184584,REDACTED - PERSONAL DATA,-247.15,19/08/2019
DELIVERY UNITS,ADULTS AND HEALTH,DIRECT TRANSFER PAYMENTS TO SO,0090188709,REDACTED - PERSONAL DATA,810.00,19/08/2019
DELIVERY UNITS,ADULTS AND HEALTH,DIRECT TRANSFER PAYMENTS TO SO,0090188668,REDACTED - PERSONAL DATA,478.48,19/08/2019
DELIVERY UNITS,ADULTS AND HEALTH,FEES AND CHARGES,0090187669,REDACTED - PERSONAL DATA,"3,472.00",15/08/2019
DELIVERY UNITS,ADULTS AND HEALTH,DIRECT TRANSFER PAYMENTS TO SO,0080028617,REDACTED - PERSONAL DATA,358.55,27/08/2019
DELIVERY UNITS,ADULTS AND HEALTH,DIRECT TRANSFER PAYMENTS TO SO,0090188349,REDACTED - PERSONAL DATA,"2,400.00",19/08/2019
DELIVERY UNITS,ADULTS AND HEALTH,DIRECT TRANSFER PAYMENTS TO SO,0090188556,REDACTED - PERSONAL DATA,772.32,19/08/2019
DELIVERY UNITS,ADULTS AND HEALTH,DIRECT TRANSFER PAYMENTS TO SO,0090188893,REDACTED - PERSONAL DATA,"1,586.48",19/08/2019
DELIVERY UNITS,ADULTS AND HEALTH,DIRECT TRANSFER PAYMENTS TO SO,0090188678,REDACTED - PERSONAL DATA,"2,518.48",19/08/2019
DELIVERY UNITS,ADULTS AND HEALTH,DIRECT TRANSFER PAYMENTS TO SO,0090188452,REDACTED - PERSONAL DATA,"1,351.56",19/08/2019
DELIVERY UNITS,ADULTS AND HEALTH,DIRECT TRANSFER PAYMENTS TO SO,0090188749,REDACTED - PERSONAL DATA,792.88,19/08/2019
DELIVERY UNITS,ADULTS AND HEALTH,DIRECT TRANSFER PAYMENTS TO SO,0090188892,REDACTED - PERSONAL DATA,384.64,19/08/2019
DELIVERY UNITS,ADULTS AND HEALTH,DIRECT TRANSFER PAYMENTS TO SO,0090189033,REDACTED - PERSONAL DATA,-246.84,19/08/2019
DELIVERY UNITS,ADULTS AND HEALTH,DIRECT TRANSFER PAYMENTS TO SO,0090188851,REDACTED - PERSONAL DATA,966.84,19/08/2019
DELIVERY UNITS,ADULTS AND HEALTH,DIRECT TRANSFER PAYMENTS TO SO,0090188679,REDACTED - PERSONAL DATA,321.80,19/08/2019
DELIVERY UNITS,ADULTS AND HEALTH,DIRECT TRANSFER PAYMENTS TO SO,0090188864,REDACTED - PERSONAL DATA,390.00,19/08/2019
DELIVERY UNITS,ADULTS AND HEALTH,DIRECT TRANSFER PAYMENTS TO SO,0090188356,REDACTED - PERSONAL DATA,"1,582.00",19/08/2019
DELIVERY UNITS,ADULTS AND HEALTH,DIRECT TRANSFER PAYMENTS TO SO,0090188804,REDACTED - PERSONAL DATA,136.00,19/08/2019
DELIVERY UNITS,ADULTS AND HEALTH,DIRECT TRANSFER PAYMENTS TO SO,0090188949,REDACTED - PERSONAL DATA,"1,113.44",19/08/2019
DELIVERY UNITS,ADULTS AND HEALTH,DIRECT TRANSFER PAYMENTS TO SO,0090188357,REDACTED - PERSONAL DATA,"4,608.04",19/08/2019
DELIVERY UNITS,ADULTS AND HEALTH,DIRECT TRANSFER PAYMENTS TO SO,0090188358,REDACTED - PERSONAL DATA,975.28,19/08/2019
DELIVERY UNITS,ADULTS AND HEALTH,DIRECT TRANSFER PAYMENTS TO SO,0090188469,REDACTED - PERSONAL DATA,"2,520.00",19/08/2019
DELIVERY UNITS,ADULTS AND HEALTH,DIRECT TRANSFER PAYMENTS TO SO,0090188687,REDACTED - PERSONAL DATA,"1,351.56",19/08/2019
DELIVERY UNITS,ADULTS AND HEALTH,DIRECT TRANSFER PAYMENTS TO SO,0090188812,REDACTED - PERSONAL DATA,"2,300.00",19/08/2019
DELIVERY UNITS,ADULTS AND HEALTH,DIRECT TRANSFER PAYMENTS TO SO,0090188477,REDACTED - PERSONAL DATA,589.68,19/08/2019
DELIVERY UNITS,ADULTS AND HEALTH,FEES AND CHARGES,0090189045,REDACTED - PERSONAL DATA,80.97,19/08/2019
DELIVERY UNITS,ADULTS AND HEALTH,DIRECT TRANSFER PAYMENTS TO SO,0090184101,REDACTED - PERSONAL DATA,"2,027.36",13/08/2019
DELIVERY UNITS,ADULTS AND HEALTH,DIRECT TRANSFER PAYMENTS TO SO,0090188960,REDACTED - PERSONAL DATA,730.92,19/08/2019
DELIVERY UNITS,ADULTS AND HEALTH,DIRECT TRANSFER PAYMENTS TO SO,0090188698,REDACTED - PERSONAL DATA,128.00,19/08/2019
DELIVERY UNITS,ADULTS AND HEALTH,DIRECT TRANSFER PAYMENTS TO SO,0090188965,REDACTED - PERSONAL DATA,"1,346.12",19/08/2019
DELIVERY UNITS,ADULTS AND HEALTH,DIRECT TRANSFER PAYMENTS TO SO,0090188877,REDACTED - PERSONAL DATA,140.00,19/08/2019
DELIVERY UNITS,ADULTS AND HEALTH,DIRECT TRANSFER PAYMENTS TO SO,0090188493,REDACTED - PERSONAL DATA,"1,238.92",19/08/2019
DELIVERY UNITS,ADULTS AND HEALTH,DIRECT TRANSFER PAYMENTS TO SO,0090188875,REDACTED - PERSONAL DATA,903.92,19/08/2019
DELIVERY UNITS,ADULTS AND HEALTH,DIRECT TRANSFER PAYMENTS TO SO,0090185629,REDACTED - PERSONAL DATA,"2,166.80",01/08/2019
DELIVERY UNITS,ADULTS AND HEALTH,FEES AND CHARGES,0090183064,REDACTED - PERSONAL DATA,-0.53,19/08/2019
DELIVERY UNITS,ADULTS AND HEALTH,DIRECT TRANSFER PAYMENTS TO SO,0090188833,REDACTED - PERSONAL DATA,"2,796.44",19/08/2019
DELIVERY UNITS,ADULTS AND HEALTH,DIRECT TRANSFER PAYMENTS TO SO,0090188496,REDACTED - PERSONAL DATA,482.72,19/08/2019
DELIVERY UNITS,ADULTS AND HEALTH,DIRECT TRANSFER PAYMENTS TO SO,0090188829,REDACTED - PERSONAL DATA,"1,238.92",19/08/2019
DELIVERY UNITS,ADULTS AND HEALTH,DIRECT TRANSFER PAYMENTS TO SO,0090188745,REDACTED - PERSONAL DATA,"1,194.24",19/08/2019
DELIVERY UNITS,ADULTS AND HEALTH,DIRECT TRANSFER PAYMENTS TO SO,0090188512,REDACTED - PERSONAL DATA,"2,400.00",19/08/2019
DELIVERY UNITS,ADULTS AND HEALTH,DIRECT TRANSFER PAYMENTS TO SO,0090188840,REDACTED - PERSONAL DATA,"3,000.00",19/08/2019
DELIVERY UNITS,ADULTS AND HEALTH,DIRECT TRANSFER PAYMENTS TO SO,0090188845,REDACTED - PERSONAL DATA,"2,843.24",19/08/2019
DELIVERY UNITS,ADULTS AND HEALTH,DIRECT TRANSFER PAYMENTS TO SO,0090188881,REDACTED - PERSONAL DATA,"2,751.32",19/08/2019
DELIVERY UNITS,ADULTS AND HEALTH,DIRECT TRANSFER PAYMENTS TO SO,0090188848,REDACTED - PERSONAL DATA,"2,781.72",19/08/2019
DELIVERY UNITS,ADULTS AND HEALTH,DIRECT TRANSFER PAYMENTS TO SO,0090188895,REDACTED - PERSONAL DATA,586.96,19/08/2019
DELIVERY UNITS,ADULTS AND HEALTH,DIRECT TRANSFER PAYMENTS TO SO,0090188513,REDACTED - PERSONAL DATA,675.80,19/08/2019
DELIVERY UNITS,ADULTS AND HEALTH,FEES AND CHARGES,0090186026,REDACTED - PERSONAL DATA,0.12,06/08/2019
DELIVERY UNITS,ADULTS AND HEALTH,DIRECT TRANSFER PAYMENTS TO SO,0090188987,REDACTED - PERSONAL DATA,"2,331.60",19/08/2019
DELIVERY UNITS,ADULTS AND HEALTH,FEES AND CHARGES,0090189107,REDACTED - PERSONAL DATA,0.07,20/08/2019
DELIVERY UNITS,ADULTS AND HEALTH,FEES AND CHARGES,0090188996,REDACTED - PERSONAL DATA,0.05,19/08/2019
DELIVERY UNITS,ADULTS AND HEALTH,DIRECT TRANSFER PAYMENTS TO SO,0090189092,REDACTED - PERSONAL DATA,409.76,20/08/2019
DELIVERY UNITS,ADULTS AND HEALTH,OTHER AGENCIES - THIRD PARTY P,0090189047,WESTMINSTER HOMECARE LTD,"1,038.03",20/08/2019
DELIVERY UNITS,ADULTS AND HEALTH,OTHER AGENCIES - THIRD PARTY P,0090189048,WESTMINSTER HOMECARE LTD,901.98,20/08/2019
DELIVERY UNITS,ADULTS AND HEALTH,OTHER AGENCIES - THIRD PARTY P,0090189050,WESTMINSTER HOMECARE LTD,627.81,20/08/2019
DELIVERY UNITS,ADULTS AND HEALTH,OTHER AGENCIES - THIRD PARTY P,0090189051,WESTMINSTER HOMECARE LTD,326.79,20/08/2019
DELIVERY UNITS,ADULTS AND HEALTH,OTHER AGENCIES - THIRD PARTY P,0090189052,WESTMINSTER HOMECARE LTD,353.44,20/08/2019
DELIVERY UNITS,ADULTS AND HEALTH,OTHER AGENCIES - THIRD PARTY P,0090189053,WESTMINSTER HOMECARE LTD,343.34,20/08/2019
DELIVERY UNITS,ADULTS AND HEALTH,OTHER AGENCIES - THIRD PARTY P,0090189054,WESTMINSTER HOMECARE LTD,165.40,20/08/2019
DELIVERY UNITS,ADULTS AND HEALTH,OTHER AGENCIES - THIRD PARTY P,0090189055,WESTMINSTER HOMECARE LTD,314.27,20/08/2019
DELIVERY UNITS,ADULTS AND HEALTH,OTHER AGENCIES - THIRD PARTY P,0090189057,WESTMINSTER HOMECARE LTD,683.12,20/08/2019
DELIVERY UNITS,ADULTS AND HEALTH,OTHER AGENCIES - THIRD PARTY P,0090189058,WESTMINSTER HOMECARE LTD,802.34,20/08/2019
DELIVERY UNITS,ADULTS AND HEALTH,OTHER AGENCIES - THIRD PARTY P,0090189059,WESTMINSTER HOMECARE LTD,434.19,20/08/2019
DELIVERY UNITS,ADULTS AND HEALTH,OTHER AGENCIES - THIRD PARTY P,0090189060,WESTMINSTER HOMECARE LTD,66.16,20/08/2019
DELIVERY UNITS,ADULTS AND HEALTH,OTHER AGENCIES - THIRD PARTY P,0090189061,WESTMINSTER HOMECARE LTD,62.03,20/08/2019
DELIVERY UNITS,ADULTS AND HEALTH,OTHER AGENCIES - THIRD PARTY P,0090189062,WESTMINSTER HOMECARE LTD,74.43,20/08/2019
DELIVERY UNITS,ADULTS AND HEALTH,OTHER AGENCIES - THIRD PARTY P,0090189063,WESTMINSTER HOMECARE LTD,"1,092.08",20/08/2019
DELIVERY UNITS,ADULTS AND HEALTH,OTHER AGENCIES - THIRD PARTY P,0090189064,WESTMINSTER HOMECARE LTD,330.80,20/08/2019
DELIVERY UNITS,ADULTS AND HEALTH,OTHER AGENCIES - THIRD PARTY P,0090189065,WESTMINSTER HOMECARE LTD,875.50,20/08/2019
DELIVERY UNITS,ADULTS AND HEALTH,OTHER AGENCIES - THIRD PARTY P,0090189066,WESTMINSTER HOMECARE LTD,550.07,20/08/2019
DELIVERY UNITS,ADULTS AND HEALTH,OTHER AGENCIES - THIRD PARTY P,0090189067,WESTMINSTER HOMECARE LTD,37.22,20/08/2019
DELIVERY UNITS,ADULTS AND HEALTH,OTHER AGENCIES - THIRD PARTY P,0090189068,WESTMINSTER HOMECARE LTD,8.27,20/08/2019
DELIVERY UNITS,ADULTS AND HEALTH,OTHER AGENCIES - THIRD PARTY P,0090189071,WESTMINSTER HOMECARE LTD,158.79,20/08/2019
DELIVERY UNITS,ADULTS AND HEALTH,OTHER AGENCIES - THIRD PARTY P,0090189072,WESTMINSTER HOMECARE LTD,"1,344.41",20/08/2019
DELIVERY UNITS,ADULTS AND HEALTH,OTHER AGENCIES - THIRD PARTY P,0090189073,WESTMINSTER HOMECARE LTD,"1,362.91",20/08/2019
DELIVERY UNITS,ADULTS AND HEALTH,OTHER AGENCIES - THIRD PARTY P,0090189074,WESTMINSTER HOMECARE LTD,463.12,20/08/2019
DELIVERY UNITS,ADULTS AND HEALTH,OTHER AGENCIES - THIRD PARTY P,0090189075,WESTMINSTER HOMECARE LTD,"1,038.02",20/08/2019
DELIVERY UNITS,ADULTS AND HEALTH,OTHER AGENCIES - THIRD PARTY P,0090189076,WESTMINSTER HOMECARE LTD,323.08,20/08/2019
DELIVERY UNITS,ADULTS AND HEALTH,OTHER AGENCIES - THIRD PARTY P,0090189077,WESTMINSTER HOMECARE LTD,244.06,20/08/2019
DELIVERY UNITS,ADULTS AND HEALTH,OTHER AGENCIES - THIRD PARTY P,0090189078,WESTMINSTER HOMECARE LTD,140.59,20/08/2019
DELIVERY UNITS,ADULTS AND HEALTH,OTHER AGENCIES - THIRD PARTY P,0090189079,WESTMINSTER HOMECARE LTD,181.94,20/08/2019
DELIVERY UNITS,ADULTS AND HEALTH,OTHER AGENCIES - THIRD PARTY P,0090189082,WESTMINSTER HOMECARE LTD,461.18,20/08/2019
DELIVERY UNITS,ADULTS AND HEALTH,OTHER AGENCIES - THIRD PARTY P,0090189083,WESTMINSTER HOMECARE LTD,"1,604.38",20/08/2019
DELIVERY UNITS,ADULTS AND HEALTH,OTHER AGENCIES - THIRD PARTY P,0090189084,WESTMINSTER HOMECARE LTD,235.79,20/08/2019
DELIVERY UNITS,ADULTS AND HEALTH,OTHER AGENCIES - THIRD PARTY P,0090189086,WESTMINSTER HOMECARE LTD,347.48,20/08/2019
DELIVERY UNITS,ADULTS AND HEALTH,OTHER AGENCIES - THIRD PARTY P,0090189087,WESTMINSTER HOMECARE LTD,66.16,20/08/2019
DELIVERY UNITS,ADULTS AND HEALTH,OTHER AGENCIES - THIRD PARTY P,0090189088,WESTMINSTER HOMECARE LTD,578.97,20/08/2019
DELIVERY UNITS,ADULTS AND HEALTH,OTHER AGENCIES - THIRD PARTY P,0090189089,WESTMINSTER HOMECARE LTD,"1,021.48",20/08/2019
DELIVERY UNITS,ADULTS AND HEALTH,OTHER AGENCIES - THIRD PARTY P,0090189111,WESTMINSTER HOMECARE LTD,"1,075.24",20/08/2019
DELIVERY UNITS,ADULTS AND HEALTH,OTHER AGENCIES - THIRD PARTY P,0090189112,WESTMINSTER HOMECARE LTD,926.51,20/08/2019
DELIVERY UNITS,ADULTS AND HEALTH,OTHER AGENCIES - THIRD PARTY P,0090189114,WESTMINSTER HOMECARE LTD,657.33,20/08/2019
DELIVERY UNITS,ADULTS AND HEALTH,OTHER AGENCIES - THIRD PARTY P,0090189115,WESTMINSTER HOMECARE LTD,359.89,20/08/2019
DELIVERY UNITS,ADULTS AND HEALTH,OTHER AGENCIES - THIRD PARTY P,0090189116,WESTMINSTER HOMECARE LTD,408.27,20/08/2019
DELIVERY UNITS,ADULTS AND HEALTH,OTHER AGENCIES - THIRD PARTY P,0090189117,WESTMINSTER HOMECARE LTD,347.47,20/08/2019
DELIVERY UNITS,ADULTS AND HEALTH,OTHER AGENCIES - THIRD PARTY P,0090189118,WESTMINSTER HOMECARE LTD,173.67,20/08/2019
DELIVERY UNITS,ADULTS AND HEALTH,OTHER AGENCIES - THIRD PARTY P,0090189119,WESTMINSTER HOMECARE LTD,354.54,20/08/2019
DELIVERY UNITS,ADULTS AND HEALTH,OTHER AGENCIES - THIRD PARTY P,0090189121,WESTMINSTER HOMECARE LTD,702.95,20/08/2019
DELIVERY UNITS,ADULTS AND HEALTH,OTHER AGENCIES - THIRD PARTY P,0090189122,WESTMINSTER HOMECARE LTD,802.37,20/08/2019
DELIVERY UNITS,ADULTS AND HEALTH,OTHER AGENCIES - THIRD PARTY P,0090189123,WESTMINSTER HOMECARE LTD,442.45,20/08/2019
DELIVERY UNITS,ADULTS AND HEALTH,OTHER AGENCIES - THIRD PARTY P,0090189124,WESTMINSTER HOMECARE LTD,268.84,20/08/2019
DELIVERY UNITS,ADULTS AND HEALTH,OTHER AGENCIES - THIRD PARTY P,0090189125,WESTMINSTER HOMECARE LTD,74.43,20/08/2019
DELIVERY UNITS,ADULTS AND HEALTH,OTHER AGENCIES - THIRD PARTY P,0090189126,WESTMINSTER HOMECARE LTD,66.16,20/08/2019
DELIVERY UNITS,ADULTS AND HEALTH,OTHER AGENCIES - THIRD PARTY P,0090189127,WESTMINSTER HOMECARE LTD,95.11,20/08/2019
DELIVERY UNITS,ADULTS AND HEALTH,OTHER AGENCIES - THIRD PARTY P,0090189128,WESTMINSTER HOMECARE LTD,12.41,20/08/2019
DELIVERY UNITS,ADULTS AND HEALTH,OTHER AGENCIES - THIRD PARTY P,0090189129,WESTMINSTER HOMECARE LTD,"1,141.71",20/08/2019
DELIVERY UNITS,ADULTS AND HEALTH,OTHER AGENCIES - THIRD PARTY P,0090189130,WESTMINSTER HOMECARE LTD,330.80,20/08/2019
DELIVERY UNITS,ADULTS AND HEALTH,OTHER AGENCIES - THIRD PARTY P,0090189131,WESTMINSTER HOMECARE LTD,882.97,20/08/2019
DELIVERY UNITS,ADULTS AND HEALTH,OTHER AGENCIES - THIRD PARTY P,0090189132,WESTMINSTER HOMECARE LTD,587.31,20/08/2019
DELIVERY UNITS,ADULTS AND HEALTH,OTHER AGENCIES - THIRD PARTY P,0090189133,WESTMINSTER HOMECARE LTD,41.35,20/08/2019
DELIVERY UNITS,ADULTS AND HEALTH,OTHER AGENCIES - THIRD PARTY P,0090189134,WESTMINSTER HOMECARE LTD,231.57,20/08/2019
DELIVERY UNITS,ADULTS AND HEALTH,OTHER AGENCIES - THIRD PARTY P,0090189137,WESTMINSTER HOMECARE LTD,198.48,20/08/2019
DELIVERY UNITS,ADULTS AND HEALTH,OTHER AGENCIES - THIRD PARTY P,0090189138,WESTMINSTER HOMECARE LTD,"1,377.76",20/08/2019
DELIVERY UNITS,ADULTS AND HEALTH,OTHER AGENCIES - THIRD PARTY P,0090189139,WESTMINSTER HOMECARE LTD,"1,580.68",20/08/2019
DELIVERY UNITS,ADULTS AND HEALTH,OTHER AGENCIES - THIRD PARTY P,0090189140,WESTMINSTER HOMECARE LTD,"1,365.91",20/08/2019
DELIVERY UNITS,ADULTS AND HEALTH,OTHER AGENCIES - THIRD PARTY P,0090189141,WESTMINSTER HOMECARE LTD,479.66,20/08/2019
DELIVERY UNITS,ADULTS AND HEALTH,OTHER AGENCIES - THIRD PARTY P,0090189142,WESTMINSTER HOMECARE LTD,148.86,20/08/2019
DELIVERY UNITS,ADULTS AND HEALTH,OTHER AGENCIES - THIRD PARTY P,0090189143,WESTMINSTER HOMECARE LTD,"1,071.11",20/08/2019
DELIVERY UNITS,ADULTS AND HEALTH,OTHER AGENCIES - THIRD PARTY P,0090189144,WESTMINSTER HOMECARE LTD,260.61,20/08/2019
DELIVERY UNITS,ADULTS AND HEALTH,OTHER AGENCIES - THIRD PARTY P,0090189145,WESTMINSTER HOMECARE LTD,128.21,20/08/2019
DELIVERY UNITS,ADULTS AND HEALTH,OTHER AGENCIES - THIRD PARTY P,0090189148,WESTMINSTER HOMECARE LTD,445.22,20/08/2019
DELIVERY UNITS,ADULTS AND HEALTH,OTHER AGENCIES - THIRD PARTY P,0090189149,WESTMINSTER HOMECARE LTD,"1,343.88",20/08/2019
DELIVERY UNITS,ADULTS AND HEALTH,OTHER AGENCIES - THIRD PARTY P,0090189150,WESTMINSTER HOMECARE LTD,231.65,20/08/2019
DELIVERY UNITS,ADULTS AND HEALTH,OTHER AGENCIES - THIRD PARTY P,0090189152,WESTMINSTER HOMECARE LTD,653.33,20/08/2019
DELIVERY UNITS,ADULTS AND HEALTH,OTHER AGENCIES - THIRD PARTY P,0090189153,WESTMINSTER HOMECARE LTD,359.89,20/08/2019
DELIVERY UNITS,ADULTS AND HEALTH,OTHER AGENCIES - THIRD PARTY P,0090189154,WESTMINSTER HOMECARE LTD,57.89,20/08/2019
DELIVERY UNITS,ADULTS AND HEALTH,OTHER AGENCIES - THIRD PARTY P,0090189155,WESTMINSTER HOMECARE LTD,661.70,20/08/2019
DELIVERY UNITS,ADULTS AND HEALTH,OTHER AGENCIES - THIRD PARTY P,0090189156,WESTMINSTER HOMECARE LTD,"1,075.25",20/08/2019
DELIVERY UNITS,ADULTS AND HEALTH,OTHER AGENCIES - THIRD PARTY P,0090187048,CAREWATCH (BARNET),128.85,12/08/2019
DELIVERY UNITS,ADULTS AND HEALTH,OTHER AGENCIES - THIRD PARTY P,0090187049,CAREWATCH (BARNET),257.70,12/08/2019
DELIVERY UNITS,ADULTS AND HEALTH,OTHER AGENCIES - THIRD PARTY P,0090187050,CAREWATCH (BARNET),644.28,12/08/2019
DELIVERY UNITS,ADULTS AND HEALTH,OTHER AGENCIES - THIRD PARTY P,0090187051,CAREWATCH (BARNET),277.06,12/08/2019
DELIVERY UNITS,ADULTS AND HEALTH,OTHER AGENCIES - THIRD PARTY P,0090187052,CAREWATCH (BARNET),225.53,12/08/2019
DELIVERY UNITS,ADULTS AND HEALTH,OTHER AGENCIES - THIRD PARTY P,0090187053,CAREWATCH (BARNET),272.77,12/08/2019
DELIVERY UNITS,ADULTS AND HEALTH,OTHER AGENCIES - THIRD PARTY P,0090187054,CAREWATCH (BARNET),322.14,12/08/2019
DELIVERY UNITS,ADULTS AND HEALTH,OTHER AGENCIES - THIRD PARTY P,0090187055,CAREWATCH (BARNET),837.72,12/08/2019
DELIVERY UNITS,ADULTS AND HEALTH,OTHER AGENCIES - THIRD PARTY P,0090187056,CAREWATCH (BARNET),161.10,12/08/2019
DELIVERY UNITS,ADULTS AND HEALTH,OTHER AGENCIES - THIRD PARTY P,0090187058,CAREWATCH (BARNET),128.86,12/08/2019
DELIVERY UNITS,ADULTS AND HEALTH,OTHER AGENCIES - THIRD PARTY P,0090187059,CAREWATCH (BARNET),257.71,12/08/2019
DELIVERY UNITS,ADULTS AND HEALTH,OTHER AGENCIES - THIRD PARTY P,0090187060,CAREWATCH (BARNET),225.53,12/08/2019
DELIVERY UNITS,ADULTS AND HEALTH,OTHER AGENCIES - THIRD PARTY P,0090187061,CAREWATCH (BARNET),96.67,12/08/2019
DELIVERY UNITS,ADULTS AND HEALTH,OTHER AGENCIES - THIRD PARTY P,0090187062,CAREWATCH (BARNET),216.94,12/08/2019
DELIVERY UNITS,ADULTS AND HEALTH,OTHER AGENCIES - THIRD PARTY P,0090187063,CAREWATCH (BARNET),152.51,12/08/2019
DELIVERY UNITS,ADULTS AND HEALTH,OTHER AGENCIES - THIRD PARTY P,0090187064,CAREWATCH (BARNET),289.95,12/08/2019
DELIVERY UNITS,ADULTS AND HEALTH,OTHER AGENCIES - THIRD PARTY P,0090187065,CAREWATCH (BARNET),64.44,12/08/2019
DELIVERY UNITS,ADULTS AND HEALTH,OTHER AGENCIES - THIRD PARTY P,0090187066,CAREWATCH (BARNET),193.34,12/08/2019
DELIVERY UNITS,ADULTS AND HEALTH,OTHER AGENCIES - THIRD PARTY P,0090187067,CAREWATCH (BARNET),49.40,12/08/2019
DELIVERY UNITS,ADULTS AND HEALTH,OTHER AGENCIES - THIRD PARTY P,0090187068,CAREWATCH (BARNET),257.71,12/08/2019
DELIVERY UNITS,ADULTS AND HEALTH,OTHER AGENCIES - THIRD PARTY P,0090187069,CAREWATCH (BARNET),128.86,12/08/2019
DELIVERY UNITS,ADULTS AND HEALTH,OTHER AGENCIES - THIRD PARTY P,0090187070,CAREWATCH (BARNET),176.11,12/08/2019
DELIVERY UNITS,ADULTS AND HEALTH,OTHER AGENCIES - THIRD PARTY P,0090187071,CAREWATCH (BARNET),304.95,12/08/2019
DELIVERY UNITS,ADULTS AND HEALTH,OTHER AGENCIES - THIRD PARTY P,0090187072,CAREWATCH (BARNET),463.86,12/08/2019
DELIVERY UNITS,ADULTS AND HEALTH,OTHER AGENCIES - THIRD PARTY P,0090187073,CAREWATCH (BARNET),219.11,12/08/2019
DELIVERY UNITS,ADULTS AND HEALTH,OTHER AGENCIES - THIRD PARTY P,0090187074,CAREWATCH (BARNET),257.77,12/08/2019
DELIVERY UNITS,ADULTS AND HEALTH,OTHER AGENCIES - THIRD PARTY P,0090187076,CAREWATCH (BARNET),283.48,12/08/2019
DELIVERY UNITS,ADULTS AND HEALTH,OTHER AGENCIES - THIRD PARTY P,0090187077,CAREWATCH (BARNET),257.71,12/08/2019
DELIVERY UNITS,ADULTS AND HEALTH,OTHER AGENCIES - THIRD PARTY P,0090187078,CAREWATCH (BARNET),51.54,12/08/2019
DELIVERY UNITS,ADULTS AND HEALTH,OTHER AGENCIES - THIRD PARTY P,0090187079,CAREWATCH (BARNET),58.00,12/08/2019
DELIVERY UNITS,ADULTS AND HEALTH,OTHER AGENCIES - THIRD PARTY P,0090187080,CAREWATCH (BARNET),715.12,12/08/2019
DELIVERY UNITS,ADULTS AND HEALTH,OTHER AGENCIES - THIRD PARTY P,0090187081,CAREWATCH (BARNET),60.13,12/08/2019
DELIVERY UNITS,ADULTS AND HEALTH,OTHER AGENCIES - THIRD PARTY P,0090187082,CAREWATCH (BARNET),184.70,12/08/2019
DELIVERY UNITS,ADULTS AND HEALTH,OTHER AGENCIES - THIRD PARTY P,0090187083,CAREWATCH (BARNET),146.07,12/08/2019
DELIVERY UNITS,ADULTS AND HEALTH,OTHER AGENCIES - THIRD PARTY P,0090187084,CAREWATCH (BARNET),216.92,12/08/2019
DELIVERY UNITS,ADULTS AND HEALTH,OTHER AGENCIES - THIRD PARTY P,0090187085,CAREWATCH (BARNET),154.62,12/08/2019
DELIVERY UNITS,ADULTS AND HEALTH,OTHER AGENCIES - THIRD PARTY P,0090187086,CAREWATCH (BARNET),410.28,12/08/2019
DELIVERY UNITS,ADULTS AND HEALTH,OTHER AGENCIES - THIRD PARTY P,0090187087,CAREWATCH (BARNET),238.40,12/08/2019
DELIVERY UNITS,ADULTS AND HEALTH,OTHER AGENCIES - THIRD PARTY P,0090187088,CAREWATCH (BARNET),169.69,12/08/2019
DELIVERY UNITS,ADULTS AND HEALTH,OTHER AGENCIES - THIRD PARTY P,0090187089,CAREWATCH (BARNET),262.00,12/08/2019
DELIVERY UNITS,ADULTS AND HEALTH,OTHER AGENCIES - THIRD PARTY P,0090187090,CAREWATCH (BARNET),98.81,12/08/2019
DELIVERY UNITS,ADULTS AND HEALTH,OTHER AGENCIES - THIRD PARTY P,0090187091,CAREWATCH (BARNET),201.87,12/08/2019
DELIVERY UNITS,ADULTS AND HEALTH,OTHER AGENCIES - THIRD PARTY P,0090187092,CAREWATCH (BARNET),96.67,12/08/2019
DELIVERY UNITS,ADULTS AND HEALTH,OTHER AGENCIES - THIRD PARTY P,0090187094,CAREWATCH (BARNET),124.56,12/08/2019
DELIVERY UNITS,ADULTS AND HEALTH,OTHER AGENCIES - THIRD PARTY P,0090187095,CAREWATCH (BARNET),96.67,12/08/2019
DELIVERY UNITS,ADULTS AND HEALTH,OTHER AGENCIES - THIRD PARTY P,0090187096,CAREWATCH (BARNET),120.27,12/08/2019
DELIVERY UNITS,ADULTS AND HEALTH,OTHER AGENCIES - THIRD PARTY P,0090187097,CAREWATCH (BARNET),103.08,12/08/2019
DELIVERY UNITS,ADULTS AND HEALTH,OTHER AGENCIES - THIRD PARTY P,0090187098,CAREWATCH (BARNET),42.95,12/08/2019
DELIVERY UNITS,ADULTS AND HEALTH,OTHER AGENCIES - THIRD PARTY P,0090187099,CAREWATCH (BARNET),21.48,12/08/2019
DELIVERY UNITS,ADULTS AND HEALTH,OTHER AGENCIES - THIRD PARTY P,0090187100,CAREWATCH (BARNET),317.89,12/08/2019
DELIVERY UNITS,ADULTS AND HEALTH,OTHER AGENCIES - THIRD PARTY P,0090187102,CAREWATCH (BARNET),163.21,12/08/2019
DELIVERY UNITS,ADULTS AND HEALTH,OTHER AGENCIES - THIRD PARTY P,0090187103,CAREWATCH (BARNET),320.00,12/08/2019
DELIVERY UNITS,ADULTS AND HEALTH,OTHER AGENCIES - THIRD PARTY P,0090187104,CAREWATCH (BARNET),268.48,12/08/2019
DELIVERY UNITS,ADULTS AND HEALTH,OTHER AGENCIES - THIRD PARTY P,0090187105,CAREWATCH (BARNET),124.56,12/08/2019
DELIVERY UNITS,ADULTS AND HEALTH,OTHER AGENCIES - THIRD PARTY P,0090187107,CAREWATCH (BARNET),287.79,12/08/2019
DELIVERY UNITS,ADULTS AND HEALTH,OTHER AGENCIES - THIRD PARTY P,0090187108,CAREWATCH (BARNET),210.51,12/08/2019
DELIVERY UNITS,ADULTS AND HEALTH,OTHER AGENCIES - THIRD PARTY P,0090187109,CAREWATCH (BARNET),210.47,12/08/2019
DELIVERY UNITS,ADULTS AND HEALTH,OTHER AGENCIES - THIRD PARTY P,0090187110,CAREWATCH (BARNET),55.84,12/08/2019
DELIVERY UNITS,ADULTS AND HEALTH,OTHER AGENCIES - THIRD PARTY P,0090187111,CAREWATCH (BARNET),208.34,12/08/2019
DELIVERY UNITS,ADULTS AND HEALTH,OTHER AGENCIES - THIRD PARTY P,0090187112,CAREWATCH (BARNET),64.43,12/08/2019
DELIVERY UNITS,ADULTS AND HEALTH,OTHER AGENCIES - THIRD PARTY P,0090187113,CAREWATCH (BARNET),38.66,12/08/2019
DELIVERY UNITS,ADULTS AND HEALTH,OTHER AGENCIES - THIRD PARTY P,0090187114,CAREWATCH (BARNET),90.22,12/08/2019
DELIVERY UNITS,ADULTS AND HEALTH,OTHER AGENCIES - THIRD PARTY P,0090187115,CAREWATCH (BARNET),158.94,12/08/2019
DELIVERY UNITS,ADULTS AND HEALTH,OTHER AGENCIES - THIRD PARTY P,0090187118,CAREWATCH (BARNET),601.30,12/08/2019
DELIVERY UNITS,ADULTS AND HEALTH,OTHER AGENCIES - THIRD PARTY P,0090187119,CAREWATCH (BARNET),51.56,12/08/2019
DELIVERY UNITS,ADULTS AND HEALTH,OTHER AGENCIES - THIRD PARTY P,0090187120,CAREWATCH (BARNET),257.73,12/08/2019
DELIVERY UNITS,ADULTS AND HEALTH,OTHER AGENCIES - THIRD PARTY P,0090187121,CAREWATCH (BARNET),210.49,12/08/2019
DELIVERY UNITS,ADULTS AND HEALTH,OTHER AGENCIES - THIRD PARTY P,0090187122,CAREWATCH (BARNET),180.39,12/08/2019
DELIVERY UNITS,ADULTS AND HEALTH,OTHER AGENCIES - THIRD PARTY P,0090187123,CAREWATCH (BARNET),300.65,12/08/2019
DELIVERY UNITS,ADULTS AND HEALTH,OTHER AGENCIES - THIRD PARTY P,0090187124,CAREWATCH (BARNET),781.90,12/08/2019
DELIVERY UNITS,ADULTS AND HEALTH,OTHER AGENCIES - THIRD PARTY P,0090187125,CAREWATCH (BARNET),116.00,12/08/2019
DELIVERY UNITS,ADULTS AND HEALTH,OTHER AGENCIES - THIRD PARTY P,0090187127,CAREWATCH (BARNET),120.26,12/08/2019
DELIVERY UNITS,ADULTS AND HEALTH,OTHER AGENCIES - THIRD PARTY P,0090187128,CAREWATCH (BARNET),339.39,12/08/2019
DELIVERY UNITS,ADULTS AND HEALTH,OTHER AGENCIES - THIRD PARTY P,0090187129,CAREWATCH (BARNET),240.52,12/08/2019
DELIVERY UNITS,ADULTS AND HEALTH,OTHER AGENCIES - THIRD PARTY P,0090187130,CAREWATCH (BARNET),90.23,12/08/2019
DELIVERY UNITS,ADULTS AND HEALTH,OTHER AGENCIES - THIRD PARTY P,0090187131,CAREWATCH (BARNET),210.49,12/08/2019
DELIVERY UNITS,ADULTS AND HEALTH,OTHER AGENCIES - THIRD PARTY P,0090187132,CAREWATCH (BARNET),201.90,12/08/2019
DELIVERY UNITS,ADULTS AND HEALTH,OTHER AGENCIES - THIRD PARTY P,0090187133,CAREWATCH (BARNET),141.77,12/08/2019
DELIVERY UNITS,ADULTS AND HEALTH,OTHER AGENCIES - THIRD PARTY P,0090187134,CAREWATCH (BARNET),270.62,12/08/2019
DELIVERY UNITS,ADULTS AND HEALTH,OTHER AGENCIES - THIRD PARTY P,0090187135,CAREWATCH (BARNET),180.46,12/08/2019
DELIVERY UNITS,ADULTS AND HEALTH,OTHER AGENCIES - THIRD PARTY P,0090187136,CAREWATCH (BARNET),240.52,12/08/2019
DELIVERY UNITS,ADULTS AND HEALTH,OTHER AGENCIES - THIRD PARTY P,0090187137,CAREWATCH (BARNET),120.26,12/08/2019
DELIVERY UNITS,ADULTS AND HEALTH,OTHER AGENCIES - THIRD PARTY P,0090187138,CAREWATCH (BARNET),163.21,12/08/2019
DELIVERY UNITS,ADULTS AND HEALTH,OTHER AGENCIES - THIRD PARTY P,0090187139,CAREWATCH (BARNET),210.49,12/08/2019
DELIVERY UNITS,ADULTS AND HEALTH,OTHER AGENCIES - THIRD PARTY P,0090187140,CAREWATCH (BARNET),60.13,12/08/2019
DELIVERY UNITS,ADULTS AND HEALTH,OTHER AGENCIES - THIRD PARTY P,0090187141,CAREWATCH (BARNET),438.09,12/08/2019
DELIVERY UNITS,ADULTS AND HEALTH,OTHER AGENCIES - THIRD PARTY P,0090187142,CAREWATCH (BARNET),240.59,12/08/2019
DELIVERY UNITS,ADULTS AND HEALTH,OTHER AGENCIES - THIRD PARTY P,0090187144,CAREWATCH (BARNET),266.29,12/08/2019
DELIVERY UNITS,ADULTS AND HEALTH,OTHER AGENCIES - THIRD PARTY P,0090187145,CAREWATCH (BARNET),240.52,12/08/2019
DELIVERY UNITS,ADULTS AND HEALTH,OTHER AGENCIES - THIRD PARTY P,0090187146,CAREWATCH (BARNET),115.97,12/08/2019
DELIVERY UNITS,ADULTS AND HEALTH,OTHER AGENCIES - THIRD PARTY P,0090187147,CAREWATCH (BARNET),240.52,12/08/2019
DELIVERY UNITS,ADULTS AND HEALTH,OTHER AGENCIES - THIRD PARTY P,0090187148,CAREWATCH (BARNET),90.23,12/08/2019
DELIVERY UNITS,ADULTS AND HEALTH,OTHER AGENCIES - THIRD PARTY P,0090187149,CAREWATCH (BARNET),674.32,12/08/2019
DELIVERY UNITS,ADULTS AND HEALTH,OTHER AGENCIES - THIRD PARTY P,0090187150,CAREWATCH (BARNET),51.54,12/08/2019
DELIVERY UNITS,ADULTS AND HEALTH,OTHER AGENCIES - THIRD PARTY P,0090187151,CAREWATCH (BARNET),249.14,12/08/2019
DELIVERY UNITS,ADULTS AND HEALTH,OTHER AGENCIES - THIRD PARTY P,0090187152,CAREWATCH (BARNET),51.56,12/08/2019
DELIVERY UNITS,ADULTS AND HEALTH,OTHER AGENCIES - THIRD PARTY P,0090187153,CAREWATCH (BARNET),231.94,12/08/2019
DELIVERY UNITS,ADULTS AND HEALTH,OTHER AGENCIES - THIRD PARTY P,0090187154,CAREWATCH (BARNET),158.93,12/08/2019
DELIVERY UNITS,ADULTS AND HEALTH,OTHER AGENCIES - THIRD PARTY P,0090187155,CAREWATCH (BARNET),223.37,12/08/2019
DELIVERY UNITS,ADULTS AND HEALTH,OTHER AGENCIES - THIRD PARTY P,0090187156,CAREWATCH (BARNET),154.66,12/08/2019
DELIVERY UNITS,ADULTS AND HEALTH,OTHER AGENCIES - THIRD PARTY P,0090187157,CAREWATCH (BARNET),236.22,12/08/2019
DELIVERY UNITS,ADULTS AND HEALTH,OTHER AGENCIES - THIRD PARTY P,0090187158,CAREWATCH (BARNET),111.69,12/08/2019
DELIVERY UNITS,ADULTS AND HEALTH,OTHER AGENCIES - THIRD PARTY P,0090187159,CAREWATCH (BARNET),163.22,12/08/2019
DELIVERY UNITS,ADULTS AND HEALTH,OTHER AGENCIES - THIRD PARTY P,0090187160,CAREWATCH (BARNET),90.23,12/08/2019
DELIVERY UNITS,ADULTS AND HEALTH,OTHER AGENCIES - THIRD PARTY P,0090187162,CAREWATCH (BARNET),133.15,12/08/2019
DELIVERY UNITS,ADULTS AND HEALTH,OTHER AGENCIES - THIRD PARTY P,0090187163,CAREWATCH (BARNET),115.97,12/08/2019
DELIVERY UNITS,ADULTS AND HEALTH,OTHER AGENCIES - THIRD PARTY P,0090187164,CAREWATCH (BARNET),34.36,12/08/2019
DELIVERY UNITS,ADULTS AND HEALTH,OTHER AGENCIES - THIRD PARTY P,0090187165,CAREWATCH (BARNET),25.78,12/08/2019
DELIVERY UNITS,ADULTS AND HEALTH,OTHER AGENCIES - THIRD PARTY P,0090187166,CAREWATCH (BARNET),17.18,12/08/2019
DELIVERY UNITS,ADULTS AND HEALTH,OTHER AGENCIES - THIRD PARTY P,0090187167,CAREWATCH (BARNET),300.72,12/08/2019
DELIVERY UNITS,ADULTS AND HEALTH,OTHER AGENCIES - THIRD PARTY P,0090187168,CAREWATCH (BARNET),77.34,12/08/2019
DELIVERY UNITS,ADULTS AND HEALTH,OTHER AGENCIES - THIRD PARTY P,0090187170,CAREWATCH (BARNET),128.87,12/08/2019
DELIVERY UNITS,ADULTS AND HEALTH,OTHER AGENCIES - THIRD PARTY P,0090187171,CAREWATCH (BARNET),184.68,12/08/2019
DELIVERY UNITS,ADULTS AND HEALTH,OTHER AGENCIES - THIRD PARTY P,0090187172,CAREWATCH (BARNET),287.79,12/08/2019
DELIVERY UNITS,ADULTS AND HEALTH,OTHER AGENCIES - THIRD PARTY P,0090187173,CAREWATCH (BARNET),244.85,12/08/2019
DELIVERY UNITS,ADULTS AND HEALTH,OTHER AGENCIES - THIRD PARTY P,0090187174,CAREWATCH (BARNET),120.26,12/08/2019
DELIVERY UNITS,ADULTS AND HEALTH,OTHER AGENCIES - THIRD PARTY P,0090187176,CAREWATCH (BARNET),42.96,12/08/2019
DELIVERY UNITS,ADULTS AND HEALTH,OTHER AGENCIES - THIRD PARTY P,0090187177,CAREWATCH (BARNET),279.21,12/08/2019
DELIVERY UNITS,ADULTS AND HEALTH,OTHER AGENCIES - THIRD PARTY P,0090187178,CAREWATCH (BARNET),210.49,12/08/2019
DELIVERY UNITS,ADULTS AND HEALTH,OTHER AGENCIES - THIRD PARTY P,0090187179,CAREWATCH (BARNET),180.40,12/08/2019
DELIVERY UNITS,ADULTS AND HEALTH,OTHER AGENCIES - THIRD PARTY P,0090187180,CAREWATCH (BARNET),51.54,12/08/2019
DELIVERY UNITS,ADULTS AND HEALTH,OTHER AGENCIES - THIRD PARTY P,0090187181,CAREWATCH (BARNET),253.42,12/08/2019
DELIVERY UNITS,ADULTS AND HEALTH,OTHER AGENCIES - THIRD PARTY P,0090187182,CAREWATCH (BARNET),193.34,12/08/2019
DELIVERY UNITS,ADULTS AND HEALTH,OTHER AGENCIES - THIRD PARTY P,0090187183,CAREWATCH (BARNET),85.91,12/08/2019
DELIVERY UNITS,ADULTS AND HEALTH,OTHER AGENCIES - THIRD PARTY P,0090187184,CAREWATCH (BARNET),25.77,12/08/2019
DELIVERY UNITS,ADULTS AND HEALTH,OTHER AGENCIES - THIRD PARTY P,0090187185,CAREWATCH (BARNET),77.32,12/08/2019
DELIVERY UNITS,ADULTS AND HEALTH,OTHER AGENCIES - THIRD PARTY P,0090187186,CAREWATCH (BARNET),146.07,12/08/2019
DELIVERY UNITS,ADULTS AND HEALTH,OTHER AGENCIES - THIRD PARTY P,0090187189,CAREWATCH (BARNET),94.51,12/08/2019
DELIVERY UNITS,ADULTS AND HEALTH,OTHER AGENCIES - THIRD PARTY P,0090190737,CAREWATCH (BARNET),128.85,30/08/2019
DELIVERY UNITS,ADULTS AND HEALTH,OTHER AGENCIES - THIRD PARTY P,0090190738,CAREWATCH (BARNET),644.28,30/08/2019
DELIVERY UNITS,ADULTS AND HEALTH,OTHER AGENCIES - THIRD PARTY P,0090190739,CAREWATCH (BARNET),277.06,30/08/2019
DELIVERY UNITS,ADULTS AND HEALTH,OTHER AGENCIES - THIRD PARTY P,0090190740,CAREWATCH (BARNET),225.53,30/08/2019
DELIVERY UNITS,ADULTS AND HEALTH,OTHER AGENCIES - THIRD PARTY P,0090190741,CAREWATCH (BARNET),322.14,30/08/2019
DELIVERY UNITS,ADULTS AND HEALTH,OTHER AGENCIES - THIRD PARTY P,0090190742,CAREWATCH (BARNET),837.72,30/08/2019
DELIVERY UNITS,ADULTS AND HEALTH,OTHER AGENCIES - THIRD PARTY P,0090190743,CAREWATCH (BARNET),126.74,30/08/2019
DELIVERY UNITS,ADULTS AND HEALTH,OTHER AGENCIES - THIRD PARTY P,0090190745,CAREWATCH (BARNET),128.86,30/08/2019
DELIVERY UNITS,ADULTS AND HEALTH,OTHER AGENCIES - THIRD PARTY P,0090190746,CAREWATCH (BARNET),193.28,30/08/2019
DELIVERY UNITS,ADULTS AND HEALTH,OTHER AGENCIES - THIRD PARTY P,0090190747,CAREWATCH (BARNET),322.19,30/08/2019
DELIVERY UNITS,ADULTS AND HEALTH,OTHER AGENCIES - THIRD PARTY P,0090190748,CAREWATCH (BARNET),257.71,30/08/2019
DELIVERY UNITS,ADULTS AND HEALTH,OTHER AGENCIES - THIRD PARTY P,0090190749,CAREWATCH (BARNET),128.85,30/08/2019
DELIVERY UNITS,ADULTS AND HEALTH,OTHER AGENCIES - THIRD PARTY P,0090190750,CAREWATCH (BARNET),225.53,30/08/2019
DELIVERY UNITS,ADULTS AND HEALTH,OTHER AGENCIES - THIRD PARTY P,0090190751,CAREWATCH (BARNET),216.94,30/08/2019
DELIVERY UNITS,ADULTS AND HEALTH,OTHER AGENCIES - THIRD PARTY P,0090190752,CAREWATCH (BARNET),152.51,30/08/2019
DELIVERY UNITS,ADULTS AND HEALTH,OTHER AGENCIES - THIRD PARTY P,0090190753,CAREWATCH (BARNET),289.95,30/08/2019
DELIVERY UNITS,ADULTS AND HEALTH,OTHER AGENCIES - THIRD PARTY P,0090190754,CAREWATCH (BARNET),257.71,30/08/2019
DELIVERY UNITS,ADULTS AND HEALTH,OTHER AGENCIES - THIRD PARTY P,0090190755,CAREWATCH (BARNET),128.86,30/08/2019
DELIVERY UNITS,ADULTS AND HEALTH,OTHER AGENCIES - THIRD PARTY P,0090190756,CAREWATCH (BARNET),176.11,30/08/2019
DELIVERY UNITS,ADULTS AND HEALTH,OTHER AGENCIES - THIRD PARTY P,0090190757,CAREWATCH (BARNET),225.53,30/08/2019
DELIVERY UNITS,ADULTS AND HEALTH,OTHER AGENCIES - THIRD PARTY P,0090190758,CAREWATCH (BARNET),463.86,30/08/2019
DELIVERY UNITS,ADULTS AND HEALTH,OTHER AGENCIES - THIRD PARTY P,0090190759,CAREWATCH (BARNET),219.11,30/08/2019
DELIVERY UNITS,ADULTS AND HEALTH,OTHER AGENCIES - THIRD PARTY P,0090190760,CAREWATCH (BARNET),257.77,30/08/2019
DELIVERY UNITS,ADULTS AND HEALTH,OTHER AGENCIES - THIRD PARTY P,0090190761,CAREWATCH (BARNET),146.04,30/08/2019
DELIVERY UNITS,ADULTS AND HEALTH,OTHER AGENCIES - THIRD PARTY P,0090190762,CAREWATCH (BARNET),283.48,30/08/2019
DELIVERY UNITS,ADULTS AND HEALTH,OTHER AGENCIES - THIRD PARTY P,0090190763,CAREWATCH (BARNET),96.67,30/08/2019
DELIVERY UNITS,ADULTS AND HEALTH,OTHER AGENCIES - THIRD PARTY P,0090190764,CAREWATCH (BARNET),257.71,30/08/2019
DELIVERY UNITS,ADULTS AND HEALTH,OTHER AGENCIES - THIRD PARTY P,0090190765,CAREWATCH (BARNET),161.10,30/08/2019
DELIVERY UNITS,ADULTS AND HEALTH,OTHER AGENCIES - THIRD PARTY P,0090190766,CAREWATCH (BARNET),257.70,30/08/2019
DELIVERY UNITS,ADULTS AND HEALTH,OTHER AGENCIES - THIRD PARTY P,0090190767,CAREWATCH (BARNET),51.54,30/08/2019
DELIVERY UNITS,ADULTS AND HEALTH,OTHER AGENCIES - THIRD PARTY P,0090190768,CAREWATCH (BARNET),96.67,30/08/2019
DELIVERY UNITS,ADULTS AND HEALTH,OTHER AGENCIES - THIRD PARTY P,0090190769,CAREWATCH (BARNET),708.69,30/08/2019
DELIVERY UNITS,ADULTS AND HEALTH,OTHER AGENCIES - THIRD PARTY P,0090190770,CAREWATCH (BARNET),60.13,30/08/2019
DELIVERY UNITS,ADULTS AND HEALTH,OTHER AGENCIES - THIRD PARTY P,0090190771,CAREWATCH (BARNET),193.28,30/08/2019
DELIVERY UNITS,ADULTS AND HEALTH,OTHER AGENCIES - THIRD PARTY P,0090190772,CAREWATCH (BARNET),242.70,30/08/2019
DELIVERY UNITS,ADULTS AND HEALTH,OTHER AGENCIES - THIRD PARTY P,0090190773,CAREWATCH (BARNET),21.48,30/08/2019
DELIVERY UNITS,ADULTS AND HEALTH,OTHER AGENCIES - THIRD PARTY P,0090190774,CAREWATCH (BARNET),279.20,30/08/2019
DELIVERY UNITS,ADULTS AND HEALTH,OTHER AGENCIES - THIRD PARTY P,0090190775,CAREWATCH (BARNET),225.51,30/08/2019
DELIVERY UNITS,ADULTS AND HEALTH,OTHER AGENCIES - THIRD PARTY P,0090190776,CAREWATCH (BARNET),148.20,30/08/2019
DELIVERY UNITS,ADULTS AND HEALTH,OTHER AGENCIES - THIRD PARTY P,0090190777,CAREWATCH (BARNET),231.94,30/08/2019
DELIVERY UNITS,ADULTS AND HEALTH,OTHER AGENCIES - THIRD PARTY P,0090190778,CAREWATCH (BARNET),111.69,30/08/2019
DELIVERY UNITS,ADULTS AND HEALTH,OTHER AGENCIES - THIRD PARTY P,0090190779,CAREWATCH (BARNET),197.58,30/08/2019
DELIVERY UNITS,ADULTS AND HEALTH,OTHER AGENCIES - THIRD PARTY P,0090190780,CAREWATCH (BARNET),96.67,30/08/2019
DELIVERY UNITS,ADULTS AND HEALTH,OTHER AGENCIES - THIRD PARTY P,0090190782,CAREWATCH (BARNET),128.85,30/08/2019
DELIVERY UNITS,ADULTS AND HEALTH,OTHER AGENCIES - THIRD PARTY P,0090190783,CAREWATCH (BARNET),96.67,30/08/2019
DELIVERY UNITS,ADULTS AND HEALTH,OTHER AGENCIES - THIRD PARTY P,0090190784,CAREWATCH (BARNET),42.95,30/08/2019
DELIVERY UNITS,ADULTS AND HEALTH,OTHER AGENCIES - THIRD PARTY P,0090190785,CAREWATCH (BARNET),21.48,30/08/2019
DELIVERY UNITS,ADULTS AND HEALTH,OTHER AGENCIES - THIRD PARTY P,0090190786,CAREWATCH (BARNET),317.90,30/08/2019
DELIVERY UNITS,ADULTS AND HEALTH,OTHER AGENCIES - THIRD PARTY P,0090190787,CAREWATCH (BARNET),96.67,30/08/2019
DELIVERY UNITS,ADULTS AND HEALTH,OTHER AGENCIES - THIRD PARTY P,0090190789,CAREWATCH (BARNET),244.86,30/08/2019
DELIVERY UNITS,ADULTS AND HEALTH,OTHER AGENCIES - THIRD PARTY P,0090190790,CAREWATCH (BARNET),178.26,30/08/2019
DELIVERY UNITS,ADULTS AND HEALTH,OTHER AGENCIES - THIRD PARTY P,0090190791,CAREWATCH (BARNET),317.86,30/08/2019
DELIVERY UNITS,ADULTS AND HEALTH,OTHER AGENCIES - THIRD PARTY P,0090190792,CAREWATCH (BARNET),259.89,30/08/2019
DELIVERY UNITS,ADULTS AND HEALTH,OTHER AGENCIES - THIRD PARTY P,0090190793,CAREWATCH (BARNET),25.77,30/08/2019
DELIVERY UNITS,ADULTS AND HEALTH,OTHER AGENCIES - THIRD PARTY P,0090190794,CAREWATCH (BARNET),118.14,30/08/2019
DELIVERY UNITS,ADULTS AND HEALTH,OTHER AGENCIES - THIRD PARTY P,0090190795,CAREWATCH (BARNET),45.11,30/08/2019
DELIVERY UNITS,ADULTS AND HEALTH,OTHER AGENCIES - THIRD PARTY P,0090190796,CAREWATCH (BARNET),45.11,30/08/2019
DELIVERY UNITS,ADULTS AND HEALTH,OTHER AGENCIES - THIRD PARTY P,0090190797,CAREWATCH (BARNET),223.37,30/08/2019
DELIVERY UNITS,ADULTS AND HEALTH,OTHER AGENCIES - THIRD PARTY P,0090190798,CAREWATCH (BARNET),292.09,30/08/2019
DELIVERY UNITS,ADULTS AND HEALTH,OTHER AGENCIES - THIRD PARTY P,0090190799,CAREWATCH (BARNET),225.53,30/08/2019
DELIVERY UNITS,ADULTS AND HEALTH,OTHER AGENCIES - THIRD PARTY P,0090190800,CAREWATCH (BARNET),169.66,30/08/2019
DELIVERY UNITS,ADULTS AND HEALTH,OTHER AGENCIES - THIRD PARTY P,0090190801,CAREWATCH (BARNET),55.84,30/08/2019
DELIVERY UNITS,ADULTS AND HEALTH,OTHER AGENCIES - THIRD PARTY P,0090190802,CAREWATCH (BARNET),287.77,30/08/2019
DELIVERY UNITS,ADULTS AND HEALTH,OTHER AGENCIES - THIRD PARTY P,0090190803,CAREWATCH (BARNET),64.43,30/08/2019
DELIVERY UNITS,ADULTS AND HEALTH,OTHER AGENCIES - THIRD PARTY P,0090190805,CAREWATCH (BARNET),38.66,30/08/2019
DELIVERY UNITS,ADULTS AND HEALTH,OTHER AGENCIES - THIRD PARTY P,0090190808,CAREWATCH (BARNET),120.26,30/08/2019
DELIVERY UNITS,ADULTS AND HEALTH,OTHER AGENCIES - THIRD PARTY P,0090190809,CAREWATCH (BARNET),601.30,30/08/2019
DELIVERY UNITS,ADULTS AND HEALTH,OTHER AGENCIES - THIRD PARTY P,0090190810,CAREWATCH (BARNET),51.56,30/08/2019
DELIVERY UNITS,ADULTS AND HEALTH,OTHER AGENCIES - THIRD PARTY P,0090190811,CAREWATCH (BARNET),712.97,30/08/2019
DELIVERY UNITS,ADULTS AND HEALTH,OTHER AGENCIES - THIRD PARTY P,0090190812,CAREWATCH (BARNET),257.73,30/08/2019
DELIVERY UNITS,ADULTS AND HEALTH,OTHER AGENCIES - THIRD PARTY P,0090190813,CAREWATCH (BARNET),210.49,30/08/2019
DELIVERY UNITS,ADULTS AND HEALTH,OTHER AGENCIES - THIRD PARTY P,0090190814,CAREWATCH (BARNET),300.65,30/08/2019
DELIVERY UNITS,ADULTS AND HEALTH,OTHER AGENCIES - THIRD PARTY P,0090190815,CAREWATCH (BARNET),781.90,30/08/2019
DELIVERY UNITS,ADULTS AND HEALTH,OTHER AGENCIES - THIRD PARTY P,0090190816,CAREWATCH (BARNET),116.00,30/08/2019
DELIVERY UNITS,ADULTS AND HEALTH,OTHER AGENCIES - THIRD PARTY P,0090190818,CAREWATCH (BARNET),120.26,30/08/2019
DELIVERY UNITS,ADULTS AND HEALTH,OTHER AGENCIES - THIRD PARTY P,0090190819,CAREWATCH (BARNET),300.72,30/08/2019
DELIVERY UNITS,ADULTS AND HEALTH,OTHER AGENCIES - THIRD PARTY P,0090190820,CAREWATCH (BARNET),300.65,30/08/2019
DELIVERY UNITS,ADULTS AND HEALTH,OTHER AGENCIES - THIRD PARTY P,0090190821,CAREWATCH (BARNET),90.23,30/08/2019
DELIVERY UNITS,ADULTS AND HEALTH,OTHER AGENCIES - THIRD PARTY P,0090190822,CAREWATCH (BARNET),120.26,30/08/2019
DELIVERY UNITS,ADULTS AND HEALTH,OTHER AGENCIES - THIRD PARTY P,0090190823,CAREWATCH (BARNET),17.18,30/08/2019
DELIVERY UNITS,ADULTS AND HEALTH,OTHER AGENCIES - THIRD PARTY P,0090190824,CAREWATCH (BARNET),90.23,30/08/2019
DELIVERY UNITS,ADULTS AND HEALTH,OTHER AGENCIES - THIRD PARTY P,0090190825,CAREWATCH (BARNET),201.90,30/08/2019
DELIVERY UNITS,ADULTS AND HEALTH,OTHER AGENCIES - THIRD PARTY P,0090190826,CAREWATCH (BARNET),141.77,30/08/2019
DELIVERY UNITS,ADULTS AND HEALTH,OTHER AGENCIES - THIRD PARTY P,0090190827,CAREWATCH (BARNET),270.62,30/08/2019
DELIVERY UNITS,ADULTS AND HEALTH,OTHER AGENCIES - THIRD PARTY P,0090190828,CAREWATCH (BARNET),244.85,30/08/2019
DELIVERY UNITS,ADULTS AND HEALTH,OTHER AGENCIES - THIRD PARTY P,0090190829,CAREWATCH (BARNET),206.16,30/08/2019
DELIVERY UNITS,ADULTS AND HEALTH,OTHER AGENCIES - THIRD PARTY P,0090190830,CAREWATCH (BARNET),85.92,30/08/2019
DELIVERY UNITS,ADULTS AND HEALTH,OTHER AGENCIES - THIRD PARTY P,0090190831,CAREWATCH (BARNET),120.26,30/08/2019
DELIVERY UNITS,ADULTS AND HEALTH,OTHER AGENCIES - THIRD PARTY P,0090190832,CAREWATCH (BARNET),163.21,30/08/2019
DELIVERY UNITS,ADULTS AND HEALTH,OTHER AGENCIES - THIRD PARTY P,0090190833,CAREWATCH (BARNET),210.49,30/08/2019
DELIVERY UNITS,ADULTS AND HEALTH,OTHER AGENCIES - THIRD PARTY P,0090190834,CAREWATCH (BARNET),60.13,30/08/2019
DELIVERY UNITS,ADULTS AND HEALTH,OTHER AGENCIES - THIRD PARTY P,0090190835,CAREWATCH (BARNET),438.09,30/08/2019
DELIVERY UNITS,ADULTS AND HEALTH,OTHER AGENCIES - THIRD PARTY P,0090190836,CAREWATCH (BARNET),240.59,30/08/2019
DELIVERY UNITS,ADULTS AND HEALTH,OTHER AGENCIES - THIRD PARTY P,0090190837,CAREWATCH (BARNET),266.29,30/08/2019
DELIVERY UNITS,ADULTS AND HEALTH,OTHER AGENCIES - THIRD PARTY P,0090190838,CAREWATCH (BARNET),240.52,30/08/2019
DELIVERY UNITS,ADULTS AND HEALTH,OTHER AGENCIES - THIRD PARTY P,0090190839,CAREWATCH (BARNET),150.36,30/08/2019
DELIVERY UNITS,ADULTS AND HEALTH,OTHER AGENCIES - THIRD PARTY P,0090190840,CAREWATCH (BARNET),240.52,30/08/2019
DELIVERY UNITS,ADULTS AND HEALTH,OTHER AGENCIES - THIRD PARTY P,0090190841,CAREWATCH (BARNET),90.23,30/08/2019
DELIVERY UNITS,ADULTS AND HEALTH,OTHER AGENCIES - THIRD PARTY P,0090190842,CAREWATCH (BARNET),51.54,30/08/2019
DELIVERY UNITS,ADULTS AND HEALTH,OTHER AGENCIES - THIRD PARTY P,0090190843,CAREWATCH (BARNET),180.39,30/08/2019
DELIVERY UNITS,ADULTS AND HEALTH,OTHER AGENCIES - THIRD PARTY P,0090190844,CAREWATCH (BARNET),240.56,30/08/2019
DELIVERY UNITS,ADULTS AND HEALTH,OTHER AGENCIES - THIRD PARTY P,0090190845,CAREWATCH (BARNET),128.90,30/08/2019
DELIVERY UNITS,ADULTS AND HEALTH,OTHER AGENCIES - THIRD PARTY P,0090190846,CAREWATCH (BARNET),244.83,30/08/2019
DELIVERY UNITS,ADULTS AND HEALTH,OTHER AGENCIES - THIRD PARTY P,0090190847,CAREWATCH (BARNET),180.39,30/08/2019
DELIVERY UNITS,ADULTS AND HEALTH,OTHER AGENCIES - THIRD PARTY P,0090190848,CAREWATCH (BARNET),223.38,30/08/2019
DELIVERY UNITS,ADULTS AND HEALTH,OTHER AGENCIES - THIRD PARTY P,0090190849,CAREWATCH (BARNET),223.34,30/08/2019
DELIVERY UNITS,ADULTS AND HEALTH,OTHER AGENCIES - THIRD PARTY P,0090190850,CAREWATCH (BARNET),163.24,30/08/2019
DELIVERY UNITS,ADULTS AND HEALTH,OTHER AGENCIES - THIRD PARTY P,0090190851,CAREWATCH (BARNET),137.46,30/08/2019
DELIVERY UNITS,ADULTS AND HEALTH,OTHER AGENCIES - THIRD PARTY P,0090190852,CAREWATCH (BARNET),103.08,30/08/2019
DELIVERY UNITS,ADULTS AND HEALTH,OTHER AGENCIES - THIRD PARTY P,0090190853,CAREWATCH (BARNET),90.23,30/08/2019
DELIVERY UNITS,ADULTS AND HEALTH,OTHER AGENCIES - THIRD PARTY P,0090190855,CAREWATCH (BARNET),115.96,30/08/2019
DELIVERY UNITS,ADULTS AND HEALTH,OTHER AGENCIES - THIRD PARTY P,0090190856,CAREWATCH (BARNET),34.36,30/08/2019
DELIVERY UNITS,ADULTS AND HEALTH,OTHER AGENCIES - THIRD PARTY P,0090190857,CAREWATCH (BARNET),60.14,30/08/2019
DELIVERY UNITS,ADULTS AND HEALTH,OTHER AGENCIES - THIRD PARTY P,0090190858,CAREWATCH (BARNET),300.72,30/08/2019
DELIVERY UNITS,ADULTS AND HEALTH,OTHER AGENCIES - THIRD PARTY P,0090190860,CAREWATCH (BARNET),210.49,30/08/2019
DELIVERY UNITS,ADULTS AND HEALTH,OTHER AGENCIES - THIRD PARTY P,0090190861,CAREWATCH (BARNET),180.39,30/08/2019
DELIVERY UNITS,ADULTS AND HEALTH,OTHER AGENCIES - THIRD PARTY P,0090190862,CAREWATCH (BARNET),279.20,30/08/2019
DELIVERY UNITS,ADULTS AND HEALTH,OTHER AGENCIES - THIRD PARTY P,0090190863,CAREWATCH (BARNET),107.40,30/08/2019
DELIVERY UNITS,ADULTS AND HEALTH,OTHER AGENCIES - THIRD PARTY P,0090190864,CAREWATCH (BARNET),38.67,30/08/2019
DELIVERY UNITS,ADULTS AND HEALTH,OTHER AGENCIES - THIRD PARTY P,0090190865,CAREWATCH (BARNET),38.67,30/08/2019
DELIVERY UNITS,ADULTS AND HEALTH,OTHER AGENCIES - THIRD PARTY P,0090190866,CAREWATCH (BARNET),150.36,30/08/2019
DELIVERY UNITS,ADULTS AND HEALTH,OTHER AGENCIES - THIRD PARTY P,0090190867,CAREWATCH (BARNET),292.07,30/08/2019
DELIVERY UNITS,ADULTS AND HEALTH,OTHER AGENCIES - THIRD PARTY P,0090190868,CAREWATCH (BARNET),201.90,30/08/2019
DELIVERY UNITS,ADULTS AND HEALTH,OTHER AGENCIES - THIRD PARTY P,0090190869,CAREWATCH (BARNET),219.05,30/08/2019
DELIVERY UNITS,ADULTS AND HEALTH,OTHER AGENCIES - THIRD PARTY P,0090190870,CAREWATCH (BARNET),55.84,30/08/2019
DELIVERY UNITS,ADULTS AND HEALTH,OTHER AGENCIES - THIRD PARTY P,0090190871,CAREWATCH (BARNET),257.70,30/08/2019
DELIVERY UNITS,ADULTS AND HEALTH,OTHER AGENCIES - THIRD PARTY P,0090190872,CAREWATCH (BARNET),197.64,30/08/2019
DELIVERY UNITS,ADULTS AND HEALTH,OTHER AGENCIES - THIRD PARTY P,0090190873,CAREWATCH (BARNET),128.86,30/08/2019
DELIVERY UNITS,ADULTS AND HEALTH,OTHER AGENCIES - THIRD PARTY P,0090190875,CAREWATCH (BARNET),34.36,30/08/2019
DELIVERY UNITS,ADULTS AND HEALTH,OTHER AGENCIES - THIRD PARTY P,0090190876,CAREWATCH (BARNET),60.15,30/08/2019
DELIVERY UNITS,ADULTS AND HEALTH,OTHER AGENCIES - THIRD PARTY P,0090185774,DYNAMIC PEOPLE LTD,138.07,05/08/2019
DELIVERY UNITS,ADULTS AND HEALTH,OTHER AGENCIES - THIRD PARTY P,0090185775,DYNAMIC PEOPLE LTD,240.64,05/08/2019
DELIVERY UNITS,ADULTS AND HEALTH,OTHER AGENCIES - THIRD PARTY P,0090185776,DYNAMIC PEOPLE LTD,71.01,05/08/2019
DELIVERY UNITS,ADULTS AND HEALTH,OTHER AGENCIES - THIRD PARTY P,0090185777,DYNAMIC PEOPLE LTD,47.34,05/08/2019
DELIVERY UNITS,ADULTS AND HEALTH,OTHER AGENCIES - THIRD PARTY P,0090185779,DYNAMIC PEOPLE LTD,193.30,05/08/2019
DELIVERY UNITS,ADULTS AND HEALTH,OTHER AGENCIES - THIRD PARTY P,0090185780,DYNAMIC PEOPLE LTD,193.30,05/08/2019
DELIVERY UNITS,ADULTS AND HEALTH,OTHER AGENCIES - THIRD PARTY P,0090185781,DYNAMIC PEOPLE LTD,359.00,05/08/2019
DELIVERY UNITS,ADULTS AND HEALTH,OTHER AGENCIES - THIRD PARTY P,0090185782,DYNAMIC PEOPLE LTD,31.56,05/08/2019
DELIVERY UNITS,ADULTS AND HEALTH,OTHER AGENCIES - THIRD PARTY P,0090185783,DYNAMIC PEOPLE LTD,82.84,05/08/2019
DELIVERY UNITS,ADULTS AND HEALTH,OTHER AGENCIES - THIRD PARTY P,0090185784,DYNAMIC PEOPLE LTD,153.85,05/08/2019
DELIVERY UNITS,ADULTS AND HEALTH,OTHER AGENCIES - THIRD PARTY P,0090185785,DYNAMIC PEOPLE LTD,86.79,05/08/2019
DELIVERY UNITS,ADULTS AND HEALTH,OTHER AGENCIES - THIRD PARTY P,0090185786,DYNAMIC PEOPLE LTD,94.68,05/08/2019
DELIVERY UNITS,ADULTS AND HEALTH,OTHER AGENCIES - THIRD PARTY P,0090185787,DYNAMIC PEOPLE LTD,319.54,05/08/2019
DELIVERY UNITS,ADULTS AND HEALTH,OTHER AGENCIES - THIRD PARTY P,0090185788,DYNAMIC PEOPLE LTD,193.30,05/08/2019
DELIVERY UNITS,ADULTS AND HEALTH,OTHER AGENCIES - THIRD PARTY P,0090185789,DYNAMIC PEOPLE LTD,63.12,05/08/2019
DELIVERY UNITS,ADULTS AND HEALTH,OTHER AGENCIES - THIRD PARTY P,0090185790,DYNAMIC PEOPLE LTD,82.84,05/08/2019
DELIVERY UNITS,ADULTS AND HEALTH,OTHER AGENCIES - THIRD PARTY P,0090185791,DYNAMIC PEOPLE LTD,276.15,05/08/2019
DELIVERY UNITS,ADULTS AND HEALTH,OTHER AGENCIES - THIRD PARTY P,0090185793,DYNAMIC PEOPLE LTD,82.84,05/08/2019
DELIVERY UNITS,ADULTS AND HEALTH,OTHER AGENCIES - THIRD PARTY P,0090185794,DYNAMIC PEOPLE LTD,82.84,05/08/2019
DELIVERY UNITS,ADULTS AND HEALTH,OTHER AGENCIES - THIRD PARTY P,0090185796,DYNAMIC PEOPLE LTD,110.46,05/08/2019
DELIVERY UNITS,ADULTS AND HEALTH,OTHER AGENCIES - THIRD PARTY P,0090185798,DYNAMIC PEOPLE LTD,59.18,05/08/2019
DELIVERY UNITS,ADULTS AND HEALTH,OTHER AGENCIES - THIRD PARTY P,0090185799,DYNAMIC PEOPLE LTD,142.02,05/08/2019
DELIVERY UNITS,ADULTS AND HEALTH,OTHER AGENCIES - THIRD PARTY P,0090185801,DYNAMIC PEOPLE LTD,303.76,05/08/2019
DELIVERY UNITS,ADULTS AND HEALTH,OTHER AGENCIES - THIRD PARTY P,0090185802,DYNAMIC PEOPLE LTD,138.07,05/08/2019
DELIVERY UNITS,ADULTS AND HEALTH,OTHER AGENCIES - THIRD PARTY P,0090185803,DYNAMIC PEOPLE LTD,165.69,05/08/2019
DELIVERY UNITS,ADULTS AND HEALTH,OTHER AGENCIES - THIRD PARTY P,0090185805,DYNAMIC PEOPLE LTD,138.07,05/08/2019
DELIVERY UNITS,ADULTS AND HEALTH,OTHER AGENCIES - THIRD PARTY P,0090185806,DYNAMIC PEOPLE LTD,82.84,05/08/2019
DELIVERY UNITS,ADULTS AND HEALTH,OTHER AGENCIES - THIRD PARTY P,0090185808,DYNAMIC PEOPLE LTD,63.12,05/08/2019
DELIVERY UNITS,ADULTS AND HEALTH,OTHER AGENCIES - THIRD PARTY P,0090185809,DYNAMIC PEOPLE LTD,220.92,05/08/2019
DELIVERY UNITS,ADULTS AND HEALTH,OTHER AGENCIES - THIRD PARTY P,0090185810,DYNAMIC PEOPLE LTD,130.18,05/08/2019
DELIVERY UNITS,ADULTS AND HEALTH,OTHER AGENCIES - THIRD PARTY P,0090185812,DYNAMIC PEOPLE LTD,51.28,05/08/2019
DELIVERY UNITS,ADULTS AND HEALTH,OTHER AGENCIES - THIRD PARTY P,0090185813,DYNAMIC PEOPLE LTD,31.56,05/08/2019
DELIVERY UNITS,ADULTS AND HEALTH,OTHER AGENCIES - THIRD PARTY P,0090185814,DYNAMIC PEOPLE LTD,55.23,05/08/2019
DELIVERY UNITS,ADULTS AND HEALTH,OTHER AGENCIES - THIRD PARTY P,0090185815,DYNAMIC PEOPLE LTD,248.54,05/08/2019
DELIVERY UNITS,ADULTS AND HEALTH,OTHER AGENCIES - THIRD PARTY P,0090185817,DYNAMIC PEOPLE LTD,717.99,05/08/2019
DELIVERY UNITS,ADULTS AND HEALTH,OTHER AGENCIES - THIRD PARTY P,0090185819,DYNAMIC PEOPLE LTD,138.07,05/08/2019
DELIVERY UNITS,ADULTS AND HEALTH,OTHER AGENCIES - THIRD PARTY P,0090185820,DYNAMIC PEOPLE LTD,268.26,05/08/2019
DELIVERY UNITS,ADULTS AND HEALTH,OTHER AGENCIES - THIRD PARTY P,0090185821,DYNAMIC PEOPLE LTD,110.46,05/08/2019
DELIVERY UNITS,ADULTS AND HEALTH,OTHER AGENCIES - THIRD PARTY P,0090185822,DYNAMIC PEOPLE LTD,130.18,05/08/2019
DELIVERY UNITS,ADULTS AND HEALTH,OTHER AGENCIES - THIRD PARTY P,0090185823,DYNAMIC PEOPLE LTD,110.46,05/08/2019
DELIVERY UNITS,ADULTS AND HEALTH,OTHER AGENCIES - THIRD PARTY P,0090185824,DYNAMIC PEOPLE LTD,82.84,05/08/2019
DELIVERY UNITS,ADULTS AND HEALTH,OTHER AGENCIES - THIRD PARTY P,0090185826,DYNAMIC PEOPLE LTD,31.56,05/08/2019
DELIVERY UNITS,ADULTS AND HEALTH,OTHER AGENCIES - THIRD PARTY P,0090185827,DYNAMIC PEOPLE LTD,220.92,05/08/2019
DELIVERY UNITS,ADULTS AND HEALTH,OTHER AGENCIES - THIRD PARTY P,0090185828,DYNAMIC PEOPLE LTD,130.18,05/08/2019
DELIVERY UNITS,ADULTS AND HEALTH,OTHER AGENCIES - THIRD PARTY P,0090185830,DYNAMIC PEOPLE LTD,134.13,05/08/2019
DELIVERY UNITS,ADULTS AND HEALTH,OTHER AGENCIES - THIRD PARTY P,0090185831,DYNAMIC PEOPLE LTD,138.07,05/08/2019
DELIVERY UNITS,ADULTS AND HEALTH,OTHER AGENCIES - THIRD PARTY P,0090185832,DYNAMIC PEOPLE LTD,213.03,05/08/2019
DELIVERY UNITS,ADULTS AND HEALTH,OTHER AGENCIES - THIRD PARTY P,0090185833,DYNAMIC PEOPLE LTD,122.30,05/08/2019
DELIVERY UNITS,ADULTS AND HEALTH,OTHER AGENCIES - THIRD PARTY P,0090185834,DYNAMIC PEOPLE LTD,173.58,05/08/2019
DELIVERY UNITS,ADULTS AND HEALTH,OTHER AGENCIES - THIRD PARTY P,0090185836,DYNAMIC PEOPLE LTD,78.90,05/08/2019
DELIVERY UNITS,ADULTS AND HEALTH,OTHER AGENCIES - THIRD PARTY P,0090185837,DYNAMIC PEOPLE LTD,59.18,05/08/2019
DELIVERY UNITS,ADULTS AND HEALTH,OTHER AGENCIES - THIRD PARTY P,0090185838,DYNAMIC PEOPLE LTD,126.24,05/08/2019
DELIVERY UNITS,ADULTS AND HEALTH,OTHER AGENCIES - THIRD PARTY P,0090185839,DYNAMIC PEOPLE LTD,11.84,05/08/2019
DELIVERY UNITS,ADULTS AND HEALTH,OTHER AGENCIES - THIRD PARTY P,0090185840,DYNAMIC PEOPLE LTD,82.84,05/08/2019
DELIVERY UNITS,ADULTS AND HEALTH,OTHER AGENCIES - THIRD PARTY P,0090185841,DYNAMIC PEOPLE LTD,35.50,05/08/2019
DELIVERY UNITS,ADULTS AND HEALTH,OTHER AGENCIES - THIRD PARTY P,0090185842,DYNAMIC PEOPLE LTD,94.68,05/08/2019
DELIVERY UNITS,ADULTS AND HEALTH,OTHER AGENCIES - THIRD PARTY P,0090185843,DYNAMIC PEOPLE LTD,717.99,05/08/2019
DELIVERY UNITS,ADULTS AND HEALTH,OTHER AGENCIES - THIRD PARTY P,0090185844,DYNAMIC PEOPLE LTD,359.00,05/08/2019
DELIVERY UNITS,ADULTS AND HEALTH,OTHER AGENCIES - THIRD PARTY P,0090185846,DYNAMIC PEOPLE LTD,165.69,05/08/2019
DELIVERY UNITS,ADULTS AND HEALTH,OTHER AGENCIES - THIRD PARTY P,0090185847,DYNAMIC PEOPLE LTD,27.62,05/08/2019
DELIVERY UNITS,ADULTS AND HEALTH,OTHER AGENCIES - THIRD PARTY P,0090185848,DYNAMIC PEOPLE LTD,35.50,05/08/2019
DELIVERY UNITS,ADULTS AND HEALTH,OTHER AGENCIES - THIRD PARTY P,0090185849,DYNAMIC PEOPLE LTD,90.74,05/08/2019
DELIVERY UNITS,ADULTS AND HEALTH,OTHER AGENCIES - THIRD PARTY P,0090185850,DYNAMIC PEOPLE LTD,110.46,05/08/2019
DELIVERY UNITS,ADULTS AND HEALTH,OTHER AGENCIES - THIRD PARTY P,0090185851,DYNAMIC PEOPLE LTD,82.84,05/08/2019
DELIVERY UNITS,ADULTS AND HEALTH,OTHER AGENCIES - THIRD PARTY P,0090185853,DYNAMIC PEOPLE LTD,78.90,05/08/2019
DELIVERY UNITS,ADULTS AND HEALTH,OTHER AGENCIES - THIRD PARTY P,0090185855,DYNAMIC PEOPLE LTD,142.02,05/08/2019
DELIVERY UNITS,ADULTS AND HEALTH,OTHER AGENCIES - THIRD PARTY P,0090185857,DYNAMIC PEOPLE LTD,205.14,05/08/2019
DELIVERY UNITS,ADULTS AND HEALTH,OTHER AGENCIES - THIRD PARTY P,0090185858,DYNAMIC PEOPLE LTD,276.15,05/08/2019
DELIVERY UNITS,ADULTS AND HEALTH,OTHER AGENCIES - THIRD PARTY P,0090185859,DYNAMIC PEOPLE LTD,169.64,05/08/2019
DELIVERY UNITS,ADULTS AND HEALTH,OTHER AGENCIES - THIRD PARTY P,0090185860,DYNAMIC PEOPLE LTD,47.34,05/08/2019
DELIVERY UNITS,ADULTS AND HEALTH,OTHER AGENCIES - THIRD PARTY P,0090185861,DYNAMIC PEOPLE LTD,276.15,05/08/2019
DELIVERY UNITS,ADULTS AND HEALTH,OTHER AGENCIES - THIRD PARTY P,0090185862,DYNAMIC PEOPLE LTD,165.69,05/08/2019
DELIVERY UNITS,ADULTS AND HEALTH,OTHER AGENCIES - THIRD PARTY P,0090185863,DYNAMIC PEOPLE LTD,264.32,05/08/2019
DELIVERY UNITS,ADULTS AND HEALTH,OTHER AGENCIES - THIRD PARTY P,0090185864,DYNAMIC PEOPLE LTD,717.99,05/08/2019
DELIVERY UNITS,ADULTS AND HEALTH,OTHER AGENCIES - THIRD PARTY P,0090185865,DYNAMIC PEOPLE LTD,71.01,05/08/2019
DELIVERY UNITS,ADULTS AND HEALTH,OTHER AGENCIES - THIRD PARTY P,0090185866,DYNAMIC PEOPLE LTD,63.12,05/08/2019
DELIVERY UNITS,ADULTS AND HEALTH,OTHER AGENCIES - THIRD PARTY P,0090185867,DYNAMIC PEOPLE LTD,110.46,05/08/2019
DELIVERY UNITS,ADULTS AND HEALTH,OTHER AGENCIES - THIRD PARTY P,0090185869,DYNAMIC PEOPLE LTD,497.07,05/08/2019
DELIVERY UNITS,ADULTS AND HEALTH,OTHER AGENCIES - THIRD PARTY P,0090185870,DYNAMIC PEOPLE LTD,193.30,05/08/2019
DELIVERY UNITS,ADULTS AND HEALTH,OTHER AGENCIES - THIRD PARTY P,0090185871,DYNAMIC PEOPLE LTD,303.76,05/08/2019
DELIVERY UNITS,ADULTS AND HEALTH,OTHER AGENCIES - THIRD PARTY P,0090185872,DYNAMIC PEOPLE LTD,138.07,05/08/2019
DELIVERY UNITS,ADULTS AND HEALTH,OTHER AGENCIES - THIRD PARTY P,0090185873,DYNAMIC PEOPLE LTD,15.78,05/08/2019
DELIVERY UNITS,ADULTS AND HEALTH,OTHER AGENCIES - THIRD PARTY P,0090185875,DYNAMIC PEOPLE LTD,78.90,05/08/2019
DELIVERY UNITS,ADULTS AND HEALTH,OTHER AGENCIES - THIRD PARTY P,0090185876,DYNAMIC PEOPLE LTD,193.30,05/08/2019
DELIVERY UNITS,ADULTS AND HEALTH,OTHER AGENCIES - THIRD PARTY P,0090185878,DYNAMIC PEOPLE LTD,47.34,05/08/2019
DELIVERY UNITS,ADULTS AND HEALTH,OTHER AGENCIES - THIRD PARTY P,0090185879,DYNAMIC PEOPLE LTD,82.84,05/08/2019
DELIVERY UNITS,ADULTS AND HEALTH,OTHER AGENCIES - THIRD PARTY P,0090185881,DYNAMIC PEOPLE LTD,276.15,05/08/2019
DELIVERY UNITS,ADULTS AND HEALTH,OTHER AGENCIES - THIRD PARTY P,0090185882,DYNAMIC PEOPLE LTD,220.92,05/08/2019
DELIVERY UNITS,ADULTS AND HEALTH,OTHER AGENCIES - THIRD PARTY P,0090185883,DYNAMIC PEOPLE LTD,173.58,05/08/2019
DELIVERY UNITS,ADULTS AND HEALTH,OTHER AGENCIES - THIRD PARTY P,0090185884,DYNAMIC PEOPLE LTD,78.90,05/08/2019
DELIVERY UNITS,ADULTS AND HEALTH,OTHER AGENCIES - THIRD PARTY P,0090185885,DYNAMIC PEOPLE LTD,82.84,05/08/2019
DELIVERY UNITS,ADULTS AND HEALTH,OTHER AGENCIES - THIRD PARTY P,0090185886,DYNAMIC PEOPLE LTD,35.50,05/08/2019
DELIVERY UNITS,ADULTS AND HEALTH,OTHER AGENCIES - THIRD PARTY P,0090185887,DYNAMIC PEOPLE LTD,110.46,05/08/2019
DELIVERY UNITS,ADULTS AND HEALTH,OTHER AGENCIES - THIRD PARTY P,0090185889,DYNAMIC PEOPLE LTD,31.56,05/08/2019
DELIVERY UNITS,ADULTS AND HEALTH,OTHER AGENCIES - THIRD PARTY P,0090185892,DYNAMIC PEOPLE LTD,220.85,05/08/2019
DELIVERY UNITS,ADULTS AND HEALTH,OTHER AGENCIES - THIRD PARTY P,0090185893,DYNAMIC PEOPLE LTD,138.04,05/08/2019
DELIVERY UNITS,ADULTS AND HEALTH,OTHER AGENCIES - THIRD PARTY P,0090185894,DYNAMIC PEOPLE LTD,306.20,05/08/2019
DELIVERY UNITS,ADULTS AND HEALTH,OTHER AGENCIES - THIRD PARTY P,0090185895,DYNAMIC PEOPLE LTD,177.51,05/08/2019
DELIVERY UNITS,ADULTS AND HEALTH,OTHER AGENCIES - THIRD PARTY P,0090185897,DYNAMIC PEOPLE LTD,181.42,05/08/2019
DELIVERY UNITS,ADULTS AND HEALTH,OTHER AGENCIES - THIRD PARTY P,0090185899,DYNAMIC PEOPLE LTD,"1,411.52",05/08/2019
DELIVERY UNITS,ADULTS AND HEALTH,OTHER AGENCIES - THIRD PARTY P,0090185900,DYNAMIC PEOPLE LTD,236.64,05/08/2019
DELIVERY UNITS,ADULTS AND HEALTH,OTHER AGENCIES - THIRD PARTY P,0090186069,DYNAMIC PEOPLE LTD,138.07,06/08/2019
DELIVERY UNITS,ADULTS AND HEALTH,OTHER AGENCIES - THIRD PARTY P,0090186070,DYNAMIC PEOPLE LTD,240.64,06/08/2019
DELIVERY UNITS,ADULTS AND HEALTH,OTHER AGENCIES - THIRD PARTY P,0090186071,DYNAMIC PEOPLE LTD,71.01,06/08/2019
DELIVERY UNITS,ADULTS AND HEALTH,OTHER AGENCIES - THIRD PARTY P,0090186072,DYNAMIC PEOPLE LTD,59.18,06/08/2019
DELIVERY UNITS,ADULTS AND HEALTH,OTHER AGENCIES - THIRD PARTY P,0090186074,DYNAMIC PEOPLE LTD,169.64,06/08/2019
DELIVERY UNITS,ADULTS AND HEALTH,OTHER AGENCIES - THIRD PARTY P,0090186075,DYNAMIC PEOPLE LTD,193.30,06/08/2019
DELIVERY UNITS,ADULTS AND HEALTH,OTHER AGENCIES - THIRD PARTY P,0090186076,DYNAMIC PEOPLE LTD,359.00,06/08/2019
DELIVERY UNITS,ADULTS AND HEALTH,OTHER AGENCIES - THIRD PARTY P,0090186077,DYNAMIC PEOPLE LTD,31.56,06/08/2019
DELIVERY UNITS,ADULTS AND HEALTH,OTHER AGENCIES - THIRD PARTY P,0090186078,DYNAMIC PEOPLE LTD,82.84,06/08/2019
DELIVERY UNITS,ADULTS AND HEALTH,OTHER AGENCIES - THIRD PARTY P,0090186079,DYNAMIC PEOPLE LTD,153.85,06/08/2019
DELIVERY UNITS,ADULTS AND HEALTH,OTHER AGENCIES - THIRD PARTY P,0090186080,DYNAMIC PEOPLE LTD,86.79,06/08/2019
DELIVERY UNITS,ADULTS AND HEALTH,OTHER AGENCIES - THIRD PARTY P,0090186081,DYNAMIC PEOPLE LTD,110.46,06/08/2019
DELIVERY UNITS,ADULTS AND HEALTH,OTHER AGENCIES - THIRD PARTY P,0090186082,DYNAMIC PEOPLE LTD,331.38,06/08/2019
DELIVERY UNITS,ADULTS AND HEALTH,OTHER AGENCIES - THIRD PARTY P,0090186083,DYNAMIC PEOPLE LTD,193.30,06/08/2019
DELIVERY UNITS,ADULTS AND HEALTH,OTHER AGENCIES - THIRD PARTY P,0090186084,DYNAMIC PEOPLE LTD,59.18,06/08/2019
DELIVERY UNITS,ADULTS AND HEALTH,OTHER AGENCIES - THIRD PARTY P,0090186085,DYNAMIC PEOPLE LTD,82.84,06/08/2019
DELIVERY UNITS,ADULTS AND HEALTH,OTHER AGENCIES - THIRD PARTY P,0090186086,DYNAMIC PEOPLE LTD,276.15,06/08/2019
DELIVERY UNITS,ADULTS AND HEALTH,OTHER AGENCIES - THIRD PARTY P,0090186088,DYNAMIC PEOPLE LTD,82.84,06/08/2019
DELIVERY UNITS,ADULTS AND HEALTH,OTHER AGENCIES - THIRD PARTY P,0090186089,DYNAMIC PEOPLE LTD,71.01,06/08/2019
DELIVERY UNITS,ADULTS AND HEALTH,OTHER AGENCIES - THIRD PARTY P,0090186091,DYNAMIC PEOPLE LTD,110.46,06/08/2019
DELIVERY UNITS,ADULTS AND HEALTH,OTHER AGENCIES - THIRD PARTY P,0090186093,DYNAMIC PEOPLE LTD,59.18,06/08/2019
DELIVERY UNITS,ADULTS AND HEALTH,OTHER AGENCIES - THIRD PARTY P,0090186094,DYNAMIC PEOPLE LTD,142.02,06/08/2019
DELIVERY UNITS,ADULTS AND HEALTH,OTHER AGENCIES - THIRD PARTY P,0090186096,DYNAMIC PEOPLE LTD,260.37,06/08/2019
DELIVERY UNITS,ADULTS AND HEALTH,OTHER AGENCIES - THIRD PARTY P,0090186097,DYNAMIC PEOPLE LTD,138.07,06/08/2019
DELIVERY UNITS,ADULTS AND HEALTH,OTHER AGENCIES - THIRD PARTY P,0090186098,DYNAMIC PEOPLE LTD,165.69,06/08/2019
DELIVERY UNITS,ADULTS AND HEALTH,OTHER AGENCIES - THIRD PARTY P,0090186100,DYNAMIC PEOPLE LTD,138.07,06/08/2019
DELIVERY UNITS,ADULTS AND HEALTH,OTHER AGENCIES - THIRD PARTY P,0090186101,DYNAMIC PEOPLE LTD,82.84,06/08/2019
DELIVERY UNITS,ADULTS AND HEALTH,OTHER AGENCIES - THIRD PARTY P,0090186103,DYNAMIC PEOPLE LTD,63.12,06/08/2019
DELIVERY UNITS,ADULTS AND HEALTH,OTHER AGENCIES - THIRD PARTY P,0090186104,DYNAMIC PEOPLE LTD,378.72,06/08/2019
DELIVERY UNITS,ADULTS AND HEALTH,OTHER AGENCIES - THIRD PARTY P,0090186105,DYNAMIC PEOPLE LTD,138.07,06/08/2019
DELIVERY UNITS,ADULTS AND HEALTH,OTHER AGENCIES - THIRD PARTY P,0090186107,DYNAMIC PEOPLE LTD,39.45,06/08/2019
DELIVERY UNITS,ADULTS AND HEALTH,OTHER AGENCIES - THIRD PARTY P,0090186108,DYNAMIC PEOPLE LTD,55.23,06/08/2019
DELIVERY UNITS,ADULTS AND HEALTH,OTHER AGENCIES - THIRD PARTY P,0090186109,DYNAMIC PEOPLE LTD,248.54,06/08/2019
DELIVERY UNITS,ADULTS AND HEALTH,OTHER AGENCIES - THIRD PARTY P,0090186111,DYNAMIC PEOPLE LTD,694.32,06/08/2019
DELIVERY UNITS,ADULTS AND HEALTH,OTHER AGENCIES - THIRD PARTY P,0090186113,DYNAMIC PEOPLE LTD,138.07,06/08/2019
DELIVERY UNITS,ADULTS AND HEALTH,OTHER AGENCIES - THIRD PARTY P,0090186114,DYNAMIC PEOPLE LTD,276.15,06/08/2019
DELIVERY UNITS,ADULTS AND HEALTH,OTHER AGENCIES - THIRD PARTY P,0090186115,DYNAMIC PEOPLE LTD,110.46,06/08/2019
DELIVERY UNITS,ADULTS AND HEALTH,OTHER AGENCIES - THIRD PARTY P,0090186116,DYNAMIC PEOPLE LTD,110.46,06/08/2019
DELIVERY UNITS,ADULTS AND HEALTH,OTHER AGENCIES - THIRD PARTY P,0090186117,DYNAMIC PEOPLE LTD,82.84,06/08/2019
DELIVERY UNITS,ADULTS AND HEALTH,OTHER AGENCIES - THIRD PARTY P,0090186119,DYNAMIC PEOPLE LTD,31.56,06/08/2019
DELIVERY UNITS,ADULTS AND HEALTH,OTHER AGENCIES - THIRD PARTY P,0090186120,DYNAMIC PEOPLE LTD,220.92,06/08/2019
DELIVERY UNITS,ADULTS AND HEALTH,OTHER AGENCIES - THIRD PARTY P,0090186121,DYNAMIC PEOPLE LTD,130.18,06/08/2019
DELIVERY UNITS,ADULTS AND HEALTH,OTHER AGENCIES - THIRD PARTY P,0090186122,DYNAMIC PEOPLE LTD,31.56,06/08/2019
DELIVERY UNITS,ADULTS AND HEALTH,OTHER AGENCIES - THIRD PARTY P,0090186124,DYNAMIC PEOPLE LTD,118.35,06/08/2019
DELIVERY UNITS,ADULTS AND HEALTH,OTHER AGENCIES - THIRD PARTY P,0090186125,DYNAMIC PEOPLE LTD,138.07,06/08/2019
DELIVERY UNITS,ADULTS AND HEALTH,OTHER AGENCIES - THIRD PARTY P,0090186126,DYNAMIC PEOPLE LTD,213.03,06/08/2019
DELIVERY UNITS,ADULTS AND HEALTH,OTHER AGENCIES - THIRD PARTY P,0090186127,DYNAMIC PEOPLE LTD,122.30,06/08/2019
DELIVERY UNITS,ADULTS AND HEALTH,OTHER AGENCIES - THIRD PARTY P,0090186128,DYNAMIC PEOPLE LTD,173.58,06/08/2019
DELIVERY UNITS,ADULTS AND HEALTH,OTHER AGENCIES - THIRD PARTY P,0090186130,DYNAMIC PEOPLE LTD,78.90,06/08/2019
DELIVERY UNITS,ADULTS AND HEALTH,OTHER AGENCIES - THIRD PARTY P,0090186131,DYNAMIC PEOPLE LTD,59.18,06/08/2019
DELIVERY UNITS,ADULTS AND HEALTH,OTHER AGENCIES - THIRD PARTY P,0090186132,DYNAMIC PEOPLE LTD,126.24,06/08/2019
DELIVERY UNITS,ADULTS AND HEALTH,OTHER AGENCIES - THIRD PARTY P,0090186133,DYNAMIC PEOPLE LTD,23.67,06/08/2019
DELIVERY UNITS,ADULTS AND HEALTH,OTHER AGENCIES - THIRD PARTY P,0090186134,DYNAMIC PEOPLE LTD,82.84,06/08/2019
DELIVERY UNITS,ADULTS AND HEALTH,OTHER AGENCIES - THIRD PARTY P,0090186135,DYNAMIC PEOPLE LTD,35.50,06/08/2019
DELIVERY UNITS,ADULTS AND HEALTH,OTHER AGENCIES - THIRD PARTY P,0090186136,DYNAMIC PEOPLE LTD,94.68,06/08/2019
DELIVERY UNITS,ADULTS AND HEALTH,OTHER AGENCIES - THIRD PARTY P,0090186137,DYNAMIC PEOPLE LTD,717.99,06/08/2019
DELIVERY UNITS,ADULTS AND HEALTH,OTHER AGENCIES - THIRD PARTY P,0090186138,DYNAMIC PEOPLE LTD,359.00,06/08/2019
DELIVERY UNITS,ADULTS AND HEALTH,OTHER AGENCIES - THIRD PARTY P,0090186139,DYNAMIC PEOPLE LTD,165.69,06/08/2019
DELIVERY UNITS,ADULTS AND HEALTH,OTHER AGENCIES - THIRD PARTY P,0090186141,DYNAMIC PEOPLE LTD,11.84,06/08/2019
DELIVERY UNITS,ADULTS AND HEALTH,OTHER AGENCIES - THIRD PARTY P,0090186142,DYNAMIC PEOPLE LTD,47.34,06/08/2019
DELIVERY UNITS,ADULTS AND HEALTH,OTHER AGENCIES - THIRD PARTY P,0090186143,DYNAMIC PEOPLE LTD,23.67,06/08/2019
DELIVERY UNITS,ADULTS AND HEALTH,OTHER AGENCIES - THIRD PARTY P,0090186145,DYNAMIC PEOPLE LTD,78.90,06/08/2019
DELIVERY UNITS,ADULTS AND HEALTH,OTHER AGENCIES - THIRD PARTY P,0090186147,DYNAMIC PEOPLE LTD,142.02,06/08/2019
DELIVERY UNITS,ADULTS AND HEALTH,OTHER AGENCIES - THIRD PARTY P,0090186149,DYNAMIC PEOPLE LTD,205.14,06/08/2019
DELIVERY UNITS,ADULTS AND HEALTH,OTHER AGENCIES - THIRD PARTY P,0090186150,DYNAMIC PEOPLE LTD,276.15,06/08/2019
DELIVERY UNITS,ADULTS AND HEALTH,OTHER AGENCIES - THIRD PARTY P,0090186151,DYNAMIC PEOPLE LTD,169.64,06/08/2019
DELIVERY UNITS,ADULTS AND HEALTH,OTHER AGENCIES - THIRD PARTY P,0090186152,DYNAMIC PEOPLE LTD,47.34,06/08/2019
DELIVERY UNITS,ADULTS AND HEALTH,OTHER AGENCIES - THIRD PARTY P,0090186153,DYNAMIC PEOPLE LTD,291.93,06/08/2019
DELIVERY UNITS,ADULTS AND HEALTH,OTHER AGENCIES - THIRD PARTY P,0090186154,DYNAMIC PEOPLE LTD,165.69,06/08/2019
DELIVERY UNITS,ADULTS AND HEALTH,OTHER AGENCIES - THIRD PARTY P,0090186155,DYNAMIC PEOPLE LTD,264.32,06/08/2019
DELIVERY UNITS,ADULTS AND HEALTH,OTHER AGENCIES - THIRD PARTY P,0090186156,DYNAMIC PEOPLE LTD,717.99,06/08/2019
DELIVERY UNITS,ADULTS AND HEALTH,OTHER AGENCIES - THIRD PARTY P,0090186157,DYNAMIC PEOPLE LTD,82.84,06/08/2019
DELIVERY UNITS,ADULTS AND HEALTH,OTHER AGENCIES - THIRD PARTY P,0090186158,DYNAMIC PEOPLE LTD,63.12,06/08/2019
DELIVERY UNITS,ADULTS AND HEALTH,OTHER AGENCIES - THIRD PARTY P,0090186159,DYNAMIC PEOPLE LTD,110.46,06/08/2019
DELIVERY UNITS,ADULTS AND HEALTH,OTHER AGENCIES - THIRD PARTY P,0090186161,DYNAMIC PEOPLE LTD,497.07,06/08/2019
DELIVERY UNITS,ADULTS AND HEALTH,OTHER AGENCIES - THIRD PARTY P,0090186162,DYNAMIC PEOPLE LTD,185.42,06/08/2019
DELIVERY UNITS,ADULTS AND HEALTH,OTHER AGENCIES - THIRD PARTY P,0090186163,DYNAMIC PEOPLE LTD,303.76,06/08/2019
DELIVERY UNITS,ADULTS AND HEALTH,OTHER AGENCIES - THIRD PARTY P,0090186164,DYNAMIC PEOPLE LTD,138.07,06/08/2019
DELIVERY UNITS,ADULTS AND HEALTH,OTHER AGENCIES - THIRD PARTY P,0090186165,DYNAMIC PEOPLE LTD,15.78,06/08/2019
DELIVERY UNITS,ADULTS AND HEALTH,OTHER AGENCIES - THIRD PARTY P,0090186167,DYNAMIC PEOPLE LTD,78.90,06/08/2019
DELIVERY UNITS,ADULTS AND HEALTH,OTHER AGENCIES - THIRD PARTY P,0090186168,DYNAMIC PEOPLE LTD,193.30,06/08/2019
DELIVERY UNITS,ADULTS AND HEALTH,OTHER AGENCIES - THIRD PARTY P,0090186170,DYNAMIC PEOPLE LTD,47.34,06/08/2019
DELIVERY UNITS,ADULTS AND HEALTH,OTHER AGENCIES - THIRD PARTY P,0090186171,DYNAMIC PEOPLE LTD,82.84,06/08/2019
DELIVERY UNITS,ADULTS AND HEALTH,OTHER AGENCIES - THIRD PARTY P,0090186173,DYNAMIC PEOPLE LTD,260.37,06/08/2019
DELIVERY UNITS,ADULTS AND HEALTH,OTHER AGENCIES - THIRD PARTY P,0090186174,DYNAMIC PEOPLE LTD,220.92,06/08/2019
DELIVERY UNITS,ADULTS AND HEALTH,OTHER AGENCIES - THIRD PARTY P,0090186175,DYNAMIC PEOPLE LTD,173.58,06/08/2019
DELIVERY UNITS,ADULTS AND HEALTH,OTHER AGENCIES - THIRD PARTY P,0090186176,DYNAMIC PEOPLE LTD,86.79,06/08/2019
DELIVERY UNITS,ADULTS AND HEALTH,OTHER AGENCIES - THIRD PARTY P,0090186177,DYNAMIC PEOPLE LTD,82.84,06/08/2019
DELIVERY UNITS,ADULTS AND HEALTH,OTHER AGENCIES - THIRD PARTY P,0090186178,DYNAMIC PEOPLE LTD,35.50,06/08/2019
DELIVERY UNITS,ADULTS AND HEALTH,OTHER AGENCIES - THIRD PARTY P,0090186179,DYNAMIC PEOPLE LTD,110.46,06/08/2019
DELIVERY UNITS,ADULTS AND HEALTH,OTHER AGENCIES - THIRD PARTY P,0090186181,DYNAMIC PEOPLE LTD,31.56,06/08/2019
DELIVERY UNITS,ADULTS AND HEALTH,OTHER AGENCIES - THIRD PARTY P,0090186184,DYNAMIC PEOPLE LTD,306.20,06/08/2019
DELIVERY UNITS,ADULTS AND HEALTH,OTHER AGENCIES - THIRD PARTY P,0090186504,DYNAMIC PEOPLE LTD,138.07,09/08/2019
DELIVERY UNITS,ADULTS AND HEALTH,OTHER AGENCIES - THIRD PARTY P,0090186505,DYNAMIC PEOPLE LTD,248.54,09/08/2019
DELIVERY UNITS,ADULTS AND HEALTH,OTHER AGENCIES - THIRD PARTY P,0090186506,DYNAMIC PEOPLE LTD,71.01,09/08/2019
DELIVERY UNITS,ADULTS AND HEALTH,OTHER AGENCIES - THIRD PARTY P,0090186507,DYNAMIC PEOPLE LTD,59.18,09/08/2019
DELIVERY UNITS,ADULTS AND HEALTH,OTHER AGENCIES - THIRD PARTY P,0090186509,DYNAMIC PEOPLE LTD,181.47,09/08/2019
DELIVERY UNITS,ADULTS AND HEALTH,OTHER AGENCIES - THIRD PARTY P,0090186510,DYNAMIC PEOPLE LTD,193.30,09/08/2019
DELIVERY UNITS,ADULTS AND HEALTH,OTHER AGENCIES - THIRD PARTY P,0090186511,DYNAMIC PEOPLE LTD,359.00,09/08/2019
DELIVERY UNITS,ADULTS AND HEALTH,OTHER AGENCIES - THIRD PARTY P,0090186512,DYNAMIC PEOPLE LTD,31.56,09/08/2019
DELIVERY UNITS,ADULTS AND HEALTH,OTHER AGENCIES - THIRD PARTY P,0090186513,DYNAMIC PEOPLE LTD,82.84,09/08/2019
DELIVERY UNITS,ADULTS AND HEALTH,OTHER AGENCIES - THIRD PARTY P,0090186514,DYNAMIC PEOPLE LTD,134.13,09/08/2019
DELIVERY UNITS,ADULTS AND HEALTH,OTHER AGENCIES - THIRD PARTY P,0090186515,DYNAMIC PEOPLE LTD,78.90,09/08/2019
DELIVERY UNITS,ADULTS AND HEALTH,OTHER AGENCIES - THIRD PARTY P,0090186516,DYNAMIC PEOPLE LTD,63.12,09/08/2019
DELIVERY UNITS,ADULTS AND HEALTH,OTHER AGENCIES - THIRD PARTY P,0090186517,DYNAMIC PEOPLE LTD,331.38,09/08/2019
DELIVERY UNITS,ADULTS AND HEALTH,OTHER AGENCIES - THIRD PARTY P,0090186518,DYNAMIC PEOPLE LTD,193.30,09/08/2019
DELIVERY UNITS,ADULTS AND HEALTH,OTHER AGENCIES - THIRD PARTY P,0090186519,DYNAMIC PEOPLE LTD,59.18,09/08/2019
DELIVERY UNITS,ADULTS AND HEALTH,OTHER AGENCIES - THIRD PARTY P,0090186520,DYNAMIC PEOPLE LTD,82.84,09/08/2019
DELIVERY UNITS,ADULTS AND HEALTH,OTHER AGENCIES - THIRD PARTY P,0090186521,DYNAMIC PEOPLE LTD,276.15,09/08/2019
DELIVERY UNITS,ADULTS AND HEALTH,OTHER AGENCIES - THIRD PARTY P,0090186523,DYNAMIC PEOPLE LTD,71.01,09/08/2019
DELIVERY UNITS,ADULTS AND HEALTH,OTHER AGENCIES - THIRD PARTY P,0090186524,DYNAMIC PEOPLE LTD,71.01,09/08/2019
DELIVERY UNITS,ADULTS AND HEALTH,OTHER AGENCIES - THIRD PARTY P,0090186526,DYNAMIC PEOPLE LTD,110.46,09/08/2019
DELIVERY UNITS,ADULTS AND HEALTH,OTHER AGENCIES - THIRD PARTY P,0090186528,DYNAMIC PEOPLE LTD,59.18,09/08/2019
DELIVERY UNITS,ADULTS AND HEALTH,OTHER AGENCIES - THIRD PARTY P,0090186529,DYNAMIC PEOPLE LTD,47.34,09/08/2019
DELIVERY UNITS,ADULTS AND HEALTH,OTHER AGENCIES - THIRD PARTY P,0090186531,DYNAMIC PEOPLE LTD,138.07,09/08/2019
DELIVERY UNITS,ADULTS AND HEALTH,OTHER AGENCIES - THIRD PARTY P,0090186532,DYNAMIC PEOPLE LTD,165.69,09/08/2019
DELIVERY UNITS,ADULTS AND HEALTH,OTHER AGENCIES - THIRD PARTY P,0090186534,DYNAMIC PEOPLE LTD,138.07,09/08/2019
DELIVERY UNITS,ADULTS AND HEALTH,OTHER AGENCIES - THIRD PARTY P,0090186535,DYNAMIC PEOPLE LTD,82.84,09/08/2019
DELIVERY UNITS,ADULTS AND HEALTH,OTHER AGENCIES - THIRD PARTY P,0090186536,DYNAMIC PEOPLE LTD,"1,341.30",09/08/2019
DELIVERY UNITS,ADULTS AND HEALTH,OTHER AGENCIES - THIRD PARTY P,0090186538,DYNAMIC PEOPLE LTD,63.12,09/08/2019
DELIVERY UNITS,ADULTS AND HEALTH,OTHER AGENCIES - THIRD PARTY P,0090186539,DYNAMIC PEOPLE LTD,441.84,09/08/2019
DELIVERY UNITS,ADULTS AND HEALTH,OTHER AGENCIES - THIRD PARTY P,0090186540,DYNAMIC PEOPLE LTD,118.35,09/08/2019
DELIVERY UNITS,ADULTS AND HEALTH,OTHER AGENCIES - THIRD PARTY P,0090186542,DYNAMIC PEOPLE LTD,39.45,09/08/2019
DELIVERY UNITS,ADULTS AND HEALTH,OTHER AGENCIES - THIRD PARTY P,0090186543,DYNAMIC PEOPLE LTD,55.23,09/08/2019
DELIVERY UNITS,ADULTS AND HEALTH,OTHER AGENCIES - THIRD PARTY P,0090186544,DYNAMIC PEOPLE LTD,240.64,09/08/2019
DELIVERY UNITS,ADULTS AND HEALTH,OTHER AGENCIES - THIRD PARTY P,0090186546,DYNAMIC PEOPLE LTD,717.99,09/08/2019
DELIVERY UNITS,ADULTS AND HEALTH,OTHER AGENCIES - THIRD PARTY P,0090186548,DYNAMIC PEOPLE LTD,59.18,09/08/2019
DELIVERY UNITS,ADULTS AND HEALTH,OTHER AGENCIES - THIRD PARTY P,0090186549,DYNAMIC PEOPLE LTD,276.15,09/08/2019
DELIVERY UNITS,ADULTS AND HEALTH,OTHER AGENCIES - THIRD PARTY P,0090186550,DYNAMIC PEOPLE LTD,110.46,09/08/2019
DELIVERY UNITS,ADULTS AND HEALTH,OTHER AGENCIES - THIRD PARTY P,0090186551,DYNAMIC PEOPLE LTD,102.57,09/08/2019
DELIVERY UNITS,ADULTS AND HEALTH,OTHER AGENCIES - THIRD PARTY P,0090186552,DYNAMIC PEOPLE LTD,82.84,09/08/2019
DELIVERY UNITS,ADULTS AND HEALTH,OTHER AGENCIES - THIRD PARTY P,0090186554,DYNAMIC PEOPLE LTD,31.56,09/08/2019
DELIVERY UNITS,ADULTS AND HEALTH,OTHER AGENCIES - THIRD PARTY P,0090186555,DYNAMIC PEOPLE LTD,220.92,09/08/2019
DELIVERY UNITS,ADULTS AND HEALTH,OTHER AGENCIES - THIRD PARTY P,0090186556,DYNAMIC PEOPLE LTD,130.18,09/08/2019
DELIVERY UNITS,ADULTS AND HEALTH,OTHER AGENCIES - THIRD PARTY P,0090186557,DYNAMIC PEOPLE LTD,31.56,09/08/2019
DELIVERY UNITS,ADULTS AND HEALTH,OTHER AGENCIES - THIRD PARTY P,0090186559,DYNAMIC PEOPLE LTD,118.35,09/08/2019
DELIVERY UNITS,ADULTS AND HEALTH,OTHER AGENCIES - THIRD PARTY P,0090186560,DYNAMIC PEOPLE LTD,138.07,09/08/2019
DELIVERY UNITS,ADULTS AND HEALTH,OTHER AGENCIES - THIRD PARTY P,0090186561,DYNAMIC PEOPLE LTD,213.03,09/08/2019
DELIVERY UNITS,ADULTS AND HEALTH,OTHER AGENCIES - THIRD PARTY P,0090186562,DYNAMIC PEOPLE LTD,122.30,09/08/2019
DELIVERY UNITS,ADULTS AND HEALTH,OTHER AGENCIES - THIRD PARTY P,0090186563,DYNAMIC PEOPLE LTD,173.58,09/08/2019
DELIVERY UNITS,ADULTS AND HEALTH,OTHER AGENCIES - THIRD PARTY P,0090186565,DYNAMIC PEOPLE LTD,78.90,09/08/2019
DELIVERY UNITS,ADULTS AND HEALTH,OTHER AGENCIES - THIRD PARTY P,0090186566,DYNAMIC PEOPLE LTD,236.70,09/08/2019
DELIVERY UNITS,ADULTS AND HEALTH,OTHER AGENCIES - THIRD PARTY P,0090186567,DYNAMIC PEOPLE LTD,59.18,09/08/2019
DELIVERY UNITS,ADULTS AND HEALTH,OTHER AGENCIES - THIRD PARTY P,0090186568,DYNAMIC PEOPLE LTD,118.35,09/08/2019
DELIVERY UNITS,ADULTS AND HEALTH,OTHER AGENCIES - THIRD PARTY P,0090186569,DYNAMIC PEOPLE LTD,11.84,09/08/2019
DELIVERY UNITS,ADULTS AND HEALTH,OTHER AGENCIES - THIRD PARTY P,0090186570,DYNAMIC PEOPLE LTD,82.84,09/08/2019
DELIVERY UNITS,ADULTS AND HEALTH,OTHER AGENCIES - THIRD PARTY P,0090186571,DYNAMIC PEOPLE LTD,35.50,09/08/2019
DELIVERY UNITS,ADULTS AND HEALTH,OTHER AGENCIES - THIRD PARTY P,0090186573,DYNAMIC PEOPLE LTD,94.68,09/08/2019
DELIVERY UNITS,ADULTS AND HEALTH,OTHER AGENCIES - THIRD PARTY P,0090186574,DYNAMIC PEOPLE LTD,615.42,09/08/2019
DELIVERY UNITS,ADULTS AND HEALTH,OTHER AGENCIES - THIRD PARTY P,0090186575,DYNAMIC PEOPLE LTD,102.57,09/08/2019
DELIVERY UNITS,ADULTS AND HEALTH,OTHER AGENCIES - THIRD PARTY P,0090186576,DYNAMIC PEOPLE LTD,165.69,09/08/2019
DELIVERY UNITS,ADULTS AND HEALTH,OTHER AGENCIES - THIRD PARTY P,0090186577,DYNAMIC PEOPLE LTD,23.67,09/08/2019
DELIVERY UNITS,ADULTS AND HEALTH,OTHER AGENCIES - THIRD PARTY P,0090186579,DYNAMIC PEOPLE LTD,264.32,09/08/2019
DELIVERY UNITS,ADULTS AND HEALTH,OTHER AGENCIES - THIRD PARTY P,0090186580,DYNAMIC PEOPLE LTD,236.70,09/08/2019
DELIVERY UNITS,ADULTS AND HEALTH,OTHER AGENCIES - THIRD PARTY P,0090186581,DYNAMIC PEOPLE LTD,78.90,09/08/2019
DELIVERY UNITS,ADULTS AND HEALTH,OTHER AGENCIES - THIRD PARTY P,0090186582,DYNAMIC PEOPLE LTD,386.61,09/08/2019
DELIVERY UNITS,ADULTS AND HEALTH,OTHER AGENCIES - THIRD PARTY P,0090186583,DYNAMIC PEOPLE LTD,47.34,09/08/2019
DELIVERY UNITS,ADULTS AND HEALTH,OTHER AGENCIES - THIRD PARTY P,0090186585,DYNAMIC PEOPLE LTD,78.90,09/08/2019
DELIVERY UNITS,ADULTS AND HEALTH,OTHER AGENCIES - THIRD PARTY P,0090186588,DYNAMIC PEOPLE LTD,78.90,09/08/2019
DELIVERY UNITS,ADULTS AND HEALTH,OTHER AGENCIES - THIRD PARTY P,0090186589,DYNAMIC PEOPLE LTD,205.14,09/08/2019
DELIVERY UNITS,ADULTS AND HEALTH,OTHER AGENCIES - THIRD PARTY P,0090186590,DYNAMIC PEOPLE LTD,276.15,09/08/2019
DELIVERY UNITS,ADULTS AND HEALTH,OTHER AGENCIES - THIRD PARTY P,0090186591,DYNAMIC PEOPLE LTD,169.64,09/08/2019
DELIVERY UNITS,ADULTS AND HEALTH,OTHER AGENCIES - THIRD PARTY P,0090186592,DYNAMIC PEOPLE LTD,47.34,09/08/2019
DELIVERY UNITS,ADULTS AND HEALTH,OTHER AGENCIES - THIRD PARTY P,0090186593,DYNAMIC PEOPLE LTD,291.93,09/08/2019
DELIVERY UNITS,ADULTS AND HEALTH,OTHER AGENCIES - THIRD PARTY P,0090186594,DYNAMIC PEOPLE LTD,165.69,09/08/2019
DELIVERY UNITS,ADULTS AND HEALTH,OTHER AGENCIES - THIRD PARTY P,0090186595,DYNAMIC PEOPLE LTD,264.32,09/08/2019
DELIVERY UNITS,ADULTS AND HEALTH,OTHER AGENCIES - THIRD PARTY P,0090186596,DYNAMIC PEOPLE LTD,717.99,09/08/2019
DELIVERY UNITS,ADULTS AND HEALTH,OTHER AGENCIES - THIRD PARTY P,0090186597,DYNAMIC PEOPLE LTD,82.84,09/08/2019
DELIVERY UNITS,ADULTS AND HEALTH,OTHER AGENCIES - THIRD PARTY P,0090186598,DYNAMIC PEOPLE LTD,63.12,09/08/2019
DELIVERY UNITS,ADULTS AND HEALTH,OTHER AGENCIES - THIRD PARTY P,0090186599,DYNAMIC PEOPLE LTD,110.46,09/08/2019
DELIVERY UNITS,ADULTS AND HEALTH,OTHER AGENCIES - THIRD PARTY P,0090186601,DYNAMIC PEOPLE LTD,489.18,09/08/2019
DELIVERY UNITS,ADULTS AND HEALTH,OTHER AGENCIES - THIRD PARTY P,0090186602,DYNAMIC PEOPLE LTD,181.47,09/08/2019
DELIVERY UNITS,ADULTS AND HEALTH,OTHER AGENCIES - THIRD PARTY P,0090186603,DYNAMIC PEOPLE LTD,74.96,09/08/2019
DELIVERY UNITS,ADULTS AND HEALTH,OTHER AGENCIES - THIRD PARTY P,0090186604,DYNAMIC PEOPLE LTD,138.07,09/08/2019
DELIVERY UNITS,ADULTS AND HEALTH,OTHER AGENCIES - THIRD PARTY P,0090186605,DYNAMIC PEOPLE LTD,15.78,09/08/2019
DELIVERY UNITS,ADULTS AND HEALTH,OTHER AGENCIES - THIRD PARTY P,0090186607,DYNAMIC PEOPLE LTD,78.90,09/08/2019
DELIVERY UNITS,ADULTS AND HEALTH,OTHER AGENCIES - THIRD PARTY P,0090186608,DYNAMIC PEOPLE LTD,193.30,09/08/2019
DELIVERY UNITS,ADULTS AND HEALTH,OTHER AGENCIES - THIRD PARTY P,0090186610,DYNAMIC PEOPLE LTD,47.34,09/08/2019
